Body Name,Transaction Number,Account Code Description,Expenses Type,Service Code,Service Area Categorisation,Supplier Name,Date,Amount
Bath & North East Somerset Council,10828068,LJ2,Legal Fees,P12,Children's Services,REDACTED,16/01/2015,1200.00
Bath & North East Somerset Council,10826203,LN1,Telephones,P10,Finance & Efficiency,VIRGIN MEDIA BUSINESS,02/11/2016,21.00
Bath & North East Somerset Council,10826115,LJ4,Contracts,P14,Community Services,WORCESTERSHIRE COUNTY COUNCIL,02/11/2016,85.00
Bath & North East Somerset Council,80639348,PG1,Rent Allowances,P10,Finance & Efficiency,AWRL LIMITED,02/11/2016,1107.40
Bath & North East Somerset Council,10826248,EA1,Training,P12,Children's Services,SOLUTION FOCUSED PRACTICE,02/11/2016,166.00
Bath & North East Somerset Council,10826248,EA1,Training,P12,Children's Services,SOLUTION FOCUSED PRACTICE,02/11/2016,167.00
Bath & North East Somerset Council,10826248,EA1,Training,P12,Children's Services,SOLUTION FOCUSED PRACTICE,02/11/2016,167.00
Bath & North East Somerset Council,10822351,HN1,Electricity,P14,Community Services,IMSERV EUROPE LTD,02/11/2016,201.95
Bath & North East Somerset Council,10822351,HN1,Electricity,P13,Economic Development,IMSERV EUROPE LTD,02/11/2016,201.95
Bath & North East Somerset Council,10822351,HN1,Electricity,P13,Economic Development,IMSERV EUROPE LTD,02/11/2016,201.95
Bath & North East Somerset Council,10822351,HN1,Electricity,P10,Finance & Efficiency,IMSERV EUROPE LTD,02/11/2016,201.95
Bath & North East Somerset Council,10822351,HN1,Electricity,P10,Finance & Efficiency,IMSERV EUROPE LTD,02/11/2016,201.95
Bath & North East Somerset Council,80639351,PG1,Rent Allowances,P10,Finance & Efficiency,BATH CHRISTIAN TRUST,02/11/2016,3562.44
Bath & North East Somerset Council,10826004,3G1,Grants/Advances,P11,Adult Social Care & Health,BIB & BRACE LTD,02/11/2016,9046.20
Bath & North East Somerset Council,80639245,LM4,Respite Care,P12,Children's Services,REDACTED,02/11/2016,21.43
Bath & North East Somerset Council,80639245,LM4,Respite Care,P12,Children's Services,REDACTED,02/11/2016,53.57
Bath & North East Somerset Council,80639245,LM2,Foster Carer Allowances,P12,Children's Services,REDACTED,02/11/2016,100.00
Bath & North East Somerset Council,80639245,LM4,Respite Care,P12,Children's Services,REDACTED,02/11/2016,105.72
Bath & North East Somerset Council,80639245,LM2,Foster Carer Allowances,P12,Children's Services,REDACTED,02/11/2016,250.00
Bath & North East Somerset Council,80639245,LM2,Foster Carer Allowances,P12,Children's Services,REDACTED,02/11/2016,493.36
Bath & North East Somerset Council,10826202,HA3,Planned Maintenance,P10,Finance & Efficiency,VIRGIN MEDIA BUSINESS,02/11/2016,312.50
Bath & North East Somerset Council,10826115,LJ4,Contracts,P14,Community Services,WORCESTERSHIRE COUNTY COUNCIL,02/11/2016,384.73
Bath & North East Somerset Council,10826115,LJ4,Contracts,P14,Community Services,WORCESTERSHIRE COUNTY COUNCIL,02/11/2016,384.73
Bath & North East Somerset Council,10826239,LL1,Services to/for Clients,P12,Children's Services,CURO,02/11/2016,1877.52
Bath & North East Somerset Council,10826279,HV4,Cleaning Materials,P13,Economic Development,AVANTI HYGIENE LTD,02/11/2016,448.70
Bath & North East Somerset Council,10826320,3E4,Furniture/Equipment,P04,Leader,CIVICA UK LTD,02/11/2016,450.00
Bath & North East Somerset Council,10826262,HA1,Responsive Maintenance,P13,Economic Development,ASHTON AIR CONDITIONING SERVICES LIMITED,02/11/2016,460.00
Bath & North East Somerset Council,10826167,HA1,Responsive Maintenance,P13,Economic Development,MEGA-ROD,02/11/2016,462.97
Bath & North East Somerset Council,10826086,HV1,Contract Cleaning,P10,Finance & Efficiency,PHS GROUP LTD,02/11/2016,489.73
Bath & North East Somerset Council,10826389,LH2,Advertising,P01,Transport,TMP (UK) LTD,02/11/2016,491.62
Bath & North East Somerset Council,10826125,LK1,Fees,P13,Economic Development,CHURCHILL SECURITY SERVICES,02/11/2016,495.23
Bath & North East Somerset Council,10826136,PB4,Payments to Private Contractors,P14,Community Services,M J CHURCH PLANT LTD,02/11/2016,496.14
Bath & North East Somerset Council,10826382,3N7,Misc. Costs,P01,Transport,TMP (UK) LTD,02/11/2016,498.54
Bath & North East Somerset Council,10826274,HP3,Room Hire Charges,P14,Community Services,TOPLAND THE ROYAL CRESCENT LIMITED,02/11/2016,500.00
Bath & North East Somerset Council,10826132,PB4,Payments to Private Contractors,P14,Community Services,M J CHURCH PLANT LTD,02/11/2016,503.08
Bath & North East Somerset Council,10825766,HV4,Cleaning Materials,P10,Finance & Efficiency,AVANTI HYGIENE LTD,02/11/2016,524.10
Bath & North East Somerset Council,10826283,HV4,Cleaning Materials,P13,Economic Development,AVANTI HYGIENE LTD,02/11/2016,529.24
Bath & North East Somerset Council,10826230,LK1,Fees,P12,Children's Services,HELEN BARNES,02/11/2016,532.50
Bath & North East Somerset Council,10826197,HA1,Responsive Maintenance,P13,Economic Development,MEGA-ROD,02/11/2016,550.00
Bath & North East Somerset Council,10826259,LK6,Photography/Artworks/Graphics,P13,Economic Development,ART WORKS EXHIBITION SERVICES LTD,02/11/2016,560.00
Bath & North East Somerset Council,10825937,LA3,Equipment Maintenance (Non Medical),P01,Transport,SOUTH GLOUCESTERSHIRE COUNCIL,02/11/2016,560.00
Bath & North East Somerset Council,10826289,LX4,Parish Sweepers,P14,Community Services,BATHEASTON PARISH COUNCIL,02/11/2016,572.39
Bath & North East Somerset Council,10826203,LN1,Telephones,P10,Finance & Efficiency,VIRGIN MEDIA BUSINESS,02/11/2016,582.82
Bath & North East Somerset Council,10826005,LK2,Licences (non IT),P10,Finance & Efficiency,INFORM CPI LTD,02/11/2016,595.00
Bath & North East Somerset Council,10825559,LJ8,PCB External Fees,P13,Economic Development,JOHN HECTOR,02/11/2016,600.00
Bath & North East Somerset Council,10825707,HK1,Highway Maintenance,P01,Transport,WESTERN POWER DISTRIBUTION (SO,02/11/2016,608.82
Bath & North East Somerset Council,10826268,HA1,Responsive Maintenance,P13,Economic Development,AVON FIRE SYSTEMS LTD,02/11/2016,614.00
Bath & North East Somerset Council,10824921,EA1,Training,P13,Economic Development,CHRIS CROFT TRAINING LTD,02/11/2016,660.00
Bath & North East Somerset Council,10826215,LK1,Fees,P12,Children's Services,MR JONATHAN R GILMURRAY,02/11/2016,690.00
Bath & North East Somerset Council,10826376,LX4,Parish Sweepers,P14,Community Services,PAULTON PARISH COUNCIL,02/11/2016,700.18
Bath & North East Somerset Council,10826390,LK1,Fees,P14,Community Services,TMP (UK) LTD,02/11/2016,717.43
Bath & North East Somerset Council,10826128,HA2,Servicing,P13,Economic Development,HORDERS,02/11/2016,720.00
Bath & North East Somerset Council,80639250,KE3,Transport & Travel,P12,Children's Services,REDACTED,02/11/2016,15.75
Bath & North East Somerset Council,80639250,LM2,Foster Carer Allowances,P12,Children's Services,REDACTED,02/11/2016,100.00
Bath & North East Somerset Council,80639250,LM2,Foster Carer Allowances,P12,Children's Services,REDACTED,02/11/2016,250.00
Bath & North East Somerset Council,80639250,LM2,Foster Carer Allowances,P12,Children's Services,REDACTED,02/11/2016,405.56
Bath & North East Somerset Council,10826304,LA1,Equipment Purchase (Non Medical),P10,Finance & Efficiency,PATTERSONS (BRISTOL) LIMITED,02/11/2016,747.69
Bath & North East Somerset Council,10826074,HN1,Electricity,P01,Transport,SOUTHERN ELECTRIC PLC,02/11/2016,766.50
Bath & North East Somerset Council,10826226,LN5,Data Lines,P10,Finance & Efficiency,ACCESS INFRASTRUCTURE,02/11/2016,776.22
Bath & North East Somerset Council,10826254,LP5,Software Support,P10,Finance & Efficiency,METRIC GROUP LIMITED,02/11/2016,783.00
Bath & North East Somerset Council,10826077,3F7,External Fees,P13,Economic Development,CAPITA SYMONDS,02/11/2016,789.33
Bath & North East Somerset Council,10826269,HA1,Responsive Maintenance,P13,Economic Development,AVON FIRE SYSTEMS LTD,02/11/2016,800.00
Bath & North East Somerset Council,10826240,LK1,Fees,P13,Economic Development,RS SECURITY LTD,02/11/2016,851.50
Bath & North East Somerset Council,10826277,HV4,Cleaning Materials,P13,Economic Development,AVANTI HYGIENE LTD,02/11/2016,851.59
Bath & North East Somerset Council,10826273,LJ4,Contracts,P12,Children's Services,FIRST RESPONSE TRAINING & CONSULTANC,02/11/2016,852.00
Bath & North East Somerset Council,10826110,LV3,Commissioned Services,P13,Economic Development,GOLDEN TOURS,02/11/2016,528.38
Bath & North East Somerset Council,80639269,LM2,Foster Carer Allowances,P12,Children's Services,REDACTED,02/11/2016,100.00
Bath & North East Somerset Council,80639269,LM2,Foster Carer Allowances,P12,Children's Services,REDACTED,02/11/2016,493.36
Bath & North East Somerset Council,80638909,LL8,Individualised Budget,P11,Adult Social Care & Health,REDACTED,02/11/2016,3836.62
Bath & North East Somerset Council,80639285,LM2,Foster Carer Allowances,P12,Children's Services,REDACTED,02/11/2016,802.00
Bath & North East Somerset Council,80639285,LM2,Foster Carer Allowances,P12,Children's Services,REDACTED,02/11/2016,802.00
Bath & North East Somerset Council,10819797,LA5,Materials,P10,Finance & Efficiency,PREMIER PAPER,02/11/2016,913.64
Bath & North East Somerset Council,80639306,LL6,Needs & Services,P12,Children's Services,REDACTED,02/11/2016,12.50
Bath & North East Somerset Council,80639306,LM2,Foster Carer Allowances,P12,Children's Services,REDACTED,02/11/2016,85.68
Bath & North East Somerset Council,80639306,LM2,Foster Carer Allowances,P12,Children's Services,REDACTED,02/11/2016,100.00
Bath & North East Somerset Council,80639306,LM2,Foster Carer Allowances,P12,Children's Services,REDACTED,02/11/2016,250.00
Bath & North East Somerset Council,10826150,LH2,Advertising,P09,Homes & Planning,LOCAL WORLD LTD,02/11/2016,939.48
Bath & North East Somerset Council,80639306,LM2,Foster Carer Allowances,P12,Children's Services,REDACTED,02/11/2016,493.36
Bath & North East Somerset Council,80639247,LM4,Respite Care,P12,Children's Services,REDACTED,02/11/2016,288.21
Bath & North East Somerset Council,80639247,LM2,Foster Carer Allowances,P12,Children's Services,REDACTED,02/11/2016,807.00
Bath & North East Somerset Council,80639247,LM2,Foster Carer Allowances,P12,Children's Services,REDACTED,02/11/2016,807.00
Bath & North East Somerset Council,10826350,LX6,Bus Revenue Support,P01,Transport,ABUS,02/11/2016,976.54
Bath & North East Somerset Council,80639235,LM2,Foster Carer Allowances,P12,Children's Services,REDACTED,02/11/2016,100.00
Bath & North East Somerset Council,10826126,HE1,General Maintenance,P13,Economic Development,MANNINGS FACILITIES MANAGEMENT LTD,02/11/2016,989.10
Bath & North East Somerset Council,80639235,LM2,Foster Carer Allowances,P12,Children's Services,REDACTED,02/11/2016,250.00
Bath & North East Somerset Council,80639235,LM2,Foster Carer Allowances,P12,Children's Services,REDACTED,02/11/2016,405.56
Bath & North East Somerset Council,80639235,LM2,Foster Carer Allowances,P12,Children's Services,REDACTED,02/11/2016,842.88
Bath & North East Somerset Council,80639303,LM2,Foster Carer Allowances,P12,Children's Services,REDACTED,02/11/2016,100.00
Bath & North East Somerset Council,80639303,LM2,Foster Carer Allowances,P12,Children's Services,REDACTED,02/11/2016,493.36
Bath & North East Somerset Council,80639251,LM2,Foster Carer Allowances,P12,Children's Services,REDACTED,02/11/2016,100.00
Bath & North East Somerset Council,80639251,LM2,Foster Carer Allowances,P12,Children's Services,REDACTED,02/11/2016,100.00
Bath & North East Somerset Council,80639251,LM2,Foster Carer Allowances,P12,Children's Services,REDACTED,02/11/2016,286.00
Bath & North East Somerset Council,80639251,LM2,Foster Carer Allowances,P12,Children's Services,REDACTED,02/11/2016,286.00
Bath & North East Somerset Council,10826264,LK1,Fees,P10,Finance & Efficiency,SOIL ASSOCIATION LTD,02/11/2016,995.00
Bath & North East Somerset Council,10826090,LF5,Postages,P13,Economic Development,NEOPOST CREDIFON,02/11/2016,1000.00
Bath & North East Somerset Council,80639278,LM2,Foster Carer Allowances,P12,Children's Services,REDACTED,02/11/2016,100.00
Bath & North East Somerset Council,80639278,LM2,Foster Carer Allowances,P12,Children's Services,REDACTED,02/11/2016,100.00
Bath & North East Somerset Council,80639278,LM2,Foster Carer Allowances,P12,Children's Services,REDACTED,02/11/2016,325.78
Bath & North East Somerset Council,80639278,LM2,Foster Carer Allowances,P12,Children's Services,REDACTED,02/11/2016,405.56
Bath & North East Somerset Council,80639258,KE3,Transport & Travel,P12,Children's Services,REDACTED,02/11/2016,54.00
Bath & North East Somerset Council,80639258,LM2,Foster Carer Allowances,P12,Children's Services,REDACTED,02/11/2016,830.00
Bath & North East Somerset Council,80639258,LM2,Foster Carer Allowances,P12,Children's Services,REDACTED,02/11/2016,830.00
Bath & North East Somerset Council,80639258,LM2,Foster Carer Allowances,P12,Children's Services,REDACTED,02/11/2016,830.00
Bath & North East Somerset Council,10826280,HA1,Responsive Maintenance,P13,Economic Development,AVON FIRE SYSTEMS LTD,02/11/2016,1060.00
Bath & North East Somerset Council,10826369,LD1,Protective & Safety Clothing,P14,Community Services,K.I.T. CO,02/11/2016,1075.50
Bath & North East Somerset Council,10826261,LH1,Liability Insurance,P13,Economic Development,ART WORKS EXHIBITION SERVICES LTD,02/11/2016,1115.00
Bath & North East Somerset Council,10826115,HE1,General Maintenance,P14,Community Services,WORCESTERSHIRE COUNTY COUNCIL,02/11/2016,1148.00
Bath & North East Somerset Council,10826122,PB4,Payments to Private Contractors,P14,Community Services,R J KING & SONS,02/11/2016,1155.00
Bath & North East Somerset Council,80639307,LM2,Foster Carer Allowances,P12,Children's Services,REDACTED,02/11/2016,100.00
Bath & North East Somerset Council,80639307,LM2,Foster Carer Allowances,P12,Children's Services,REDACTED,02/11/2016,405.56
Bath & North East Somerset Council,10826310,LF5,Postages,P04,Leader,ROYAL MAIL GROUP PLC,02/11/2016,1240.00
Bath & North East Somerset Council,10826096,PB4,Payments to Private Contractors,P14,Community Services,R J KING & SONS,02/11/2016,1242.50
Bath & North East Somerset Council,80639265,LM2,Foster Carer Allowances,P12,Children's Services,REDACTED,02/11/2016,837.00
Bath & North East Somerset Council,80639319,LL9,Special Guardianship,P12,Children's Services,REDACTED,02/11/2016,244.60
Bath & North East Somerset Council,80639319,LL9,Special Guardianship,P12,Children's Services,REDACTED,02/11/2016,258.60
Bath & North East Somerset Council,80639237,LM2,Foster Carer Allowances,P12,Children's Services,REDACTED,02/11/2016,100.00
Bath & North East Somerset Council,80639237,LM2,Foster Carer Allowances,P12,Children's Services,REDACTED,02/11/2016,405.56
Bath & North East Somerset Council,10826113,LA5,Materials,P13,Economic Development,ARANTXA GARCIA ALONSO,02/11/2016,1313.54
Bath & North East Somerset Council,80639240,LM2,Foster Carer Allowances,P12,Children's Services,REDACTED,02/11/2016,100.00
Bath & North East Somerset Council,80639240,LM2,Foster Carer Allowances,P12,Children's Services,REDACTED,02/11/2016,250.00
Bath & North East Somerset Council,80639240,LM2,Foster Carer Allowances,P12,Children's Services,REDACTED,02/11/2016,370.02
Bath & North East Somerset Council,80639240,LM2,Foster Carer Allowances,P12,Children's Services,REDACTED,02/11/2016,493.36
Bath & North East Somerset Council,80639254,LM2,Foster Carer Allowances,P12,Children's Services,REDACTED,02/11/2016,417.00
Bath & North East Somerset Council,80639254,LM2,Foster Carer Allowances,P12,Children's Services,REDACTED,02/11/2016,417.00
Bath & North East Somerset Council,80639283,LM2,Foster Carer Allowances,P12,Children's Services,REDACTED,02/11/2016,100.00
Bath & North East Somerset Council,80639283,LM2,Foster Carer Allowances,P12,Children's Services,REDACTED,02/11/2016,250.00
Bath & North East Somerset Council,80639283,LM2,Foster Carer Allowances,P12,Children's Services,REDACTED,02/11/2016,348.00
Bath & North East Somerset Council,80639283,LM2,Foster Carer Allowances,P12,Children's Services,REDACTED,02/11/2016,405.56
Bath & North East Somerset Council,80639244,LL5,Adoption Allowances,P12,Children's Services,REDACTED,02/11/2016,291.68
Bath & North East Somerset Council,10826228,LD4,Uniforms,P13,Economic Development,WATERFRONT MANUFACTURING LTD,02/11/2016,1349.88
Bath & North East Somerset Council,80639244,LL5,Adoption Allowances,P12,Children's Services,REDACTED,02/11/2016,291.70
Bath & North East Somerset Council,80639353,PG1,Rent Allowances,P10,Finance & Efficiency,REDACTED,02/11/2016,545.00
Bath & North East Somerset Council,80639352,PG1,Rent Allowances,P10,Finance & Efficiency,REDACTED,02/11/2016,507.68
Bath & North East Somerset Council,80639355,PG1,Rent Allowances,P10,Finance & Efficiency,REDACTED,02/11/2016,512.32
Bath & North East Somerset Council,10826401,LF5,Postages,P10,Finance & Efficiency,WHISTL UK LTD,02/11/2016,1373.96
Bath & North East Somerset Council,80639243,LL5,Adoption Allowances,P12,Children's Services,REDACTED,02/11/2016,355.22
Bath & North East Somerset Council,80639243,LL5,Adoption Allowances,P12,Children's Services,REDACTED,02/11/2016,355.22
Bath & North East Somerset Council,10826183,LJ4,Contracts,P14,Community Services,HURLEY ENGINE SERVICES LTD,02/11/2016,1381.32
Bath & North East Somerset Council,10826284,LK1,Fees,P13,Economic Development,BBA ARCHITECTS,02/11/2016,1400.00
Bath & North East Somerset Council,80639263,LM2,Foster Carer Allowances,P12,Children's Services,REDACTED,02/11/2016,100.00
Bath & North East Somerset Council,80639263,LM2,Foster Carer Allowances,P12,Children's Services,REDACTED,02/11/2016,100.00
Bath & North East Somerset Council,10826309,KA3,Fuel,P14,Community Services,ALLSTAR BUSINESS SOLUTIONS LTD,02/11/2016,1426.92
Bath & North East Somerset Council,80639263,LM2,Foster Carer Allowances,P12,Children's Services,REDACTED,02/11/2016,325.78
Bath & North East Somerset Council,80639263,LM2,Foster Carer Allowances,P12,Children's Services,REDACTED,02/11/2016,405.56
Bath & North East Somerset Council,80639252,LM2,Foster Carer Allowances,P12,Children's Services,REDACTED,02/11/2016,370.02
Bath & North East Somerset Council,80639252,LM2,Foster Carer Allowances,P12,Children's Services,REDACTED,02/11/2016,807.00
Bath & North East Somerset Council,80639249,LL6,Needs & Services,P12,Children's Services,REDACTED,02/11/2016,12.00
Bath & North East Somerset Council,80639249,LL6,Needs & Services,P12,Children's Services,REDACTED,02/11/2016,29.99
Bath & North East Somerset Council,80639249,LM2,Foster Carer Allowances,P12,Children's Services,REDACTED,02/11/2016,100.00
Bath & North East Somerset Council,80639249,LM2,Foster Carer Allowances,P12,Children's Services,REDACTED,02/11/2016,250.00
Bath & North East Somerset Council,80639249,LM2,Foster Carer Allowances,P12,Children's Services,REDACTED,02/11/2016,493.36
Bath & North East Somerset Council,10826124,LK1,Fees,P13,Economic Development,CHURCHILL SECURITY SERVICES,02/11/2016,1506.98
Bath & North East Somerset Council,10825569,LV2,Contributions to Organisations,P04,Leader,WESTERN POWER DISTRIBUTION (SO,02/11/2016,1515.47
Bath & North East Somerset Council,80639255,LM2,Foster Carer Allowances,P12,Children's Services,REDACTED,02/11/2016,100.00
Bath & North East Somerset Council,80639255,LM2,Foster Carer Allowances,P12,Children's Services,REDACTED,02/11/2016,100.00
Bath & North East Somerset Council,80639255,LM2,Foster Carer Allowances,P12,Children's Services,REDACTED,02/11/2016,100.00
Bath & North East Somerset Council,80639255,LM2,Foster Carer Allowances,P12,Children's Services,REDACTED,02/11/2016,140.00
Bath & North East Somerset Council,80639255,LM2,Foster Carer Allowances,P12,Children's Services,REDACTED,02/11/2016,162.89
Bath & North East Somerset Council,80639255,LM2,Foster Carer Allowances,P12,Children's Services,REDACTED,02/11/2016,250.00
Bath & North East Somerset Council,10826101,3G1,Grants/Advances,P11,Adult Social Care & Health,H SEAMAN & SON,02/11/2016,1525.00
Bath & North East Somerset Council,80639255,KE3,Transport & Travel,P12,Children's Services,REDACTED,02/11/2016,320.40
Bath & North East Somerset Council,80639255,LM2,Foster Carer Allowances,P12,Children's Services,REDACTED,02/11/2016,325.78
Bath & North East Somerset Council,80639255,LM2,Foster Carer Allowances,P12,Children's Services,REDACTED,02/11/2016,325.78
Bath & North East Somerset Council,10826107,HA3,Planned Maintenance,P13,Economic Development,HORDERS,02/11/2016,1528.62
Bath & North East Somerset Council,80639255,LM2,Foster Carer Allowances,P12,Children's Services,REDACTED,02/11/2016,493.36
Bath & North East Somerset Council,80639325,LM2,Foster Carer Allowances,P12,Children's Services,REDACTED,02/11/2016,100.00
Bath & North East Somerset Council,80639325,LM2,Foster Carer Allowances,P12,Children's Services,REDACTED,02/11/2016,286.00
Bath & North East Somerset Council,80639325,LM2,Foster Carer Allowances,P12,Children's Services,REDACTED,02/11/2016,493.36
Bath & North East Somerset Council,80639232,LM2,Foster Carer Allowances,P12,Children's Services,REDACTED,02/11/2016,100.00
Bath & North East Somerset Council,80639232,LM2,Foster Carer Allowances,P12,Children's Services,REDACTED,02/11/2016,493.36
Bath & North East Somerset Council,10826202,HA3,Planned Maintenance,P10,Finance & Efficiency,VIRGIN MEDIA BUSINESS,02/11/2016,1566.89
Bath & North East Somerset Council,80639261,LM2,Foster Carer Allowances,P12,Children's Services,REDACTED,02/11/2016,239.90
Bath & North East Somerset Council,80639261,LM2,Foster Carer Allowances,P12,Children's Services,REDACTED,02/11/2016,807.00
Bath & North East Somerset Council,80639339,PG1,Rent Allowances,P10,Finance & Efficiency,REDACTED,02/11/2016,603.72
Bath & North East Somerset Council,80639335,LM2,Foster Carer Allowances,P12,Children's Services,REDACTED,02/11/2016,100.00
Bath & North East Somerset Council,80639335,LM2,Foster Carer Allowances,P12,Children's Services,REDACTED,02/11/2016,286.00
Bath & North East Somerset Council,80639335,LA1,Equipment Purchase (Non Medical),P12,Children's Services,REDACTED,02/11/2016,301.43
Bath & North East Somerset Council,80639280,LM2,Foster Carer Allowances,P12,Children's Services,REDACTED,02/11/2016,50.00
Bath & North East Somerset Council,80639280,LM2,Foster Carer Allowances,P12,Children's Services,REDACTED,02/11/2016,125.00
Bath & North East Somerset Council,80639280,LM2,Foster Carer Allowances,P12,Children's Services,REDACTED,02/11/2016,246.68
Bath & North East Somerset Council,80639280,LM1,Volunt Homes Placements Top/Up,P12,Children's Services,REDACTED,02/11/2016,377.78
Bath & North East Somerset Council,80639284,LM2,Foster Carer Allowances,P12,Children's Services,REDACTED,02/11/2016,100.00
Bath & North East Somerset Council,80639284,LM2,Foster Carer Allowances,P12,Children's Services,REDACTED,02/11/2016,100.00
Bath & North East Somerset Council,10826195,LW9,Other Expenses,P10,Finance & Efficiency,DE LAGE LANDEN LTD,02/11/2016,1652.49
Bath & North East Somerset Council,80639284,LM2,Foster Carer Allowances,P12,Children's Services,REDACTED,02/11/2016,250.00
Bath & North East Somerset Council,80639284,LM2,Foster Carer Allowances,P12,Children's Services,REDACTED,02/11/2016,250.00
Bath & North East Somerset Council,80639284,LM2,Foster Carer Allowances,P12,Children's Services,REDACTED,02/11/2016,493.36
Bath & North East Somerset Council,80639284,LM2,Foster Carer Allowances,P12,Children's Services,REDACTED,02/11/2016,493.36
Bath & North East Somerset Council,10826285,LK1,Fees,P13,Economic Development,BBA ARCHITECTS,02/11/2016,1732.50
Bath & North East Somerset Council,10825962,3F7,External Fees,P14,Community Services,D R MILLS & ASSOCIATES,02/11/2016,1738.18
Bath & North East Somerset Council,80639296,LL2,Personal Needs of Clients,P12,Children's Services,REDACTED,02/11/2016,500.00
Bath & North East Somerset Council,10825775,3N7,Misc. Costs,P01,Transport,GLASDON UK LIMITED,02/11/2016,1820.00
Bath & North East Somerset Council,10826313,3C4,Building Works,P10,Finance & Efficiency,CAPITA SYMONDS,02/11/2016,1850.00
Bath & North East Somerset Council,80639260,LM2,Foster Carer Allowances,P12,Children's Services,REDACTED,02/11/2016,100.00
Bath & North East Somerset Council,80639260,LM2,Foster Carer Allowances,P12,Children's Services,REDACTED,02/11/2016,100.00
Bath & North East Somerset Council,10826016,3G1,Grants/Advances,P11,Adult Social Care & Health,DOLPHIN LIFTS (WESTERN) LTD,02/11/2016,1860.00
Bath & North East Somerset Council,80639260,LM2,Foster Carer Allowances,P12,Children's Services,REDACTED,02/11/2016,325.78
Bath & North East Somerset Council,80639260,LM2,Foster Carer Allowances,P12,Children's Services,REDACTED,02/11/2016,405.56
Bath & North East Somerset Council,80639279,LL9,Special Guardianship,P12,Children's Services,REDACTED,02/11/2016,290.50
Bath & North East Somerset Council,80639279,LL9,Special Guardianship,P12,Children's Services,REDACTED,02/11/2016,290.50
Bath & North East Somerset Council,80639231,LM2,Foster Carer Allowances,P12,Children's Services,REDACTED,02/11/2016,100.00
Bath & North East Somerset Council,80639231,LM2,Foster Carer Allowances,P12,Children's Services,REDACTED,02/11/2016,493.36
Bath & North East Somerset Council,10826384,LH2,Advertising,P01,Transport,TMP (UK) LTD,02/11/2016,1874.16
Bath & North East Somerset Council,10826253,LN5,Data Lines,P10,Finance & Efficiency,ACCESS INFRASTRUCTURE,02/11/2016,1999.20
Bath & North East Somerset Council,10826267,HA1,Responsive Maintenance,P13,Economic Development,AVON FIRE SYSTEMS LTD,02/11/2016,2017.00
Bath & North East Somerset Council,10826358,LJ4,Contracts,P12,Children's Services,SARI,02/11/2016,2057.50
Bath & North East Somerset Council,10826021,3G1,Grants/Advances,P11,Adult Social Care & Health,TPM (SOUTH WEST) LTD,02/11/2016,2097.00
Bath & North East Somerset Council,10826263,HA1,Responsive Maintenance,P13,Economic Development,ASHTON AIR CONDITIONING SERVICES LIMITED,02/11/2016,2150.00
Bath & North East Somerset Council,10826131,HA2,Servicing,P13,Economic Development,HORDERS,02/11/2016,2156.94
Bath & North East Somerset Council,10826118,LM1,Volunt Homes Placements Top/Up,P12,Children's Services,DAVID SHAW,02/11/2016,2200.00
Bath & North East Somerset Council,10826220,LP5,Software Support,P10,Finance & Efficiency,CACI LIMITED,02/11/2016,2331.79
Bath & North East Somerset Council,10826105,3G1,Grants/Advances,P11,Adult Social Care & Health,OASIS BATHROOM CENTRE,02/11/2016,2531.47
Bath & North East Somerset Council,80639304,LM2,Foster Carer Allowances,P12,Children's Services,REDACTED,02/11/2016,100.00
Bath & North East Somerset Council,80639304,LM2,Foster Carer Allowances,P12,Children's Services,REDACTED,02/11/2016,100.00
Bath & North East Somerset Council,80639304,KX9,Other Transport Related,P12,Children's Services,REDACTED,02/11/2016,284.14
Bath & North East Somerset Council,80639304,LM2,Foster Carer Allowances,P12,Children's Services,REDACTED,02/11/2016,325.78
Bath & North East Somerset Council,80639304,LM2,Foster Carer Allowances,P12,Children's Services,REDACTED,02/11/2016,325.78
Bath & North East Somerset Council,80639314,KE3,Transport & Travel,P12,Children's Services,REDACTED,02/11/2016,52.80
Bath & North East Somerset Council,10826114,LA5,Materials,P13,Economic Development,ARANTXA GARCIA ALONSO,02/11/2016,2650.00
Bath & North East Somerset Council,80639314,LM2,Foster Carer Allowances,P12,Children's Services,REDACTED,02/11/2016,100.00
Bath & North East Somerset Council,80639314,LM2,Foster Carer Allowances,P12,Children's Services,REDACTED,02/11/2016,250.00
Bath & North East Somerset Council,80639314,LM2,Foster Carer Allowances,P12,Children's Services,REDACTED,02/11/2016,493.36
Bath & North East Somerset Council,10826104,3G1,Grants/Advances,P11,Adult Social Care & Health,OASIS BATHROOM CENTRE,02/11/2016,2700.00
Bath & North East Somerset Council,10826103,3G1,Grants/Advances,P11,Adult Social Care & Health,OASIS BATHROOM CENTRE,02/11/2016,2710.00
Bath & North East Somerset Council,10825836,LJ4,Contracts,P11,Adult Social Care & Health,UNIVERSITY HOSPITALS BRISTOL,02/11/2016,2763.20
Bath & North East Somerset Council,10826138,3F7,External Fees,P12,Children's Services,BBA ARCHITECTS,02/11/2016,2969.20
Bath & North East Somerset Council,80639229,LM2,Foster Carer Allowances,P12,Children's Services,REDACTED,02/11/2016,100.00
Bath & North East Somerset Council,80639229,LL7,Residence Orders/CAO's,P12,Children's Services,REDACTED,02/11/2016,451.96
Bath & North East Somerset Council,80639229,LM2,Foster Carer Allowances,P12,Children's Services,REDACTED,02/11/2016,493.36
Bath & North East Somerset Council,10825763,LA1,Equipment Purchase (Non Medical),P11,Adult Social Care & Health,SIRONA CARE & HEALTH C.I.C.,02/11/2016,6681.14
Bath & North East Somerset Council,10825763,LA1,Equipment Purchase (Non Medical),P11,Adult Social Care & Health,SIRONA CARE & HEALTH C.I.C.,02/11/2016,54554.78
Bath & North East Somerset Council,10826229,LJ4,Contracts,P11,Adult Social Care & Health,SIRONA CARE & HEALTH C.I.C.,02/11/2016,335738.42
Bath & North East Somerset Council,10826144,LM2,Foster Carer Allowances,P12,Children's Services,BLUE SKY FOSTERING LTD C/O FBS,02/11/2016,3150.00
Bath & North East Somerset Council,10826087,HV1,Contract Cleaning,P10,Finance & Efficiency,PHS GROUP LTD,02/11/2016,3192.00
Bath & North East Somerset Council,10826329,LM2,Foster Carer Allowances,P12,Children's Services,REGIONAL FOSTER PLACEMENTS (SOUTH WEST) LIMITED,02/11/2016,3196.20
Bath & North East Somerset Council,10826311,LJ4,Contracts,P12,Children's Services,BATH AREA PLAY PROJECT,02/11/2016,3250.00
Bath & North East Somerset Council,10826020,3G1,Grants/Advances,P11,Adult Social Care & Health,P & J SHOWERS LTD,02/11/2016,3310.00
Bath & North East Somerset Council,10826141,LK1,Fees,P13,Economic Development,IMMIX MEDIA LTD,02/11/2016,3340.00
Bath & North East Somerset Council,10826141,LH5,Marketing,P13,Economic Development,IMMIX MEDIA LTD,02/11/2016,3340.00
Bath & North East Somerset Council,10826083,3F7,External Fees,P13,Economic Development,CAPITA SYMONDS,02/11/2016,3389.00
Bath & North East Somerset Council,10826106,3G1,Grants/Advances,P11,Adult Social Care & Health,P & J SHOWERS LTD,02/11/2016,3400.00
Bath & North East Somerset Council,10826102,3G1,Grants/Advances,P11,Adult Social Care & Health,OASIS BATHROOM CENTRE,02/11/2016,3445.00
Bath & North East Somerset Council,10826332,LM2,Foster Carer Allowances,P12,Children's Services,FIVE RIVERS CHILD CARE LTD,02/11/2016,3552.86
Bath & North East Somerset Council,10826396,KB1,Hire of Vehicles,P14,Community Services,SHB HIRE LTD,02/11/2016,3653.55
Bath & North East Somerset Council,10826017,3G1,Grants/Advances,P11,Adult Social Care & Health,P & J SHOWERS LTD,02/11/2016,3765.00
Bath & North East Somerset Council,10826278,LJ4,Contracts,P12,Children's Services,RELATE MID WILTSHIRE,02/11/2016,3824.60
Bath & North East Somerset Council,10825676,HK1,Highway Maintenance,P01,Transport,SAKNEL HIGHWAYS STRUCTURES CONTRACTOR,02/11/2016,3894.00
Bath & North East Somerset Council,10826224,LK2,Licences (non IT),P10,Finance & Efficiency,CAPITA BUSINESS SERVICES LTD,02/11/2016,3990.00
Bath & North East Somerset Council,10826112,LH3,Publicity,P14,Community Services,THE TRUSSELL TRUST,02/11/2016,4215.44
Bath & North East Somerset Council,10826099,LJ4,Contracts,P01,Transport,MCC-PATROL,02/11/2016,4250.40
Bath & North East Somerset Council,10826328,LM1,Volunt Homes Placements Top/Up,P12,Children's Services,RUSKIN MILL FURTHER EDUC CENTR,02/11/2016,4340.00
Bath & North East Somerset Council,10825706,LJ1,Consultants Fees,P14,Community Services,CAPITA SYMONDS,02/11/2016,4765.90
Bath & North East Somerset Council,10826018,3G1,Grants/Advances,P11,Adult Social Care & Health,STANNAH LIFT SERVICES LIMITED,02/11/2016,4940.00
Bath & North East Somerset Council,10826326,HA6,Planned Maintenance PCB,P10,Finance & Efficiency,N K S CONTRACTS LTD,02/11/2016,5000.00
Bath & North East Somerset Council,10826123,HA2,Servicing,P13,Economic Development,HORDERS,02/11/2016,5061.37
Bath & North East Somerset Council,10826023,3G1,Grants/Advances,P11,Adult Social Care & Health,DOLPHIN LIFTS (WESTERN) LTD,02/11/2016,5085.00
Bath & North East Somerset Council,10826350,LX6,Bus Revenue Support,P01,Transport,ABUS,02/11/2016,5170.35
Bath & North East Somerset Council,10826145,LM2,Foster Carer Allowances,P12,Children's Services,FOSTERING MATTERS LTD,02/11/2016,5208.00
Bath & North East Somerset Council,80639228,LM2,Foster Carer Allowances,P12,Children's Services,REDACTED,02/11/2016,100.00
Bath & North East Somerset Council,80639228,LA1,Equipment Purchase (Non Medical),P12,Children's Services,REDACTED,02/11/2016,170.00
Bath & North East Somerset Council,10825607,HK1,Highway Maintenance,P01,Transport,DYNNIQ UK LTD,02/11/2016,5597.83
Bath & North East Somerset Council,80639228,LM2,Foster Carer Allowances,P12,Children's Services,REDACTED,02/11/2016,286.00
Bath & North East Somerset Council,10826356,KA3,Fuel,P14,Community Services,FORD FUELS LTD,02/11/2016,5729.05
Bath & North East Somerset Council,10825749,7Y2,Other Employee Costs - External Bodies,,,BRISTOL CITY COUNCIL,02/11/2016,7000.00
Bath & North East Somerset Council,10826139,LJ1,Consultants Fees,P09,Homes & Planning,WYG ENVIRONMENT PLANNING TRANSPORT LTD,02/11/2016,7149.00
Bath & North East Somerset Council,10826148,3C4,Building Works,P12,Children's Services,MANNINGS FACILITIES MANAGEMENT LTD,02/11/2016,7474.64
Bath & North East Somerset Council,10826024,LK2,Licences (non IT),P10,Finance & Efficiency,INFORM CPI LTD,02/11/2016,8250.00
Bath & North East Somerset Council,80639282,KE3,Transport & Travel,P12,Children's Services,REDACTED,02/11/2016,297.00
Bath & North East Somerset Council,80639282,LM2,Foster Carer Allowances,P12,Children's Services,REDACTED,02/11/2016,370.02
Bath & North East Somerset Council,10826272,HP1,Rent Payable,P12,Children's Services,PRIME STUDENT LIVING (ST LAWRENCE HOUSE CLIENT ACCOUNT),02/11/2016,9180.00
Bath & North East Somerset Council,80639282,LM2,Foster Carer Allowances,P12,Children's Services,REDACTED,02/11/2016,770.00
Bath & North East Somerset Council,10826305,LJ4,Contracts,P12,Children's Services,BATH AREA PLAY PROJECT,02/11/2016,10000.00
Bath & North East Somerset Council,10826335,LJ4,Contracts,P12,Children's Services,BATH AREA PLAY PROJECT,02/11/2016,10250.00
Bath & North East Somerset Council,80638499,LK4,Nursery/Childcare Vouchers,P12,Children's Services,BUMBLES DAYCARE T/A WELTON SCHOOL PLAY,02/11/2016,10787.84
Bath & North East Somerset Council,10826323,LJ4,Contracts,P12,Children's Services,GLOBAL MEDIATION,02/11/2016,11250.00
Bath & North East Somerset Council,10825966,LJ4,Contracts,P12,Children's Services,RELATE MID WILTSHIRE,02/11/2016,11473.80
Bath & North East Somerset Council,10825580,XD2,Contributions,P13,Economic Development,BRISTOL CITY COUNCIL,02/11/2016,14726.00
Bath & North East Somerset Council,10826322,LJ4,Contracts,P12,Children's Services,TIME2SHARE,02/11/2016,15000.00
Bath & North East Somerset Council,10826336,LJ3,Other Services to the Council,P12,Children's Services,BLAZIE,02/11/2016,15080.00
Bath & North East Somerset Council,10826182,KA3,Fuel,P14,Community Services,FORD FUELS LTD,02/11/2016,18205.17
Bath & North East Somerset Council,10826227,LJ4,Contracts,P11,Adult Social Care & Health,SIRONA CARE SERVICES LTD,02/11/2016,18343.03
Bath & North East Somerset Council,10826324,LJ4,Contracts,P11,Adult Social Care & Health,SIRONA CARE SERVICES LTD,02/11/2016,18500.00
Bath & North East Somerset Council,10826365,LX6,Bus Revenue Support,P01,Transport,CT COACHES,02/11/2016,19020.60
Bath & North East Somerset Council,10826312,LJ4,Contracts,P12,Children's Services,BATH AREA PLAY PROJECT,02/11/2016,20250.00
Bath & North East Somerset Council,10826317,LN5,Data Lines,P10,Finance & Efficiency,SOUTH WEST COMMUNICATIONS GROUP LTD,02/11/2016,21538.35
Bath & North East Somerset Council,10826134,PB4,Payments to Private Contractors,P14,Community Services,GENECO,02/11/2016,21652.94
Bath & North East Somerset Council,10826364,LK1,Fees,P13,Economic Development,THE BATH PRESERVATION TRUST LTD,02/11/2016,25000.00
Bath & North East Somerset Council,10826217,LM1,Volunt Homes Placements Top/Up,P12,Children's Services,NEW FOREST CARE LTD,02/11/2016,33200.00
Bath & North East Somerset Council,10826140,3F7,External Fees,P14,Community Services,CORE CONSTRUCTION OF BATH LTD,02/11/2016,38557.79
Bath & North East Somerset Council,10826347,LJ4,Contracts,P12,Children's Services,OFF THE RECORD (B&NES),02/11/2016,46500.00
Bath & North East Somerset Council,10824642,LK1,Fees,P13,Economic Development,BATH TOURISM PLUS,02/11/2016,59000.00
Bath & North East Somerset Council,10826154,LJ1,Consultants Fees,P12,Children's Services,LIQUIDLOGIC LIMITED,02/11/2016,63000.00
Bath & North East Somerset Council,10826357,LJ4,Contracts,P12,Children's Services,OFF THE RECORD (B&NES),02/11/2016,69177.75
Bath & North East Somerset Council,10826325,LJ4,Contracts,P11,Adult Social Care & Health,SIRONA CARE SERVICES LTD,02/11/2016,75855.45
Bath & North East Somerset Council,10824637,LK1,Fees,P13,Economic Development,BATH TOURISM PLUS,02/11/2016,83000.00
Bath & North East Somerset Council,10826330,LJ4,Contracts,P11,Adult Social Care & Health,SIRONA CARE SERVICES LTD,02/11/2016,188825.05
Bath & North East Somerset Council,10826331,LJ4,Contracts,P11,Adult Social Care & Health,SIRONA CARE SERVICES LTD,02/11/2016,428296.29
Bath & North East Somerset Council,10826327,LJ4,Contracts,P11,Adult Social Care & Health,SIRONA CARE SERVICES LTD,02/11/2016,531422.04
Bath & North East Somerset Council,10825950,HA2,Servicing,P13,Economic Development,ZETA COMPLIANCE SERVICES LTD,03/11/2016,48.30
Bath & North East Somerset Council,10825950,HA2,Servicing,P13,Economic Development,ZETA COMPLIANCE SERVICES LTD,03/11/2016,48.30
Bath & North East Somerset Council,10825950,HA2,Servicing,P13,Economic Development,ZETA COMPLIANCE SERVICES LTD,03/11/2016,48.30
Bath & North East Somerset Council,10825950,HA2,Servicing,P13,Economic Development,ZETA COMPLIANCE SERVICES LTD,03/11/2016,48.30
Bath & North East Somerset Council,10826531,KA2,Running Costs,P14,Community Services,P & L INSPECTIONS LTD,03/11/2016,54.93
Bath & North East Somerset Council,10826531,KA2,Running Costs,P14,Community Services,P & L INSPECTIONS LTD,03/11/2016,54.93
Bath & North East Somerset Council,10825456,HA1,Responsive Maintenance,P10,Finance & Efficiency,N K S CONTRACTS LTD,03/11/2016,55.44
Bath & North East Somerset Council,10826531,KA2,Running Costs,P14,Community Services,P & L INSPECTIONS LTD,03/11/2016,81.19
Bath & North East Somerset Council,10826531,KA2,Running Costs,P14,Community Services,P & L INSPECTIONS LTD,03/11/2016,81.19
Bath & North East Somerset Council,10826531,KA2,Running Costs,P14,Community Services,P & L INSPECTIONS LTD,03/11/2016,81.19
Bath & North East Somerset Council,10826531,KA2,Running Costs,P14,Community Services,P & L INSPECTIONS LTD,03/11/2016,81.19
Bath & North East Somerset Council,10826531,KA2,Running Costs,P14,Community Services,P & L INSPECTIONS LTD,03/11/2016,81.19
Bath & North East Somerset Council,10826531,KA2,Running Costs,P14,Community Services,P & L INSPECTIONS LTD,03/11/2016,81.19
Bath & North East Somerset Council,10826301,LH3,Publicity,P04,Leader,MR DARREN CAVENEY CREATIVE COMMUNICATORS LTD,03/11/2016,158.80
Bath & North East Somerset Council,10825950,HA2,Servicing,P13,Economic Development,ZETA COMPLIANCE SERVICES LTD,03/11/2016,195.00
Bath & North East Somerset Council,10826468,KD1,Employees Public Transport,P10,Finance & Efficiency,CT COACHES,03/11/2016,232.50
Bath & North East Somerset Council,10826388,LV2,Contributions to Organisations,P13,Economic Development,BATH FOLK FESTIVAL,03/11/2016,500.00
Bath & North East Somerset Council,10826468,KE3,Transport & Travel,P10,Finance & Efficiency,CT COACHES,03/11/2016,248.00
Bath & North East Somerset Council,10825456,HA1,Responsive Maintenance,P14,Community Services,N K S CONTRACTS LTD,03/11/2016,249.75
Bath & North East Somerset Council,10826468,KD1,Employees Public Transport,P10,Finance & Efficiency,CT COACHES,03/11/2016,256.00
Bath & North East Somerset Council,10825456,LA3,Equipment Maintenance (Non Medical),P14,Community Services,N K S CONTRACTS LTD,03/11/2016,271.20
Bath & North East Somerset Council,10825456,HA1,Responsive Maintenance,P10,Finance & Efficiency,N K S CONTRACTS LTD,03/11/2016,275.98
Bath & North East Somerset Council,10825456,3C4,Building Works,P14,Community Services,N K S CONTRACTS LTD,03/11/2016,281.27
Bath & North East Somerset Council,10826301,LH3,Publicity,P04,Leader,MR DARREN CAVENEY CREATIVE COMMUNICATORS LTD,03/11/2016,300.00
Bath & North East Somerset Council,10825456,HA1,Responsive Maintenance,P13,Economic Development,N K S CONTRACTS LTD,03/11/2016,303.75
Bath & North East Somerset Council,10826468,KE3,Transport & Travel,P10,Finance & Efficiency,CT COACHES,03/11/2016,315.00
Bath & North East Somerset Council,80639338,PG1,Rent Allowances,P10,Finance & Efficiency,CURO,03/11/2016,1000.00
Bath & North East Somerset Council,10825913,HA2,Servicing,P10,Finance & Efficiency,MANNINGS FACILITIES MANAGEMENT LTD,03/11/2016,427.81
Bath & North East Somerset Council,10825347,HA1,Responsive Maintenance,P10,Finance & Efficiency,ADT FIRE & SECURITY PLC,03/11/2016,436.00
Bath & North East Somerset Council,80641353,PG1,Rent Allowances,P10,Finance & Efficiency,CURO,03/11/2016,65910.29
Bath & North East Somerset Council,80641355,PG1,Rent Allowances,P10,Finance & Efficiency,CURO,03/11/2016,1619663.53
Bath & North East Somerset Council,10826467,HP3,Room Hire Charges,Z98,West of England Partnership,WATERSHED ARTS TRUST LTD,03/11/2016,455.00
Bath & North East Somerset Council,10826431,LF4,Stationery,P12,Children's Services,CANVEY ISLAND BINDERY CO LTD,03/11/2016,457.40
Bath & North East Somerset Council,10826466,HK1,Highway Maintenance,P01,Transport,BENDREY BROS,03/11/2016,496.15
Bath & North East Somerset Council,10826444,LJ4,Contracts,P14,Community Services,FAUN ZOELLOR UK LTD,03/11/2016,506.45
Bath & North East Somerset Council,10826300,EG3,Recruitment Advertising,P12,Children's Services,ALL IN ONE MARKETING LIMITED,03/11/2016,530.40
Bath & North East Somerset Council,10825349,HA1,Responsive Maintenance,P10,Finance & Efficiency,ADT FIRE & SECURITY PLC,03/11/2016,534.00
Bath & North East Somerset Council,10826428,KB1,Hire of Vehicles,P14,Community Services,BURNT TREE VEHICLE HIRE,03/11/2016,537.60
Bath & North East Somerset Council,10825950,HA2,Servicing,P10,Finance & Efficiency,ZETA COMPLIANCE SERVICES LTD,03/11/2016,579.60
Bath & North East Somerset Council,10826377,LK1,Fees,P12,Children's Services,A K CRUTCHFIELD,03/11/2016,593.70
Bath & North East Somerset Council,80639415,LK4,Nursery/Childcare Vouchers,P12,Children's Services,DRAGONFLY EDUCATION TRUST PEASEDOWN,03/11/2016,595.46
Bath & North East Somerset Council,80639448,LK4,Nursery/Childcare Vouchers,P12,Children's Services,LITTLE WILLOW DAY NURSERY,03/11/2016,614.80
Bath & North East Somerset Council,80639418,LK4,Nursery/Childcare Vouchers,P12,Children's Services,LEARNING TREE DAY NURSERY,03/11/2016,657.47
Bath & North East Somerset Council,80640682,PG1,Rent Allowances,P10,Finance & Efficiency,DIMENSIONS (UK) LTD,03/11/2016,1895.20
Bath & North East Somerset Council,10825392,HN2,Gas,P10,Finance & Efficiency,GAZPROM MARKETING & TRADING RETAIL LTD T/A GAZPROM ENERGY,03/11/2016,677.71
Bath & North East Somerset Council,10825797,LJ2,Legal Fees,P12,Children's Services,MISS CHARLOTTE PITTS,03/11/2016,700.00
Bath & North East Somerset Council,10826221,LM8,Home Care,P11,Adult Social Care & Health,REDACTED,03/11/2016,6414.98
Bath & North East Somerset Council,10825373,HN2,Gas,P10,Finance & Efficiency,GAZPROM MARKETING & TRADING RETAIL LTD T/A GAZPROM ENERGY,03/11/2016,738.61
Bath & North East Somerset Council,80639420,LK4,Nursery/Childcare Vouchers,P12,Children's Services,WESTFIELD PRIMARY SCHOOL,03/11/2016,779.10
Bath & North East Somerset Council,80639410,LK4,Nursery/Childcare Vouchers,P12,Children's Services,FIRST STEPS NURSERY,03/11/2016,1090.74
Bath & North East Somerset Council,80639461,LK4,Nursery/Childcare Vouchers,P12,Children's Services,FIRST STEPS NURSERY,03/11/2016,1326.06
Bath & North East Somerset Council,80639447,LK4,Nursery/Childcare Vouchers,P12,Children's Services,CASTLE PRIMARY SCHOOL,03/11/2016,868.14
Bath & North East Somerset Council,10826255,PB4,Payments to Private Contractors,P14,Community Services,R J KING & SONS,03/11/2016,893.50
Bath & North East Somerset Council,80641357,LM3,Residential Care,P11,Adult Social Care & Health,INSPIRED HOMES NETWORK,03/11/2016,36361.03
Bath & North East Somerset Council,10826414,3F7,External Fees,P12,Children's Services,M D BUILDING SERVICES LTD,03/11/2016,933.46
Bath & North East Somerset Council,10826441,LK1,Fees,P12,Children's Services,ENHANCE EHC LTD,03/11/2016,968.00
Bath & North East Somerset Council,10826503,3F7,External Fees,P12,Children's Services,BBA ARCHITECTS,03/11/2016,975.00
Bath & North East Somerset Council,10826158,LA3,Equipment Maintenance (Non Medical),P13,Economic Development,MOBYDOC,03/11/2016,990.00
Bath & North East Somerset Council,80640675,PG1,Rent Allowances,P10,Finance & Efficiency,JULIAN HOUSE,03/11/2016,4504.03
Bath & North East Somerset Council,80640688,PG1,Rent Allowances,P10,Finance & Efficiency,KNIGHTSTONE COMMUNITY HOMES,03/11/2016,997.17
Bath & North East Somerset Council,80640683,PG1,Rent Allowances,P10,Finance & Efficiency,KNIGHTSTONE HOUSING ASSOCIATION,03/11/2016,794.40
Bath & North East Somerset Council,10825456,HA1,Responsive Maintenance,P10,Finance & Efficiency,N K S CONTRACTS LTD,03/11/2016,1040.63
Bath & North East Somerset Council,10826488,3F7,External Fees,P12,Children's Services,BBA ARCHITECTS,03/11/2016,1125.00
Bath & North East Somerset Council,10825650,HV1,Contract Cleaning,P10,Finance & Efficiency,DIRECT CLEANING SERVICES UK LTD,03/11/2016,1131.99
Bath & North East Somerset Council,80641356,LM3,Residential Care,P11,Adult Social Care & Health,MEHODIST HOMES,03/11/2016,9514.28
Bath & North East Somerset Council,10826403,LW9,Other Expenses,P10,Finance & Efficiency,TUSKER DIRECT LTD,03/11/2016,1236.69
Bath & North East Somerset Council,80640943,PG1,Rent Allowances,P10,Finance & Efficiency,REDACTED,03/11/2016,522.98
Bath & North East Somerset Council,80639829,PG1,Rent Allowances,P10,Finance & Efficiency,REDACTED,03/11/2016,509.36
Bath & North East Somerset Council,80639795,PG1,Rent Allowances,P10,Finance & Efficiency,REDACTED,03/11/2016,555.60
Bath & North East Somerset Council,80640081,PG1,Rent Allowances,P10,Finance & Efficiency,REDACTED,03/11/2016,554.50
Bath & North East Somerset Council,80640559,PG1,Rent Allowances,P10,Finance & Efficiency,REDACTED,03/11/2016,1050.38
Bath & North East Somerset Council,80641345,PG1,Rent Allowances,P10,Finance & Efficiency,REDACTED,03/11/2016,542.96
Bath & North East Somerset Council,80641297,PG1,Rent Allowances,P10,Finance & Efficiency,REDACTED,03/11/2016,783.45
Bath & North East Somerset Council,80639940,PG1,Rent Allowances,P10,Finance & Efficiency,REDACTED,03/11/2016,1000.00
Bath & North East Somerset Council,80641282,PG1,Rent Allowances,P10,Finance & Efficiency,REDACTED,03/11/2016,535.16
Bath & North East Somerset Council,80640129,PG1,Rent Allowances,P10,Finance & Efficiency,REDACTED,03/11/2016,562.08
Bath & North East Somerset Council,80641354,PG1,Rent Allowances,P10,Finance & Efficiency,REDACTED,03/11/2016,598.29
Bath & North East Somerset Council,80640697,PG1,Rent Allowances,P10,Finance & Efficiency,REDACTED,03/11/2016,1013.52
Bath & North East Somerset Council,80640752,PG1,Rent Allowances,P10,Finance & Efficiency,REDACTED,03/11/2016,1211.90
Bath & North East Somerset Council,80639428,LK4,Nursery/Childcare Vouchers,P12,Children's Services,TWERTON INFANT SCHOOL,03/11/2016,1380.12
Bath & North East Somerset Council,10826518,3F7,External Fees,P12,Children's Services,BBA ARCHITECTS,03/11/2016,1410.50
Bath & North East Somerset Council,80640224,PG1,Rent Allowances,P10,Finance & Efficiency,REDACTED,03/11/2016,553.84
Bath & North East Somerset Council,10826511,DB1,Agency Staff,P01,Transport,CEEMA LTD,03/11/2016,1435.50
Bath & North East Somerset Council,80640983,PG1,Rent Allowances,P10,Finance & Efficiency,REDACTED,03/11/2016,562.76
Bath & North East Somerset Council,80640694,PG1,Rent Allowances,P10,Finance & Efficiency,REDACTED,03/11/2016,3166.31
Bath & North East Somerset Council,80640803,PG1,Rent Allowances,P10,Finance & Efficiency,REDACTED,03/11/2016,602.44
Bath & North East Somerset Council,80640713,PG1,Rent Allowances,P10,Finance & Efficiency,REDACTED,03/11/2016,507.70
Bath & North East Somerset Council,80640710,PG1,Rent Allowances,P10,Finance & Efficiency,REDACTED,03/11/2016,525.00
Bath & North East Somerset Council,80640039,PG1,Rent Allowances,P10,Finance & Efficiency,REDACTED,03/11/2016,504.32
Bath & North East Somerset Council,80641117,PG1,Rent Allowances,P10,Finance & Efficiency,REDACTED,03/11/2016,578.30
Bath & North East Somerset Council,80640667,PG1,Rent Allowances,P10,Finance & Efficiency,REDACTED,03/11/2016,500.52
Bath & North East Somerset Council,10825950,HA2,Servicing,P10,Finance & Efficiency,ZETA COMPLIANCE SERVICES LTD,03/11/2016,1638.56
Bath & North East Somerset Council,80640287,PG1,Rent Allowances,P10,Finance & Efficiency,REDACTED,03/11/2016,648.24
Bath & North East Somerset Council,80640397,PG1,Rent Allowances,P10,Finance & Efficiency,REDACTED,03/11/2016,586.04
Bath & North East Somerset Council,80641217,PG1,Rent Allowances,P10,Finance & Efficiency,REDACTED,03/11/2016,554.50
Bath & North East Somerset Council,80640282,PG1,Rent Allowances,P10,Finance & Efficiency,REDACTED,03/11/2016,530.76
Bath & North East Somerset Council,80641295,PG1,Rent Allowances,P10,Finance & Efficiency,REDACTED,03/11/2016,532.20
Bath & North East Somerset Council,10826386,LA1,Equipment Purchase (Non Medical),P12,Children's Services,R82 UK LTD,03/11/2016,1739.00
Bath & North East Somerset Council,10826397,LK1,Fees,P13,Economic Development,KEYNSHAM MUSIC FESTIVAL ASSOCIATION LTD,03/11/2016,1750.00
Bath & North East Somerset Council,10826370,HN2,Gas,P10,Finance & Efficiency,GAZPROM MARKETING & TRADING RETAIL LTD T/A GAZPROM ENERGY,03/11/2016,1769.62
Bath & North East Somerset Council,10825456,3C4,Building Works,P10,Finance & Efficiency,N K S CONTRACTS LTD,03/11/2016,1788.54
Bath & North East Somerset Council,10826421,KB1,Hire of Vehicles,P01,Transport,LONDON HIRE LTD,03/11/2016,1799.84
Bath & North East Somerset Council,80639452,LK4,Nursery/Childcare Vouchers,P12,Children's Services,ORCHARD LEA NURSERY LTD [KEYNSHAM],03/11/2016,556.50
Bath & North East Somerset Council,10825581,HA2,Servicing,P10,Finance & Efficiency,ADT FIRE & SECURITY PLC,03/11/2016,1901.59
Bath & North East Somerset Council,10825950,HA2,Servicing,P10,Finance & Efficiency,ZETA COMPLIANCE SERVICES LTD,03/11/2016,1980.00
Bath & North East Somerset Council,10826434,LA1,Equipment Purchase (Non Medical),P14,Community Services,GEORGE CARR & SONS (SAWS) LTD,03/11/2016,2126.30
Bath & North East Somerset Council,10826482,3F7,External Fees,P14,Community Services,MACE LIMITED,03/11/2016,2244.00
Bath & North East Somerset Council,10826477,LK1,Fees,P14,Community Services,BOLDSCAN LTD,03/11/2016,2320.64
Bath & North East Somerset Council,10825950,HA2,Servicing,P10,Finance & Efficiency,ZETA COMPLIANCE SERVICES LTD,03/11/2016,2340.00
Bath & North East Somerset Council,10825456,HA1,Responsive Maintenance,P10,Finance & Efficiency,N K S CONTRACTS LTD,03/11/2016,2383.65
Bath & North East Somerset Council,10826380,LK1,Fees,P13,Economic Development,BATH FILM FESTIVAL,03/11/2016,2500.00
Bath & North East Somerset Council,80639436,LK4,Nursery/Childcare Vouchers,P12,Children's Services,ROUNDHILL PRIMARY SCHOOL,03/11/2016,1113.00
Bath & North East Somerset Council,10826493,LM2,Foster Carer Allowances,P12,Children's Services,FIVE RIVERS CHILD CARE LTD,03/11/2016,2605.43
Bath & North East Somerset Council,10825950,HA2,Servicing,P10,Finance & Efficiency,ZETA COMPLIANCE SERVICES LTD,03/11/2016,2608.20
Bath & North East Somerset Council,80640686,PG1,Rent Allowances,P10,Finance & Efficiency,S.W.A.L.L.O.W.,03/11/2016,542.60
Bath & North East Somerset Council,80640680,PG1,Rent Allowances,P10,Finance & Efficiency,SANCTUARY HOUSING ASSOCIATION,03/11/2016,1608.80
Bath & North East Somerset Council,10825913,HA2,Servicing,P13,Economic Development,MANNINGS FACILITIES MANAGEMENT LTD,03/11/2016,2954.61
Bath & North East Somerset Council,10826515,3F7,External Fees,P12,Children's Services,BBA ARCHITECTS,03/11/2016,3135.00
Bath & North East Somerset Council,80640687,PG1,Rent Allowances,P10,Finance & Efficiency,SOVEREIGN HOUSING ASSOCIATION,03/11/2016,932.84
Bath & North East Somerset Council,80639437,LK4,Nursery/Childcare Vouchers,P12,Children's Services,ST SAVIOURS C OF E INFANTS SCHOOL,03/11/2016,503.50
Bath & North East Somerset Council,10825581,HA2,Servicing,P10,Finance & Efficiency,ADT FIRE & SECURITY PLC,03/11/2016,3516.00
Bath & North East Somerset Council,10826501,LJ4,Contracts,P11,Adult Social Care & Health,SIRONA CARE SERVICES LTD,03/11/2016,3750.00
Bath & North East Somerset Council,10826453,3N7,Misc. Costs,P01,Transport,WESTCOTEC LTD,03/11/2016,4200.00
Bath & North East Somerset Council,10826533,LJ4,Contracts,P11,Adult Social Care & Health,BANES ENHANCED MEDICAL SERVICE LTD,03/11/2016,5000.00
Bath & North East Somerset Council,10826399,LK1,Fees,P13,Economic Development,MACKEREL SKY EVENTS LTD,03/11/2016,5000.00
Bath & North East Somerset Council,10826370,HN2,Gas,P10,Finance & Efficiency,GAZPROM MARKETING & TRADING RETAIL LTD T/A GAZPROM ENERGY,03/11/2016,5163.36
Bath & North East Somerset Council,10826472,KA1,Repairs & Maintenance,P14,Community Services,ATS EUROMASTER LTD,03/11/2016,5829.35
Bath & North East Somerset Council,10826510,DB1,Agency Staff,P01,Transport,MOTT MACDONALD LIMITED,03/11/2016,6093.85
Bath & North East Somerset Council,10826455,HP3,Room Hire Charges,P10,Finance & Efficiency,AQUATERRA LEISURE SERVICES LTD,03/11/2016,6217.95
Bath & North East Somerset Council,10825950,HA2,Servicing,P10,Finance & Efficiency,ZETA COMPLIANCE SERVICES LTD,03/11/2016,7180.00
Bath & North East Somerset Council,10826507,LJ3,Other Services to the Council,Z98,West of England Partnership,SCIENCE RESEARCH FOUNDATION,03/11/2016,7869.48
Bath & North East Somerset Council,10826403,LW9,Other Expenses,P10,Finance & Efficiency,TUSKER DIRECT LTD,03/11/2016,7970.55
Bath & North East Somerset Council,10826457,EA1,Training,P12,Children's Services,ME LEARNING LTD,03/11/2016,8550.00
Bath & North East Somerset Council,10826487,EC9,Other Employee Expenses,P10,Finance & Efficiency,HM PARTNERSHIP LLP,03/11/2016,9526.14
Bath & North East Somerset Council,10826499,LV2,Contributions to Organisations,P11,Adult Social Care & Health,POLICE & CRIME COMMISSIONER FOR AVON &,03/11/2016,11183.00
Bath & North East Somerset Council,10825456,HA1,Responsive Maintenance,P10,Finance & Efficiency,N K S CONTRACTS LTD,03/11/2016,11285.03
Bath & North East Somerset Council,10826456,LJ4,Contracts,P12,Children's Services,BATH AREA PLAY PROJECT,03/11/2016,16333.34
Bath & North East Somerset Council,10826498,LJ4,Contracts,P11,Adult Social Care & Health,SIRONA CARE SERVICES LTD,03/11/2016,23380.00
Bath & North East Somerset Council,10826491,LJ4,Contracts,P11,Adult Social Care & Health,SIRONA CARE SERVICES LTD,03/11/2016,23412.08
Bath & North East Somerset Council,10826495,LJ4,Contracts,P11,Adult Social Care & Health,SIRONA CARE SERVICES LTD,03/11/2016,24290.42
Bath & North East Somerset Council,10826496,LJ4,Contracts,P11,Adult Social Care & Health,SIRONA CARE SERVICES LTD,03/11/2016,26055.25
Bath & North East Somerset Council,10826438,3F7,External Fees,P13,Economic Development,ALLIES AND MORRISON,03/11/2016,30000.00
Bath & North East Somerset Council,10825456,HA1,Responsive Maintenance,P10,Finance & Efficiency,N K S CONTRACTS LTD,03/11/2016,31040.81
Bath & North East Somerset Council,10826530,3F7,External Fees,P01,Transport,VIX TECHNOLOGY UK LIMITED,03/11/2016,41094.87
Bath & North East Somerset Council,10826497,LJ4,Contracts,P11,Adult Social Care & Health,SIRONA CARE SERVICES LTD,03/11/2016,49056.75
Bath & North East Somerset Council,80641358,RR8,Internal Schools Transfers Paid,P12,Children's Services,PALLADIAN ACADEMY TRUST RE ST MARTIN'S GARDEN PRIMARY SCHOOL,03/11/2016,100000.00
Bath & North East Somerset Council,10826500,LJ4,Contracts,P11,Adult Social Care & Health,SIRONA CARE SERVICES LTD,03/11/2016,198470.33
Bath & North East Somerset Council,10826592,LW9,Other Expenses,P12,Children's Services,B&NES COUNCIL -  OFFICE SERVICES,04/11/2016,593.86
Bath & North East Somerset Council,10826592,LW9,Other Expenses,P12,Children's Services,B&NES COUNCIL -  OFFICE SERVICES,04/11/2016,4162.70
Bath & North East Somerset Council,10826443,LW9,Other Expenses,P12,Children's Services,B&NES COUNCIL -  OFFICE SERVICES,04/11/2016,5446.77
Bath & North East Somerset Council,10826463,KD1,Employees Public Transport,P10,Finance & Efficiency,STEVE WARREN TRANSPORT SERVICES LTD,04/11/2016,150.00
Bath & North East Somerset Council,10826463,KD1,Employees Public Transport,P10,Finance & Efficiency,STEVE WARREN TRANSPORT SERVICES LTD,04/11/2016,225.00
Bath & North East Somerset Council,80641427,LM8,Home Care,P11,Adult Social Care & Health,REDACTED,04/11/2016,609.28
Bath & North East Somerset Council,80641425,LM8,Home Care,P11,Adult Social Care & Health,BLUEBIRD CARE (BATH),04/11/2016,5007.58
Bath & North East Somerset Council,10826469,KD1,Employees Public Transport,P10,Finance & Efficiency,WELTON CABS,04/11/2016,288.00
Bath & North East Somerset Council,10826577,LJ4,Contracts,P11,Adult Social Care & Health,CARE SOUTH,04/11/2016,17268.16
Bath & North East Somerset Council,10826579,LJ4,Contracts,P11,Adult Social Care & Health,CARE SOUTH,04/11/2016,17268.16
Bath & North East Somerset Council,10826578,LJ4,Contracts,P11,Adult Social Care & Health,CARE SOUTH,04/11/2016,21585.20
Bath & North East Somerset Council,80641421,LM8,Home Care,P11,Adult Social Care & Health,CORINIUM CARE LIMITED,04/11/2016,2071.07
Bath & North East Somerset Council,80641382,LA7,Purchases for Resale,P13,Economic Development,I AM MADE LTD,04/11/2016,425.00
Bath & North East Somerset Council,80641389,LA7,Purchases for Resale,P13,Economic Development,NATURAL PRODUCTS LTD,04/11/2016,432.00
Bath & North East Somerset Council,80641375,LA7,Purchases for Resale,P13,Economic Development,ASHWOOD GIFTS LTD,04/11/2016,438.00
Bath & North East Somerset Council,10826588,LH2,Advertising,P01,Transport,REHAB,04/11/2016,455.00
Bath & North East Somerset Council,10826463,KD1,Employees Public Transport,P10,Finance & Efficiency,STEVE WARREN TRANSPORT SERVICES LTD,04/11/2016,480.00
Bath & North East Somerset Council,10826463,KD1,Employees Public Transport,P10,Finance & Efficiency,STEVE WARREN TRANSPORT SERVICES LTD,04/11/2016,490.00
Bath & North East Somerset Council,80641371,LA7,Purchases for Resale,P13,Economic Development,SOMERSET TOILETRY COMPANY LTD,04/11/2016,557.80
Bath & North East Somerset Council,10826469,KD1,Employees Public Transport,P10,Finance & Efficiency,WELTON CABS,04/11/2016,560.00
Bath & North East Somerset Council,10826597,LP5,Software Support,P10,Finance & Efficiency,TEKLA (UK) LTD,04/11/2016,560.00
Bath & North East Somerset Council,80641401,LA7,Purchases for Resale,P13,Economic Development,PARKERFOLD LTD,04/11/2016,574.00
Bath & North East Somerset Council,80641378,LA7,Purchases for Resale,P13,Economic Development,BRITISH FOSSILS,04/11/2016,583.47
Bath & North East Somerset Council,10826576,KE3,Transport & Travel,P10,Finance & Efficiency,MR P AUSTIN,04/11/2016,609.00
Bath & North East Somerset Council,10826622,LF1,Printing/Design,P10,Finance & Efficiency,TOPLINK ENVELOPES LTD,04/11/2016,621.00
Bath & North East Somerset Council,10826465,KE3,Transport & Travel,P10,Finance & Efficiency,KEYNSHAM CARS,04/11/2016,630.00
Bath & North East Somerset Council,80641383,LA7,Purchases for Resale,P13,Economic Development,JAROSLAV HRUSTALENKO,04/11/2016,634.00
Bath & North East Somerset Council,80641391,LA7,Purchases for Resale,P13,Economic Development,ST NICOLAS,04/11/2016,652.40
Bath & North East Somerset Council,80641403,LA7,Purchases for Resale,P13,Economic Development,ST NICOLAS,04/11/2016,652.40
Bath & North East Somerset Council,80641361,LA7,Purchases for Resale,P13,Economic Development,ASHLEIGH & BURWOOD LTD,04/11/2016,661.56
Bath & North East Somerset Council,10826463,KD1,Employees Public Transport,P10,Finance & Efficiency,STEVE WARREN TRANSPORT SERVICES LTD,04/11/2016,685.00
Bath & North East Somerset Council,80641390,LA7,Purchases for Resale,P13,Economic Development,ROMAN CANDLES OF BATH LTD,04/11/2016,718.56
Bath & North East Somerset Council,80641393,LA7,Purchases for Resale,P13,Economic Development,ST NICOLAS,04/11/2016,727.00
Bath & North East Somerset Council,80641405,LA7,Purchases for Resale,P13,Economic Development,TEMPLE ISLAND COLLECTIONS,04/11/2016,763.85
Bath & North East Somerset Council,80641379,LA7,Purchases for Resale,P13,Economic Development,COTSWOLD LAVENDER,04/11/2016,789.12
Bath & North East Somerset Council,10826534,LJ4,Contracts,P11,Adult Social Care & Health,SIRONA CARE SERVICES LTD,04/11/2016,825.08
Bath & North East Somerset Council,80641377,LA7,Purchases for Resale,P13,Economic Development,RHODAWN LIMITED T/A BOOKSPEED,04/11/2016,844.96
Bath & North East Somerset Council,80641418,LM8,Home Care,P11,Adult Social Care & Health,HOME FARM TRUST,04/11/2016,3450.00
Bath & North East Somerset Council,80641418,LM8,Home Care,P11,Adult Social Care & Health,HOME FARM TRUST,04/11/2016,6466.88
Bath & North East Somerset Council,10826548,3F7,External Fees,P01,Transport,MACE LIMITED,04/11/2016,935.00
Bath & North East Somerset Council,10826406,KB1,Hire of Vehicles,P14,Community Services,GULLIVERS TRUCK HIRE LTD,04/11/2016,935.57
Bath & North East Somerset Council,80641369,LA7,Purchases for Resale,P13,Economic Development,JUDGE SAMPSON LTD,04/11/2016,969.00
Bath & North East Somerset Council,10826586,LN1,Telephones,P10,Finance & Efficiency,SOUTHWEST ONE LTD,04/11/2016,980.60
Bath & North East Somerset Council,80641387,LA7,Purchases for Resale,P13,Economic Development,THE MASTER HERBALIST LIMITED,04/11/2016,1013.50
Bath & North East Somerset Council,10826575,KE3,Transport & Travel,P10,Finance & Efficiency,MR P AUSTIN,04/11/2016,1040.00
Bath & North East Somerset Council,10826575,KD1,Employees Public Transport,P10,Finance & Efficiency,MR P AUSTIN,04/11/2016,1065.00
Bath & North East Somerset Council,10826545,LJ4,Contracts,P01,Transport,FALLOWS TAXIS,04/11/2016,1092.00
Bath & North East Somerset Council,80641365,LA7,Purchases for Resale,P13,Economic Development,GISELA GRAHAM LIMITED,04/11/2016,1101.60
Bath & North East Somerset Council,10826435,EA1,Training,P12,Children's Services,UNIVERSITY OF BATH,04/11/2016,1125.00
Bath & North East Somerset Council,80641398,LA7,Purchases for Resale,P13,Economic Development,HOUSE OF DORCHESTER LTD,04/11/2016,1153.25
Bath & North East Somerset Council,10826418,HV1,Contract Cleaning,P14,Community Services,MINSTER CLEANING SERVICES,04/11/2016,755.90
Bath & North East Somerset Council,10826519,KE3,Transport & Travel,P04,Leader,CO-WHEELS CAR CLUB,04/11/2016,1300.89
Bath & North East Somerset Council,10826543,LJ4,Contracts,P01,Transport,HIGHWAY TAXIS & TRAVEL,04/11/2016,1380.60
Bath & North East Somerset Council,80641376,LA7,Purchases for Resale,P13,Economic Development,BATH AQUA GLASS LTD,04/11/2016,1533.30
Bath & North East Somerset Council,10824987,LJ1,Consultants Fees,P09,Homes & Planning,HILLSIDE TREES LIMITED,04/11/2016,1600.00
Bath & North East Somerset Council,10826463,KD1,Employees Public Transport,P10,Finance & Efficiency,STEVE WARREN TRANSPORT SERVICES LTD,04/11/2016,1685.00
Bath & North East Somerset Council,80641429,RR8,Internal Schools Transfers Paid,P12,Children's Services,PALLADIAN ACADEMY TRUST RE WIDCOMBE INFANT,04/11/2016,79115.93
Bath & North East Somerset Council,80641406,LA7,Purchases for Resale,P13,Economic Development,UNEX DESIGNS LTD,04/11/2016,1927.97
Bath & North East Somerset Council,80641373,LA7,Purchases for Resale,P13,Economic Development,UNEX DESIGNS LTD,04/11/2016,1954.63
Bath & North East Somerset Council,10826542,KB1,Hire of Vehicles,P14,Community Services,M6 VEHICLE HIRE LTD,04/11/2016,1985.00
Bath & North East Somerset Council,80641388,LA7,Purchases for Resale,P13,Economic Development,MILLA MADDERN,04/11/2016,2146.60
Bath & North East Somerset Council,80641420,LM8,Home Care,P11,Adult Social Care & Health,PRESTIGE NURSING HEALTHCARE,04/11/2016,188.21
Bath & North East Somerset Council,80641420,LM8,Home Care,P11,Adult Social Care & Health,PRESTIGE NURSING HEALTHCARE,04/11/2016,735.21
Bath & North East Somerset Council,80641420,LM8,Home Care,P11,Adult Social Care & Health,PRESTIGE NURSING HEALTHCARE,04/11/2016,1556.22
Bath & North East Somerset Council,80641420,LM8,Home Care,P11,Adult Social Care & Health,PRESTIGE NURSING HEALTHCARE,04/11/2016,1629.10
Bath & North East Somerset Council,10826543,LJ4,Contracts,P01,Transport,HIGHWAY TAXIS & TRAVEL,04/11/2016,2264.00
Bath & North East Somerset Council,80641420,LM8,Home Care,P11,Adult Social Care & Health,PRESTIGE NURSING HEALTHCARE,04/11/2016,2810.95
Bath & North East Somerset Council,80641420,LM8,Home Care,P11,Adult Social Care & Health,PRESTIGE NURSING HEALTHCARE,04/11/2016,2844.80
Bath & North East Somerset Council,80641420,LM8,Home Care,P11,Adult Social Care & Health,PRESTIGE NURSING HEALTHCARE,04/11/2016,2920.96
Bath & North East Somerset Council,80641420,LM8,Home Care,P11,Adult Social Care & Health,PRESTIGE NURSING HEALTHCARE,04/11/2016,3598.06
Bath & North East Somerset Council,10826612,3E5,IT Hardware,P04,Leader,ANS GROUP,04/11/2016,2321.80
Bath & North East Somerset Council,80641420,LM8,Home Care,P11,Adult Social Care & Health,PRESTIGE NURSING HEALTHCARE,04/11/2016,5879.87
Bath & North East Somerset Council,10826520,KB1,Hire of Vehicles,P14,Community Services,DAWSON RENTALS SWEEPERS,04/11/2016,2352.00
Bath & North East Somerset Council,10826587,HE1,General Maintenance,P01,Transport,E W HOBBS,04/11/2016,2484.00
Bath & North East Somerset Council,80641431,LK4,Nursery/Childcare Vouchers,P12,Children's Services,SNAPDRAGONS NURSERY HORFIELD,04/11/2016,1153.60
Bath & North East Somerset Council,80641422,LM8,Home Care,P11,Adult Social Care & Health,SOMERSET CARE AT HOME LTD,04/11/2016,608.00
Bath & North East Somerset Council,80641422,LM8,Home Care,P11,Adult Social Care & Health,SOMERSET CARE AT HOME LTD,04/11/2016,969.00
Bath & North East Somerset Council,10826547,3F7,External Fees,P01,Transport,BRUNEL PROJECT MANAGEMENT LTD,04/11/2016,3150.00
Bath & North East Somerset Council,10826540,LP5,Software Support,P10,Finance & Efficiency,IDOX SOFTWARE LTD,04/11/2016,3250.00
Bath & North East Somerset Council,10826415,KD1,Employees Public Transport,P10,Finance & Efficiency,WELTON CABS,04/11/2016,3920.00
Bath & North East Somerset Council,10826451,LM8,Home Care,P11,Adult Social Care & Health,THE WOODWORKS PROJECT,04/11/2016,1125.00
Bath & North East Somerset Council,10826613,LP5,Software Support,P10,Finance & Efficiency,MODERN MINDSET LTD,04/11/2016,7010.00
Bath & North East Somerset Council,10826536,LJ4,Contracts,P11,Adult Social Care & Health,SIRONA CARE SERVICES LTD,04/11/2016,12692.50
Bath & North East Somerset Council,10826615,3E5,IT Hardware,P04,Leader,ANS GROUP,04/11/2016,16276.07
Bath & North East Somerset Council,10826535,LJ4,Contracts,P11,Adult Social Care & Health,SIRONA CARE SERVICES LTD,04/11/2016,23610.83
Bath & North East Somerset Council,10826601,DB1,Agency Staff,P10,Finance & Efficiency,COMENSURA LTD,04/11/2016,50048.90
Bath & North East Somerset Council,10826299,3F7,External Fees,P13,Economic Development,ALUN GRIFFITHS (CONTRACTORS) LTD,04/11/2016,351223.98
Bath & North East Somerset Council,10826701,KB1,Hire of Vehicles,P01,Transport,MISTRAL BUS & COACH PLC,07/11/2016,23.53
Bath & North East Somerset Council,10826647,3F7,External Fees,P13,Economic Development,CLARKE WILMOTT,07/11/2016,30.00
Bath & North East Somerset Council,10826746,HA1,Responsive Maintenance,P13,Economic Development,VALIANT ENGINEERING SERVICES LTD,07/11/2016,58.00
Bath & North East Somerset Council,10825297,HA1,Responsive Maintenance,P10,Finance & Efficiency,N K S CONTRACTS LTD,07/11/2016,129.38
Bath & North East Somerset Council,10825297,HA1,Responsive Maintenance,P10,Finance & Efficiency,N K S CONTRACTS LTD,07/11/2016,138.60
Bath & North East Somerset Council,10825338,HA1,Responsive Maintenance,P13,Economic Development,N K S CONTRACTS LTD,07/11/2016,218.28
Bath & North East Somerset Council,10825338,HA1,Responsive Maintenance,P10,Finance & Efficiency,N K S CONTRACTS LTD,07/11/2016,228.50
Bath & North East Somerset Council,10825338,HA1,Responsive Maintenance,P10,Finance & Efficiency,N K S CONTRACTS LTD,07/11/2016,258.75
Bath & North East Somerset Council,10825297,HA1,Responsive Maintenance,P10,Finance & Efficiency,N K S CONTRACTS LTD,07/11/2016,261.22
Bath & North East Somerset Council,10825338,HA1,Responsive Maintenance,P10,Finance & Efficiency,N K S CONTRACTS LTD,07/11/2016,266.76
Bath & North East Somerset Council,10825297,HA1,Responsive Maintenance,P10,Finance & Efficiency,N K S CONTRACTS LTD,07/11/2016,275.63
Bath & North East Somerset Council,10826747,HA1,Responsive Maintenance,P13,Economic Development,VALIANT ENGINEERING SERVICES LTD,07/11/2016,334.00
Bath & North East Somerset Council,10825297,3C4,Building Works,P10,Finance & Efficiency,N K S CONTRACTS LTD,07/11/2016,360.98
Bath & North East Somerset Council,10825338,HA1,Responsive Maintenance,P10,Finance & Efficiency,N K S CONTRACTS LTD,07/11/2016,364.74
Bath & North East Somerset Council,10826683,LL2,Personal Needs of Clients,P12,Children's Services,CONNOLLY & CALLAGHAN LTD,07/11/2016,420.00
Bath & North East Somerset Council,10826685,LL2,Personal Needs of Clients,P12,Children's Services,CONNOLLY & CALLAGHAN LTD,07/11/2016,420.00
Bath & North East Somerset Council,10826636,LF1,Printing/Design,P10,Finance & Efficiency,FREESTYLE DESIGNS BATH LTD,07/11/2016,438.19
Bath & North East Somerset Council,10826735,3F7,External Fees,P10,Finance & Efficiency,CAPITA SYMONDS,07/11/2016,450.00
Bath & North East Somerset Council,10826746,HA1,Responsive Maintenance,P13,Economic Development,VALIANT ENGINEERING SERVICES LTD,07/11/2016,470.00
Bath & North East Somerset Council,10826070,HK1,Highway Maintenance,P01,Transport,SAKNEL HIGHWAYS STRUCTURES CONTRACTOR,07/11/2016,540.00
Bath & North East Somerset Council,10826609,LJ4,Contracts,P01,Transport,STEVE WARREN TRANSPORT SERVICES LTD,07/11/2016,546.00
Bath & North East Somerset Council,10825297,HA1,Responsive Maintenance,P10,Finance & Efficiency,N K S CONTRACTS LTD,07/11/2016,583.30
Bath & North East Somerset Council,10826738,3F7,External Fees,P10,Finance & Efficiency,CAPITA SYMONDS,07/11/2016,675.00
Bath & North East Somerset Council,10826742,KA3,Fuel,P14,Community Services,FORD FUELS LTD,07/11/2016,727.50
Bath & North East Somerset Council,10826616,LJ4,Contracts,P01,Transport,JASON KING LTD,07/11/2016,735.00
Bath & North East Somerset Council,10826070,HK1,Highway Maintenance,P01,Transport,SAKNEL HIGHWAYS STRUCTURES CONTRACTOR,07/11/2016,746.65
Bath & North East Somerset Council,10826452,3F7,External Fees,P13,Economic Development,GREENMAN ENVIRONMENTAL MANAGEMENT,07/11/2016,790.00
Bath & North East Somerset Council,10826538,HE1,General Maintenance,P10,Finance & Efficiency,SICO EUROPE LTD,07/11/2016,851.00
Bath & North East Somerset Council,10826747,HA1,Responsive Maintenance,P13,Economic Development,VALIANT ENGINEERING SERVICES LTD,07/11/2016,870.00
Bath & North East Somerset Council,10826726,3F7,External Fees,P10,Finance & Efficiency,CAPITA SYMONDS,07/11/2016,900.00
Bath & North East Somerset Council,10825338,3C4,Building Works,P10,Finance & Efficiency,N K S CONTRACTS LTD,07/11/2016,926.85
Bath & North East Somerset Council,10825297,HA1,Responsive Maintenance,P10,Finance & Efficiency,N K S CONTRACTS LTD,07/11/2016,962.52
Bath & North East Somerset Council,10826661,EA1,Training,P09,Homes & Planning,MS M FITZSIMONS,07/11/2016,995.00
Bath & North East Somerset Council,10826630,LP4,Software Purchase,P10,Finance & Efficiency,CIVICA UK LTD,07/11/2016,1037.52
Bath & North East Somerset Council,10826608,LJ4,Contracts,P01,Transport,NEED TO GET HOME? TAXI COMPANY,07/11/2016,1042.50
Bath & North East Somerset Council,10826688,LL2,Personal Needs of Clients,P12,Children's Services,YOUNG DEVON,07/11/2016,1074.90
Bath & North East Somerset Council,10826651,LJ4,Contracts,P01,Transport,ROMAN BATH TRANSPORT,07/11/2016,1120.00
Bath & North East Somerset Council,10826631,LJ4,Contracts,P01,Transport,TRAVELBILLITY LTD,07/11/2016,1125.00
Bath & North East Somerset Council,10825297,3C4,Building Works,P10,Finance & Efficiency,N K S CONTRACTS LTD,07/11/2016,1177.45
Bath & North East Somerset Council,10825297,HA1,Responsive Maintenance,P10,Finance & Efficiency,N K S CONTRACTS LTD,07/11/2016,1294.88
Bath & North East Somerset Council,10825884,3F7,External Fees,P13,Economic Development,CONSTRUCTION PLANNING ASSOCIATES,07/11/2016,1350.00
Bath & North East Somerset Council,10825297,HA1,Responsive Maintenance,P10,Finance & Efficiency,N K S CONTRACTS LTD,07/11/2016,1403.47
Bath & North East Somerset Council,10826653,LJ4,Contracts,P01,Transport,R E & V P JEFFRIES,07/11/2016,1434.48
Bath & North East Somerset Council,10826648,LJ4,Contracts,P01,Transport,JASON KING LTD,07/11/2016,1472.00
Bath & North East Somerset Council,10826298,3F7,External Fees,P13,Economic Development,MDA CONSULTING LTD,07/11/2016,1500.00
Bath & North East Somerset Council,10822281,HA6,Planned Maintenance PCB,P10,Finance & Efficiency,BAILEY PARTNERSHIP,07/11/2016,1535.00
Bath & North East Somerset Council,10825297,HA1,Responsive Maintenance,P10,Finance & Efficiency,N K S CONTRACTS LTD,07/11/2016,1552.50
Bath & North East Somerset Council,10826479,3F7,External Fees,P10,Finance & Efficiency,MAX FORDHAM CONSULTING ENGINEERS,07/11/2016,1638.75
Bath & North East Somerset Council,10826649,LJ4,Contracts,P01,Transport,JASON KING LTD,07/11/2016,1936.00
Bath & North East Somerset Council,10826701,KB1,Hire of Vehicles,P01,Transport,MISTRAL BUS & COACH PLC,07/11/2016,1950.00
Bath & North East Somerset Council,10826703,LJ8,PCB External Fees,P13,Economic Development,CLARKSON & WOODS,07/11/2016,2057.00
Bath & North East Somerset Council,10826650,LJ4,Contracts,P01,Transport,JASON KING LTD,07/11/2016,2240.00
Bath & North East Somerset Council,10825910,3F7,External Fees,P01,Transport,VIX TECHNOLOGY UK LIMITED,07/11/2016,2337.38
Bath & North East Somerset Council,10825773,3F7,External Fees,P13,Economic Development,DTZ DEBENHAM TIE LEUNG LTD,07/11/2016,2475.00
Bath & North East Somerset Council,10826754,LH5,Marketing,P13,Economic Development,26 MARKETING,07/11/2016,2850.00
Bath & North East Somerset Council,10826647,3F7,External Fees,P13,Economic Development,CLARKE WILMOTT,07/11/2016,3076.75
Bath & North East Somerset Council,10826732,3F7,External Fees,P10,Finance & Efficiency,CAPITA SYMONDS,07/11/2016,3095.00
Bath & North East Somerset Council,10826405,3N7,Misc. Costs,P01,Transport,SKANSKA CONSTRUCTION UK LTD,07/11/2016,3132.53
Bath & North East Somerset Council,10825931,LV2,Contributions to Organisations,P10,Finance & Efficiency,SOMERSET COUNTY COUNCIL,07/11/2016,3236.00
Bath & North East Somerset Council,10826698,LN1,Telephones,P10,Finance & Efficiency,BRITISH TELECOM,07/11/2016,3315.66
Bath & North East Somerset Council,10826476,LJ1,Consultants Fees,P04,Leader,MARKETING MEANS UK LTD,07/11/2016,3636.50
Bath & North East Somerset Council,10826658,3C4,Building Works,P13,Economic Development,UNITED KINGDOM SECURITY,07/11/2016,3888.00
Bath & North East Somerset Council,10826752,LH5,Marketing,P13,Economic Development,26 MARKETING,07/11/2016,4000.00
Bath & North East Somerset Council,10826751,LH5,Marketing,P13,Economic Development,26 MARKETING,07/11/2016,4059.00
Bath & North East Somerset Council,10826659,HA1,Responsive Maintenance,P10,Finance & Efficiency,N K S CONTRACTS LTD,07/11/2016,5084.41
Bath & North East Somerset Council,10826626,DB1,Agency Staff,P01,Transport,REDACTED - ACCESS TRAVEL,07/11/2016,20.00
Bath & North East Somerset Council,10826626,LJ4,Contracts,P01,Transport,REDACTED - ACCESS TRAVEL,07/11/2016,1620.00
Bath & North East Somerset Council,10826618,LJ4,Contracts,P01,Transport,REDACTED - ACCESS TRAVEL,07/11/2016,1652.00
Bath & North East Somerset Council,10826753,LH5,Marketing,P13,Economic Development,26 MARKETING,07/11/2016,5985.00
Bath & North East Somerset Council,10826079,3F7,External Fees,P13,Economic Development,CAPITA SYMONDS,07/11/2016,6209.67
Bath & North East Somerset Council,10826755,LH5,Marketing,P13,Economic Development,26 MARKETING,07/11/2016,6950.00
Bath & North East Somerset Council,10826749,LH5,Marketing,P13,Economic Development,26 MARKETING,07/11/2016,7500.00
Bath & North East Somerset Council,10825297,HA1,Responsive Maintenance,P10,Finance & Efficiency,N K S CONTRACTS LTD,07/11/2016,9008.36
Bath & North East Somerset Council,10826645,LJ4,Contracts,P01,Transport,CENTURION TRAVEL LTD,07/11/2016,10038.30
Bath & North East Somerset Council,10826402,3N7,Misc. Costs,P01,Transport,SKANSKA CONSTRUCTION UK LTD,07/11/2016,11632.44
Bath & North East Somerset Council,10826634,LJ4,Contracts,P01,Transport,FILERS COACHES,07/11/2016,13640.00
Bath & North East Somerset Council,10825338,HA1,Responsive Maintenance,P10,Finance & Efficiency,N K S CONTRACTS LTD,07/11/2016,16576.85
Bath & North East Somerset Council,10826689,LK1,Fees,P10,Finance & Efficiency,THE BATH BID (BUSINESS IMPROVEMENT DISTRICT) COMPANY,07/11/2016,17000.00
Bath & North East Somerset Council,10826454,3N7,Misc. Costs,P01,Transport,SKANSKA CONSTRUCTION UK LTD,07/11/2016,18618.56
Bath & North East Somerset Council,10826602,LK1,Fees,P14,Community Services,BATH RECREATION GROUND TRUST,07/11/2016,18750.00
Bath & North East Somerset Council,10826410,3N7,Misc. Costs,P01,Transport,SKANSKA CONSTRUCTION UK LTD,07/11/2016,19401.78
Bath & North East Somerset Council,10826669,DB1,Agency Staff,P01,Transport,CH2M HILL UK,07/11/2016,20478.87
Bath & North East Somerset Council,10826669,DB1,Agency Staff,P01,Transport,CH2M HILL UK,07/11/2016,30608.82
Bath & North East Somerset Council,10825338,HA1,Responsive Maintenance,P10,Finance & Efficiency,N K S CONTRACTS LTD,07/11/2016,31746.82
Bath & North East Somerset Council,10825297,HA1,Responsive Maintenance,P10,Finance & Efficiency,N K S CONTRACTS LTD,07/11/2016,36405.49
Bath & North East Somerset Council,10826741,LJ4,Contracts,P14,Community Services,FAUN ZOELLOR UK LTD,07/11/2016,37172.41
Bath & North East Somerset Council,10823247,LK1,Fees,P14,Community Services,BATH RECREATION GROUND TRUST,07/11/2016,37500.00
Bath & North East Somerset Council,10826598,PB4,Payments to Private Contractors,P14,Community Services,KIER INTEGRATED SERVICES LTD,07/11/2016,251661.43
Bath & North East Somerset Council,10826599,PB4,Payments to Private Contractors,P14,Community Services,KIER INTEGRATED SERVICES LTD,07/11/2016,251661.43
Bath & North East Somerset Council,10826731,3F7,External Fees,P12,Children's Services,RYDON CONSTRUCTION LIMITED,07/11/2016,260186.23
Bath & North East Somerset Council,10826961,KE2,Payment to Parents/Students,P12,Children's Services,REDACTED,09/11/2016,731.20
Bath & North East Somerset Council,80641615,LL5,Adoption Allowances,P12,Children's Services,REDACTED,09/11/2016,728.82
Bath & North East Somerset Council,80641615,LL5,Adoption Allowances,P12,Children's Services,REDACTED,09/11/2016,742.80
Bath & North East Somerset Council,80641653,PG1,Rent Allowances,P10,Finance & Efficiency,ADVANCE HOUSING SUPPORT & SUPPOR,09/11/2016,2088.84
Bath & North East Somerset Council,10826854,KB1,Hire of Vehicles,P01,Transport,BRISTOL OILSKIN & OVERALL CO LTD,09/11/2016,20.75
Bath & North East Somerset Council,10826458,3G1,Grants/Advances,P11,Adult Social Care & Health,AQUA SHOWERS,09/11/2016,2915.00
Bath & North East Somerset Council,10826873,3C4,Building Works,P10,Finance & Efficiency,ADT FIRE & SECURITY PLC,09/11/2016,85.00
Bath & North East Somerset Council,10821671,HA1,Responsive Maintenance,P10,Finance & Efficiency,MECHANICAL ENGINEERING SERVICE,09/11/2016,123.62
Bath & North East Somerset Council,10826959,LJ3,Other Services to the Council,P14,Community Services,GREENMAN ENVIRONMENTAL MANAGEMENT,09/11/2016,137.50
Bath & North East Somerset Council,10826773,HA1,Responsive Maintenance,P13,Economic Development,VALIANT ENGINEERING SERVICES LTD,09/11/2016,145.00
Bath & North East Somerset Council,10826854,LA1,Equipment Purchase (Non Medical),P01,Transport,BRISTOL OILSKIN & OVERALL CO LTD,09/11/2016,174.50
Bath & North East Somerset Council,10826802,KA2,Running Costs,P14,Community Services,AEBI SCHMIDT UK LIMITED,09/11/2016,264.72
Bath & North East Somerset Council,10826943,3G1,Grants/Advances,P11,Adult Social Care & Health,BIB & BRACE LTD,09/11/2016,13042.20
Bath & North East Somerset Council,10826773,HA1,Responsive Maintenance,P13,Economic Development,VALIANT ENGINEERING SERVICES LTD,09/11/2016,290.00
Bath & North East Somerset Council,10826959,LA2,Training Materials,P14,Community Services,GREENMAN ENVIRONMENTAL MANAGEMENT,09/11/2016,340.00
Bath & North East Somerset Council,10821671,HA1,Responsive Maintenance,P10,Finance & Efficiency,MECHANICAL ENGINEERING SERVICE,09/11/2016,378.30
Bath & North East Somerset Council,10826771,HA3,Planned Maintenance,P13,Economic Development,VALIANT ENGINEERING SERVICES LTD,09/11/2016,383.00
Bath & North East Somerset Council,10826717,HA1,Responsive Maintenance,P10,Finance & Efficiency,MECHANICAL ENGINEERING SERVICE,09/11/2016,385.81
Bath & North East Somerset Council,10821671,HA1,Responsive Maintenance,P10,Finance & Efficiency,MECHANICAL ENGINEERING SERVICE,09/11/2016,398.63
Bath & North East Somerset Council,10826802,KA2,Running Costs,P14,Community Services,AEBI SCHMIDT UK LIMITED,09/11/2016,446.20
Bath & North East Somerset Council,10826765,HV2,Non Contract Cleaning,P13,Economic Development,VALIANT ENGINEERING SERVICES LTD,09/11/2016,450.00
Bath & North East Somerset Council,10826668,7F1,Rent,,,CURO,09/11/2016,120143.61
Bath & North East Somerset Council,10826903,HA1,Responsive Maintenance,P13,Economic Development,ABBEY LIFTS LTD,09/11/2016,460.00
Bath & North East Somerset Council,10826766,HV2,Non Contract Cleaning,P13,Economic Development,VALIANT ENGINEERING SERVICES LTD,09/11/2016,470.00
Bath & North East Somerset Council,10826606,LA1,Equipment Purchase (Non Medical),P11,Adult Social Care & Health,BRITISH TELECOM,09/11/2016,487.05
Bath & North East Somerset Council,10826844,EA1,Training,P12,Children's Services,SOLUTION FOCUSED PRACTICE,09/11/2016,500.00
Bath & North East Somerset Council,10826954,EA1,Training,P01,Transport,EFA TRAINING LTD,09/11/2016,500.00
Bath & North East Somerset Council,10827042,LK1,Fees,P12,Children's Services,BREDON SCHOOL LTD,09/11/2016,500.00
Bath & North East Somerset Council,10826823,3F7,External Fees,P12,Children's Services,C K GIBBONS LTD,09/11/2016,532.00
Bath & North East Somerset Council,10826724,KB1,Hire of Vehicles,P14,Community Services,SFS LIMITED T/A CTS,09/11/2016,540.00
Bath & North East Somerset Council,10826849,LK1,Fees,P12,Children's Services,BREDON SCHOOL LTD,09/11/2016,550.00
Bath & North East Somerset Council,10826937,LA3,Equipment Maintenance (Non Medical),P01,Transport,SOUTH GLOUCESTERSHIRE COUNCIL,09/11/2016,560.00
Bath & North East Somerset Council,10826797,LD4,Uniforms,P13,Economic Development,WATERFRONT MANUFACTURING LTD,09/11/2016,577.45
Bath & North East Somerset Council,10826769,HA1,Responsive Maintenance,P13,Economic Development,VALIANT ENGINEERING SERVICES LTD,09/11/2016,590.00
Bath & North East Somerset Council,10826935,LA1,Equipment Purchase (Non Medical),P14,Community Services,LANDSCAPE SUPPLY COMPANY,09/11/2016,593.50
Bath & North East Somerset Council,10826728,PB4,Payments to Private Contractors,P14,Community Services,AVON FIRE & RESCUE,09/11/2016,600.00
Bath & North East Somerset Council,10826873,HA1,Responsive Maintenance,P10,Finance & Efficiency,ADT FIRE & SECURITY PLC,09/11/2016,611.82
Bath & North East Somerset Council,10826825,3F7,External Fees,P10,Finance & Efficiency,CAPITA SYMONDS,09/11/2016,675.00
Bath & North East Somerset Council,10821671,HA1,Responsive Maintenance,P10,Finance & Efficiency,MECHANICAL ENGINEERING SERVICE,09/11/2016,729.09
Bath & North East Somerset Council,10826952,EA1,Training,P01,Transport,RACHEL RINGHAM LTD,09/11/2016,750.00
Bath & North East Somerset Council,10826509,KD1,Employees Public Transport,P04,Leader,N WASHBOURNE PERSONAL DRIVER,09/11/2016,765.00
Bath & North East Somerset Council,10826865,LW9,Other Expenses,P10,Finance & Efficiency,CYCLESCHEME LTD,09/11/2016,775.82
Bath & North East Somerset Council,10826595,LA4,Equipment Hire/Rent,P14,Community Services,LISTER WILDER,09/11/2016,780.00
Bath & North East Somerset Council,10826768,HA1,Responsive Maintenance,P13,Economic Development,VALIANT ENGINEERING SERVICES LTD,09/11/2016,780.00
Bath & North East Somerset Council,10826932,LH2,Advertising,P09,Homes & Planning,LOCAL WORLD LTD,09/11/2016,782.90
Bath & North East Somerset Council,10826969,LF1,Printing/Design,P13,Economic Development,BIG,09/11/2016,795.00
Bath & North East Somerset Council,10826590,HE1,General Maintenance,P01,Transport,BUS SHELTERS LTD,09/11/2016,806.25
Bath & North East Somerset Council,10826596,LA4,Equipment Hire/Rent,P14,Community Services,LISTER WILDER,09/11/2016,840.00
Bath & North East Somerset Council,10826950,LK1,Fees,P14,Community Services,GREENWICH LEISURE LIMITED,09/11/2016,885.00
Bath & North East Somerset Council,10826119,LA3,Equipment Maintenance (Non Medical),P14,Community Services,T H WHITE LTD,09/11/2016,900.00
Bath & North East Somerset Council,10826774,LJ4,Contracts,P01,Transport,S. J. & J M MUNDEN T/A GUYAN MINI BUSES,09/11/2016,925.21
Bath & North East Somerset Council,10826926,LH2,Advertising,P09,Homes & Planning,LOCAL WORLD LTD,09/11/2016,939.48
Bath & North East Somerset Council,10826930,LH2,Advertising,P09,Homes & Planning,LOCAL WORLD LTD,09/11/2016,939.48
Bath & North East Somerset Council,10826888,LH5,Marketing,P13,Economic Development,BATH TOURISM PLUS,09/11/2016,950.00
Bath & North East Somerset Council,10825162,HE1,General Maintenance,P01,Transport,BUS SHELTERS LTD,09/11/2016,960.00
Bath & North East Somerset Council,10827016,LJ4,Contracts,P01,Transport,ROMAN BATH TRANSPORT,09/11/2016,1065.00
Bath & North East Somerset Council,10827035,LM8,Home Care,P11,Adult Social Care & Health,KUMARI HOMECARE SERVICE,09/11/2016,630.68
Bath & North East Somerset Council,10827013,LF1,Printing/Design,P10,Finance & Efficiency,FACILITIES & CORPORATE SOLUTIONS,09/11/2016,1127.68
Bath & North East Somerset Council,10826758,LA1,Equipment Purchase (Non Medical),P14,Community Services,GEORGE CARR & SONS (SAWS) LTD,09/11/2016,1186.00
Bath & North East Somerset Council,10826785,LJ4,Contracts,P01,Transport,PLUTO ENTERPRISES LTD T/A A.F.C. TAXIS,09/11/2016,1195.00
Bath & North East Somerset Council,10826812,KB1,Hire of Vehicles,P14,Community Services,HEWDEN STUART LTD,09/11/2016,1263.00
Bath & North East Somerset Council,10826811,KB1,Hire of Vehicles,P14,Community Services,HEWDEN STUART LTD,09/11/2016,1302.00
Bath & North East Somerset Council,80641589,LM2,Foster Carer Allowances,P12,Children's Services,REDACTED,09/11/2016,417.00
Bath & North East Somerset Council,80641589,LM2,Foster Carer Allowances,P12,Children's Services,REDACTED,09/11/2016,417.00
Bath & North East Somerset Council,10826975,LJ4,Contracts,P01,Transport,MARIAN CALINOIU (MARIO PRIVATE HIRE LTD),09/11/2016,1350.00
Bath & North East Somerset Council,80641652,PG1,Rent Allowances,P10,Finance & Efficiency,REDACTED,09/11/2016,991.96
Bath & North East Somerset Council,10826371,PA1,Payments to Joint Authorities,P04,Leader,NORTH SOMERSET COUNCIL,09/11/2016,1445.46
Bath & North East Somerset Council,10826771,HA3,Planned Maintenance,P13,Economic Development,VALIANT ENGINEERING SERVICES LTD,09/11/2016,1480.00
Bath & North East Somerset Council,80641588,LL3,Supported Living,P09,Homes & Planning,REDACTED,09/11/2016,81.00
Bath & North East Somerset Council,80641588,LL3,Supported Living,P09,Homes & Planning,REDACTED,09/11/2016,81.00
Bath & North East Somerset Council,10826854,LD4,Uniforms,P01,Transport,BRISTOL OILSKIN & OVERALL CO LTD,09/11/2016,1515.60
Bath & North East Somerset Council,80641588,LL3,Supported Living,P09,Homes & Planning,REDACTED,09/11/2016,111.00
Bath & North East Somerset Council,80641588,LL2,Personal Needs of Clients,P12,Children's Services,REDACTED,09/11/2016,321.03
Bath & North East Somerset Council,80641616,LA1,Equipment Purchase (Non Medical),P12,Children's Services,REDACTED,09/11/2016,59.98
Bath & North East Somerset Council,80641616,LL6,Needs & Services,P12,Children's Services,REDACTED,09/11/2016,86.00
Bath & North East Somerset Council,80641616,LM2,Foster Carer Allowances,P12,Children's Services,REDACTED,09/11/2016,100.00
Bath & North East Somerset Council,80641616,LM2,Foster Carer Allowances,P12,Children's Services,REDACTED,09/11/2016,100.00
Bath & North East Somerset Council,80641616,LM2,Foster Carer Allowances,P12,Children's Services,REDACTED,09/11/2016,286.00
Bath & North East Somerset Council,80641616,LM2,Foster Carer Allowances,P12,Children's Services,REDACTED,09/11/2016,286.00
Bath & North East Somerset Council,80641616,LM2,Foster Carer Allowances,P12,Children's Services,REDACTED,09/11/2016,785.96
Bath & North East Somerset Council,80641600,LM2,Foster Carer Allowances,P12,Children's Services,REDACTED,09/11/2016,50.00
Bath & North East Somerset Council,80641600,LM2,Foster Carer Allowances,P12,Children's Services,REDACTED,09/11/2016,125.00
Bath & North East Somerset Council,80641600,LM2,Foster Carer Allowances,P12,Children's Services,REDACTED,09/11/2016,246.68
Bath & North East Somerset Council,80641600,LM1,Volunt Homes Placements Top/Up,P12,Children's Services,REDACTED,09/11/2016,377.78
Bath & North East Somerset Council,10826750,LK1,Fees,P12,Children's Services,SOUTH GLOUCESTERSHIRE COUNCIL,09/11/2016,1640.00
Bath & North East Somerset Council,10826974,LJ4,Contracts,P01,Transport,MARIAN CALINOIU (MARIO PRIVATE HIRE LTD),09/11/2016,1650.00
Bath & North East Somerset Council,10826720,KB1,Hire of Vehicles,P14,Community Services,SFS LIMITED T/A CTS,09/11/2016,1690.00
Bath & North East Somerset Council,10826960,LJ4,Contracts,P01,Transport,BBFI LTD,09/11/2016,1760.00
Bath & North East Somerset Council,10826819,LP1,Hardware Purchase,P10,Finance & Efficiency,DELL PRODUCTS,09/11/2016,1790.00
Bath & North East Somerset Council,10827056,LN4,Mobile Phones,P10,Finance & Efficiency,EE LIMITED,09/11/2016,1801.46
Bath & North East Somerset Council,10826873,HA1,Responsive Maintenance,P10,Finance & Efficiency,ADT FIRE & SECURITY PLC,09/11/2016,1806.32
Bath & North East Somerset Council,10825314,LP5,Software Support,P09,Homes & Planning,IDOX SOFTWARE LTD,09/11/2016,1900.00
Bath & North East Somerset Council,10826955,3G1,Grants/Advances,P11,Adult Social Care & Health,J K MOBILITY LTD,09/11/2016,1915.00
Bath & North East Somerset Council,10826572,LX6,Bus Revenue Support,P01,Transport,BUGLERS COACHES LIMITED,09/11/2016,1971.98
Bath & North East Somerset Council,10826857,EA1,Training,P13,Economic Development,MENTOR COMMUNICATIONS CONSULTANCY LTD T/A MENTOR DIGITAL,09/11/2016,2000.00
Bath & North East Somerset Council,10827066,LN4,Mobile Phones,P10,Finance & Efficiency,EE LIMITED,09/11/2016,2157.00
Bath & North East Somerset Council,10826723,3F7,External Fees,P10,Finance & Efficiency,CAPITA SYMONDS,09/11/2016,2195.00
Bath & North East Somerset Council,10826573,LX6,Bus Revenue Support,P01,Transport,FROME MINIBUSES LTD,09/11/2016,2239.75
Bath & North East Somerset Council,10826949,LX5,Concessionary Fares,P01,Transport,MIDSOMER NORTON & RADSTOCK RING & RIDE,09/11/2016,2387.50
Bath & North East Somerset Council,80641581,LA1,Equipment Purchase (Non Medical),P12,Children's Services,REDACTED,09/11/2016,64.99
Bath & North East Somerset Council,80641581,LM2,Foster Carer Allowances,P12,Children's Services,REDACTED,09/11/2016,100.00
Bath & North East Somerset Council,80641581,LM2,Foster Carer Allowances,P12,Children's Services,REDACTED,09/11/2016,140.00
Bath & North East Somerset Council,80641581,LM2,Foster Carer Allowances,P12,Children's Services,REDACTED,09/11/2016,286.00
Bath & North East Somerset Council,10826979,LF5,Postages,P10,Finance & Efficiency,WHISTL UK LTD,09/11/2016,2493.50
Bath & North East Somerset Council,10821671,HA1,Responsive Maintenance,P10,Finance & Efficiency,MECHANICAL ENGINEERING SERVICE,09/11/2016,2733.17
Bath & North East Somerset Council,10826717,HA1,Responsive Maintenance,P10,Finance & Efficiency,MECHANICAL ENGINEERING SERVICE,09/11/2016,2749.46
Bath & North East Somerset Council,10826806,KF2,Insurance Excess Payments,Z99,Outside Revenue Accounts,ZURICH INSURANCE ZMCD RECEIPTS,09/11/2016,2824.20
Bath & North East Somerset Council,10826512,LT4,Conferences,Z98,West of England Partnership,BRISTOL CITY COUNCIL,09/11/2016,3000.00
Bath & North East Somerset Council,10825203,HA6,Planned Maintenance PCB,P10,Finance & Efficiency,PRIME VCT,09/11/2016,3000.00
Bath & North East Somerset Council,10826972,LJ4,Contracts,P01,Transport,MARIAN CALINOIU (MARIO PRIVATE HIRE LTD),09/11/2016,3028.60
Bath & North East Somerset Council,10826971,LJ4,Contracts,P01,Transport,SOMERBUS LTD,09/11/2016,3372.00
Bath & North East Somerset Council,80641662,WR8,Internal Council Schools Transfers,Z99,Outside Revenue Accounts,PALLADIAN ACADEMY TRUST RE ST PHILIPS PRIMARY,09/11/2016,3401.00
Bath & North East Somerset Council,10827012,LF5,Postages,P10,Finance & Efficiency,FACILITIES & CORPORATE SOLUTIONS,09/11/2016,3436.49
Bath & North East Somerset Council,10826625,LK1,Fees,P12,Children's Services,ASPIRE ACADEMY,09/11/2016,3490.63
Bath & North East Somerset Council,10826919,PB4,Payments to Private Contractors,P14,Community Services,FAIRPORT CONTAINERS LTD,09/11/2016,3590.00
Bath & North East Somerset Council,10826142,HE1,General Maintenance,P13,Economic Development,MANNINGS FACILITIES MANAGEMENT LTD,09/11/2016,3701.64
Bath & North East Somerset Council,10827028,LM2,Foster Carer Allowances,P12,Children's Services,FUSION FOSTERING LTD,09/11/2016,3857.14
Bath & North East Somerset Council,10826951,3G1,Grants/Advances,P11,Adult Social Care & Health,DOLPHIN LIFTS (WESTERN) LTD,09/11/2016,4294.00
Bath & North East Somerset Council,10827021,LJ4,Contracts,P01,Transport,ROAD RUNNER TAXI BUSES,09/11/2016,4304.84
Bath & North East Somerset Council,10826931,3C4,Building Works,P01,Transport,KELLY BROS SOLAR SIGNS LTD,09/11/2016,4572.00
Bath & North East Somerset Council,10826582,LA1,Equipment Purchase (Non Medical),P14,Community Services,T H WHITE LTD,09/11/2016,4600.00
Bath & North East Somerset Council,10826956,3G1,Grants/Advances,P11,Adult Social Care & Health,J K MOBILITY LTD,09/11/2016,5050.00
Bath & North East Somerset Council,10826922,LP5,Software Support,P10,Finance & Efficiency,ELGIN,09/11/2016,6120.00
Bath & North East Somerset Council,10826944,3F7,External Fees,P01,Transport,CH2M HILL UK,09/11/2016,6162.68
Bath & North East Somerset Council,10826756,LJ3,Other Services to the Council,P01,Transport,CH2M HILL UK,09/11/2016,6977.97
Bath & North East Somerset Council,10826843,LJ1,Consultants Fees,P10,Finance & Efficiency,ARLINGCLOSE LTD,09/11/2016,7225.00
Bath & North East Somerset Council,10826774,LJ4,Contracts,P01,Transport,S. J. & J M MUNDEN T/A GUYAN MINI BUSES,09/11/2016,7490.10
Bath & North East Somerset Council,10827023,3F7,External Fees,P12,Children's Services,BRUNEL DESIGN PARTNERSHIP,09/11/2016,8000.00
Bath & North East Somerset Council,10826976,3C4,Building Works,P12,Children's Services,H MEALING & SONS LTD,09/11/2016,8113.14
Bath & North East Somerset Council,10827018,LJ4,Contracts,P01,Transport,TOMMY JUKES,09/11/2016,8629.70
Bath & North East Somerset Council,10826786,LJ4,Contracts,P11,Adult Social Care & Health,AVON & WILTS MENTAL HEALTH PARTNERSHIP,09/11/2016,8820.00
Bath & North East Somerset Council,10826947,HK1,Highway Maintenance,P01,Transport,VAISALA LTD,09/11/2016,9295.58
Bath & North East Somerset Council,10827053,LJ1,Consultants Fees,P09,Homes & Planning,BNP PARIBAS REAL ESTATE ADVISORY,09/11/2016,9400.00
Bath & North East Somerset Council,10826999,LJ4,Contracts,P12,Children's Services,OFF THE RECORD (B&NES),09/11/2016,11666.66
Bath & North East Somerset Council,10826953,3J2,Consultants,P10,Finance & Efficiency,KTSL LTD,09/11/2016,13300.00
Bath & North East Somerset Council,10827022,LJ1,Consultants Fees,P01,Transport,CH2M HILL UK,09/11/2016,13420.52
Bath & North East Somerset Council,10826632,LJ3,Other Services to the Council,P14,Community Services,STONEMARK INDUSTRIAL LIMITED,09/11/2016,13875.00
Bath & North East Somerset Council,10826839,LJ1,Consultants Fees,P14,Community Services,CAPITA SYMONDS,09/11/2016,16452.70
Bath & North East Somerset Council,10826413,LK1,Fees,P04,Leader,THE CARE FORUM,09/11/2016,20000.00
Bath & North East Somerset Council,10826702,DB1,Agency Staff,P13,Economic Development,WILTSHIRE COUNCIL,09/11/2016,23540.52
Bath & North East Somerset Council,10826877,3N7,Misc. Costs,P13,Economic Development,EVENT COMMUNICATIONS LTD,09/11/2016,25750.00
Bath & North East Somerset Council,10826581,LW9,Other Expenses,P14,Community Services,STOWEY SUTTON PARISH COUNCIL,09/11/2016,31818.00
Bath & North East Somerset Council,10825352,3F7,External Fees,P13,Economic Development,HOARE LEA CONSULTING ENGINEERS,09/11/2016,34778.50
Bath & North East Somerset Council,10827054,3F7,External Fees,P13,Economic Development,PENOYRE & PRASAD LLP,09/11/2016,56871.80
Bath & North East Somerset Council,10827055,3F7,External Fees,P13,Economic Development,PENOYRE & PRASAD LLP,09/11/2016,56871.80
Bath & North East Somerset Council,10826783,3C4,Building Works,P12,Children's Services,H MEALING & SONS LTD,09/11/2016,70658.15
Bath & North East Somerset Council,10826809,3C4,Building Works,P12,Children's Services,H MEALING & SONS LTD,09/11/2016,85557.00
Bath & North East Somerset Council,80641738,PG1,Rent Allowances,P10,Finance & Efficiency,REDACTED,10/11/2016,1153.84
Bath & North East Somerset Council,80641711,PG1,Rent Allowances,P10,Finance & Efficiency,REDACTED,10/11/2016,542.96
Bath & North East Somerset Council,80641679,PG1,Rent Allowances,P10,Finance & Efficiency,ACTION ON HEARING LOSS,10/11/2016,3799.92
Bath & North East Somerset Council,80641714,PG1,Rent Allowances,P10,Finance & Efficiency,ALLEN RESIDENTIAL LETTINGS,10/11/2016,1615.36
Bath & North East Somerset Council,10826739,HK1,Highway Maintenance,P01,Transport,SAKNEL HIGHWAYS STRUCTURES CONTRACTOR,10/11/2016,180.00
Bath & North East Somerset Council,10825981,LA5,Materials,P14,Community Services,LUBBE & SONS (BULBS) LTD,10/11/2016,200.00
Bath & North East Somerset Council,10827050,LJ2,Legal Fees,P09,Homes & Planning,LANDMARK CHAMBERS LTD,10/11/2016,244.00
Bath & North East Somerset Council,80641819,PG1,Rent Allowances,P10,Finance & Efficiency,BARONS PROPERTY AGENTS,10/11/2016,2078.20
Bath & North East Somerset Council,80641840,PG1,Rent Allowances,P10,Finance & Efficiency,BATH & DISTRICT LIFE CARE,10/11/2016,2962.98
Bath & North East Somerset Council,80641715,PG1,Rent Allowances,P10,Finance & Efficiency,BATH PROPERTY LETTING,10/11/2016,2618.04
Bath & North East Somerset Council,10825981,3C4,Building Works,P14,Community Services,LUBBE & SONS (BULBS) LTD,10/11/2016,282.55
Bath & North East Somerset Council,80641727,PG1,Rent Allowances,P10,Finance & Efficiency,C F LETTINGS (BATH) LTD T/A DOVE,10/11/2016,511.34
Bath & North East Somerset Council,80641704,PG1,Rent Allowances,P10,Finance & Efficiency,CREST ESTATE AGENTS,10/11/2016,542.96
Bath & North East Somerset Council,80641646,PG1,Rent Allowances,P10,Finance & Efficiency,CURO,10/11/2016,503.10
Bath & North East Somerset Council,80641657,PG1,Rent Allowances,P10,Finance & Efficiency,CURO,10/11/2016,536.81
Bath & North East Somerset Council,80641654,PG1,Rent Allowances,P10,Finance & Efficiency,CURO,10/11/2016,713.71
Bath & North East Somerset Council,80641659,PG1,Rent Allowances,P10,Finance & Efficiency,CURO,10/11/2016,782.76
Bath & North East Somerset Council,80641655,PG1,Rent Allowances,P10,Finance & Efficiency,CURO,10/11/2016,1000.00
Bath & North East Somerset Council,80641656,PG1,Rent Allowances,P10,Finance & Efficiency,CURO,10/11/2016,1000.00
Bath & North East Somerset Council,80641843,PG1,Rent Allowances,P10,Finance & Efficiency,CURO,10/11/2016,23974.58
Bath & North East Somerset Council,10826817,LJ4,Contracts,P01,Transport,RADSTOCK TAXIS,10/11/2016,450.00
Bath & North East Somerset Council,80641842,PG1,Rent Allowances,P10,Finance & Efficiency,CURO,10/11/2016,67536.11
Bath & North East Somerset Council,80641671,PG1,Rent Allowances,P10,Finance & Efficiency,DEVELOPING HEALTH AND INDEPENDEN,10/11/2016,1628.20
Bath & North East Somerset Council,10826714,LJ2,Legal Fees,P12,Children's Services,MR GRAHAM KEAN,10/11/2016,500.00
Bath & North East Somerset Council,10826716,LJ2,Legal Fees,P12,Children's Services,MR GRAHAM KEAN,10/11/2016,500.00
Bath & North East Somerset Council,10827076,LN4,Mobile Phones,P10,Finance & Efficiency,O2 (UK) LTD,10/11/2016,526.76
Bath & North East Somerset Council,10827070,LN4,Mobile Phones,P10,Finance & Efficiency,O2 (UK) LTD,10/11/2016,526.82
Bath & North East Somerset Council,10827095,LJ4,Contracts,P14,Community Services,FAUN ZOELLOR UK LTD,10/11/2016,544.64
Bath & North East Somerset Council,10826739,HK1,Highway Maintenance,P01,Transport,SAKNEL HIGHWAYS STRUCTURES CONTRACTOR,10/11/2016,673.56
Bath & North East Somerset Council,80641778,PG1,Rent Allowances,P10,Finance & Efficiency,REDACTED,10/11/2016,742.72
Bath & North East Somerset Council,80641729,PG1,Rent Allowances,P10,Finance & Efficiency,DRUGS & HOMELESS INTIATIVE HTL P,10/11/2016,569.54
Bath & North East Somerset Council,10826986,LJ4,Contracts,P01,Transport,RUSSELLS OF BATH PRIVATE HIRE,10/11/2016,759.00
Bath & North East Somerset Council,10827123,LA5,Materials,P14,Community Services,G WILLIAMS & SONS LTD,10/11/2016,867.50
Bath & North East Somerset Council,10827082,LJ4,Contracts,P14,Community Services,FAUN ZOELLOR UK LTD,10/11/2016,891.74
Bath & North East Somerset Council,80641823,PG1,Rent Allowances,P10,Finance & Efficiency,HANOVER HOUSING ASSOCIATION,10/11/2016,1544.04
Bath & North East Somerset Council,10825981,LA5,Materials,P14,Community Services,LUBBE & SONS (BULBS) LTD,10/11/2016,925.00
Bath & North East Somerset Council,80641730,PG1,Rent Allowances,P10,Finance & Efficiency,REDACTED (BRISTOL LTD),10/11/2016,664.60
Bath & North East Somerset Council,80641809,PG1,Rent Allowances,P10,Finance & Efficiency,JULIAN HOUSE,10/11/2016,6291.75
Bath & North East Somerset Council,10826998,LJ8,PCB External Fees,P13,Economic Development,SOUTH GLOUCESTERSHIRE COUNCIL,10/11/2016,1000.00
Bath & North East Somerset Council,10827047,LJ2,Legal Fees,P12,Children's Services,MR GRAHAM KEAN,10/11/2016,1000.00
Bath & North East Somerset Council,80641807,PG1,Rent Allowances,P10,Finance & Efficiency,KNIGHTSTONE HOUSING ASSOCIATION,10/11/2016,1850.24
Bath & North East Somerset Council,80641803,PG1,Rent Allowances,P10,Finance & Efficiency,KNIGHTSTONE HOUSING ASSOCIATION,10/11/2016,8774.86
Bath & North East Somerset Council,80641820,PG1,Rent Allowances,P10,Finance & Efficiency,KNIGHTSTONE HOUSING ASSOCIATION,10/11/2016,11326.64
Bath & North East Somerset Council,10826988,LJ4,Contracts,P01,Transport,RUSSELLS OF BATH PRIVATE HIRE,10/11/2016,1095.00
Bath & North East Somerset Council,10826984,LJ4,Contracts,P01,Transport,RUSSELLS OF BATH PRIVATE HIRE,10/11/2016,1100.00
Bath & North East Somerset Council,10826990,LJ4,Contracts,P01,Transport,RUSSELLS OF BATH PRIVATE HIRE,10/11/2016,1187.50
Bath & North East Somerset Council,10827111,3F7,External Fees,P01,Transport,CHURCHFARM MAINTENANCE LTD,10/11/2016,1196.00
Bath & North East Somerset Council,10826982,LJ4,Contracts,P01,Transport,RUSSELLS OF BATH PRIVATE HIRE,10/11/2016,1215.00
Bath & North East Somerset Council,80641740,PG1,Rent Allowances,P10,Finance & Efficiency,REDACTED,10/11/2016,899.26
Bath & North East Somerset Council,10827050,LJ2,Legal Fees,P09,Homes & Planning,LANDMARK CHAMBERS LTD,10/11/2016,1220.00
Bath & North East Somerset Council,10826989,LJ4,Contracts,P01,Transport,RUSSELLS OF BATH PRIVATE HIRE,10/11/2016,1264.00
Bath & North East Somerset Council,10826983,LJ4,Contracts,P01,Transport,RUSSELLS OF BATH PRIVATE HIRE,10/11/2016,1279.50
Bath & North East Somerset Council,80641827,PG1,Rent Allowances,P10,Finance & Efficiency,REDACTED,10/11/2016,668.92
Bath & North East Somerset Council,80641722,PG1,Rent Allowances,P10,Finance & Efficiency,REDACTED,10/11/2016,1932.29
Bath & North East Somerset Council,80641786,PG1,Rent Allowances,P10,Finance & Efficiency,REDACTED,10/11/2016,2186.07
Bath & North East Somerset Council,80641783,PG1,Rent Allowances,P10,Finance & Efficiency,REDACTED,10/11/2016,606.88
Bath & North East Somerset Council,10827045,LJ2,Legal Fees,P12,Children's Services,MR GRAHAM KEAN,10/11/2016,1300.00
Bath & North East Somerset Council,80641789,PG1,Rent Allowances,P10,Finance & Efficiency,REDACTED,10/11/2016,1337.84
Bath & North East Somerset Council,80641691,PG1,Rent Allowances,P10,Finance & Efficiency,REDACTED,10/11/2016,668.92
Bath & North East Somerset Council,80641678,PG1,Rent Allowances,P10,Finance & Efficiency,REDACTED,10/11/2016,539.32
Bath & North East Somerset Council,80641825,PG1,Rent Allowances,P10,Finance & Efficiency,REDACTED,10/11/2016,521.52
Bath & North East Somerset Council,80641690,PG1,Rent Allowances,P10,Finance & Efficiency,REDACTED,10/11/2016,509.31
Bath & North East Somerset Council,80641742,PG1,Rent Allowances,P10,Finance & Efficiency,REDACTED,10/11/2016,678.48
Bath & North East Somerset Council,80641725,PG1,Rent Allowances,P10,Finance & Efficiency,REDACTED,10/11/2016,511.00
Bath & North East Somerset Council,80641748,PG1,Rent Allowances,P10,Finance & Efficiency,REDACTED,10/11/2016,1163.08
Bath & North East Somerset Council,80641785,PG1,Rent Allowances,P10,Finance & Efficiency,REDACTED,10/11/2016,521.28
Bath & North East Somerset Council,80641830,PG1,Rent Allowances,P10,Finance & Efficiency,REDACTED,10/11/2016,1050.64
Bath & North East Somerset Council,80641731,PG1,Rent Allowances,P10,Finance & Efficiency,REDACTED,10/11/2016,507.68
Bath & North East Somerset Council,80641741,PG1,Rent Allowances,P10,Finance & Efficiency,REDACTED,10/11/2016,504.37
Bath & North East Somerset Council,80641733,PG1,Rent Allowances,P10,Finance & Efficiency,REDACTED,10/11/2016,588.44
Bath & North East Somerset Council,10827049,LJ2,Legal Fees,P12,Children's Services,MR GRAHAM KEAN,10/11/2016,1400.00
Bath & North East Somerset Council,80641675,PG1,Rent Allowances,P10,Finance & Efficiency,REDACTED,10/11/2016,1080.20
Bath & North East Somerset Council,80641699,PG1,Rent Allowances,P10,Finance & Efficiency,REDACTED,10/11/2016,600.00
Bath & North East Somerset Council,80641685,PG1,Rent Allowances,P10,Finance & Efficiency,REDACTED,10/11/2016,2167.70
Bath & North East Somerset Council,80641707,PG1,Rent Allowances,P10,Finance & Efficiency,REDACTED,10/11/2016,623.08
Bath & North East Somerset Council,80641694,PG1,Rent Allowances,P10,Finance & Efficiency,REDACTED,10/11/2016,813.92
Bath & North East Somerset Council,80641821,PG1,Rent Allowances,P10,Finance & Efficiency,REDACTED,10/11/2016,542.96
Bath & North East Somerset Council,80641683,PG1,Rent Allowances,P10,Finance & Efficiency,REDACTED,10/11/2016,668.92
Bath & North East Somerset Council,80641681,PG1,Rent Allowances,P10,Finance & Efficiency,REDACTED,10/11/2016,1214.40
Bath & North East Somerset Council,80641833,PG1,Rent Allowances,P10,Finance & Efficiency,REDACTED,10/11/2016,553.84
Bath & North East Somerset Council,80641838,PG1,Rent Allowances,P10,Finance & Efficiency,REDACTED,10/11/2016,542.96
Bath & North East Somerset Council,80641814,PG1,Rent Allowances,P10,Finance & Efficiency,REDACTED,10/11/2016,641.52
Bath & North East Somerset Council,80641791,PG1,Rent Allowances,P10,Finance & Efficiency,REDACTED,10/11/2016,553.84
Bath & North East Somerset Council,80641684,PG1,Rent Allowances,P10,Finance & Efficiency,REDACTED,10/11/2016,825.00
Bath & North East Somerset Council,80641697,PG1,Rent Allowances,P10,Finance & Efficiency,REDACTED,10/11/2016,1490.72
Bath & North East Somerset Council,80641737,PG1,Rent Allowances,P10,Finance & Efficiency,REDACTED,10/11/2016,503.52
Bath & North East Somerset Council,80641689,PG1,Rent Allowances,P10,Finance & Efficiency,REDACTED,10/11/2016,542.96
Bath & North East Somerset Council,80641719,PG1,Rent Allowances,P10,Finance & Efficiency,REDACTED,10/11/2016,784.64
Bath & North East Somerset Council,80641728,PG1,Rent Allowances,P10,Finance & Efficiency,REDACTED,10/11/2016,542.96
Bath & North East Somerset Council,80641695,PG1,Rent Allowances,P10,Finance & Efficiency,REDACTED,10/11/2016,784.60
Bath & North East Somerset Council,80641696,PG1,Rent Allowances,P10,Finance & Efficiency,REDACTED,10/11/2016,2838.96
Bath & North East Somerset Council,80641673,PG1,Rent Allowances,P10,Finance & Efficiency,REDACTED,10/11/2016,606.00
Bath & North East Somerset Council,80641784,PG1,Rent Allowances,P10,Finance & Efficiency,REDACTED,10/11/2016,1337.90
Bath & North East Somerset Council,80641732,PG1,Rent Allowances,P10,Finance & Efficiency,REDACTED,10/11/2016,661.84
Bath & North East Somerset Council,80641698,PG1,Rent Allowances,P10,Finance & Efficiency,REDACTED,10/11/2016,916.40
Bath & North East Somerset Council,80641708,PG1,Rent Allowances,P10,Finance & Efficiency,REDACTED,10/11/2016,579.00
Bath & North East Somerset Council,80641724,PG1,Rent Allowances,P10,Finance & Efficiency,REDACTED,10/11/2016,916.25
Bath & North East Somerset Council,80641703,PG1,Rent Allowances,P10,Finance & Efficiency,NEXT LINK,10/11/2016,4867.50
Bath & North East Somerset Council,80641705,PG1,Rent Allowances,P10,Finance & Efficiency,OPTIONS FOR LIVING LTD,10/11/2016,1906.16
Bath & North East Somerset Council,80641693,PG1,Rent Allowances,P10,Finance & Efficiency,P.E.O.P.L.E.,10/11/2016,1804.80
Bath & North East Somerset Council,80641805,PG1,Rent Allowances,P10,Finance & Efficiency,PEGASUS PROPERTIES,10/11/2016,1684.28
Bath & North East Somerset Council,80641822,PG1,Rent Allowances,P10,Finance & Efficiency,PLACES FOR PEOPLE HOMES,10/11/2016,3911.12
Bath & North East Somerset Council,10827134,LL1,Services to/for Clients,P12,Children's Services,NEWCROSS HEALTHCARE SOLUTIONS LTD,10/11/2016,2167.14
Bath & North East Somerset Council,10827124,LM2,Foster Carer Allowances,P12,Children's Services,PREMIER CARE MANAGEMENT LTD,10/11/2016,2310.00
Bath & North East Somerset Council,10827142,LL1,Services to/for Clients,P12,Children's Services,NEWCROSS HEALTHCARE SOLUTIONS LTD,10/11/2016,2372.69
Bath & North East Somerset Council,10827129,LM8,Home Care,P11,Adult Social Care & Health,REDACTED,10/11/2016,2610.00
Bath & North East Somerset Council,10827110,LV2,Contributions to Organisations,P04,Leader,RADSTOCK TOWN COUNCIL,10/11/2016,750.00
Bath & North East Somerset Council,10827140,LL1,Services to/for Clients,P12,Children's Services,NEWCROSS HEALTHCARE SOLUTIONS LTD,10/11/2016,2466.46
Bath & North East Somerset Council,10827139,LL1,Services to/for Clients,P12,Children's Services,NEWCROSS HEALTHCARE SOLUTIONS LTD,10/11/2016,2471.95
Bath & North East Somerset Council,10827135,LJ4,Contracts,P10,Finance & Efficiency,FOCUS ON BANKING LTD,10/11/2016,2532.40
Bath & North East Somerset Council,10827072,LN4,Mobile Phones,P10,Finance & Efficiency,O2 (UK) LTD,10/11/2016,2657.17
Bath & North East Somerset Council,10827149,LL1,Services to/for Clients,P12,Children's Services,NEWCROSS HEALTHCARE SOLUTIONS LTD,10/11/2016,2771.73
Bath & North East Somerset Council,80641813,PG1,Rent Allowances,P10,Finance & Efficiency,SANCTUARY HOUSING ASSOCIATION,10/11/2016,1063.68
Bath & North East Somerset Council,10826725,LJ2,Legal Fees,P12,Children's Services,GRAEME HARRISON,10/11/2016,2910.00
Bath & North East Somerset Council,10827060,LM8,Home Care,P11,Adult Social Care & Health,SELBORNE CARE LTD,10/11/2016,632.20
Bath & North East Somerset Council,10827125,LM8,Home Care,P11,Adult Social Care & Health,SELBORNE CARE LTD,10/11/2016,1060.60
Bath & North East Somerset Council,10827059,LM8,Home Care,P11,Adult Social Care & Health,SELBORNE CARE LTD,10/11/2016,1316.00
Bath & North East Somerset Council,10827130,LM8,Home Care,P11,Adult Social Care & Health,SELBORNE CARE LTD,10/11/2016,1710.80
Bath & North East Somerset Council,80641743,PG1,Rent Allowances,P10,Finance & Efficiency,SELWOOD HOUSING,10/11/2016,985.33
Bath & North East Somerset Council,10823224,LK1,Fees,P12,Children's Services,SARI,10/11/2016,2923.50
Bath & North East Somerset Council,80641726,PG1,Rent Allowances,P10,Finance & Efficiency,SHELAND LTD,10/11/2016,646.16
Bath & North East Somerset Council,10827164,LM2,Foster Carer Allowances,P12,Children's Services,TACT,10/11/2016,3065.28
Bath & North East Somerset Council,10827065,LN4,Mobile Phones,P10,Finance & Efficiency,O2 (UK) LTD,10/11/2016,3129.45
Bath & North East Somerset Council,10827111,3F7,External Fees,P01,Transport,CHURCHFARM MAINTENANCE LTD,10/11/2016,3144.00
Bath & North East Somerset Council,10827162,LM2,Foster Carer Allowances,P12,Children's Services,PATHWAY CARE (BRISTOL) LTD,10/11/2016,3238.27
Bath & North East Somerset Council,10827073,LN4,Mobile Phones,P10,Finance & Efficiency,O2 (UK) LTD,10/11/2016,3754.31
Bath & North East Somerset Council,10826718,LJ2,Legal Fees,P12,Children's Services,IAN HALLIDAY,10/11/2016,4250.00
Bath & North East Somerset Council,10827150,LA1,Equipment Purchase (Non Medical),P12,Children's Services,SOFA PROJECT,10/11/2016,4316.63
Bath & North East Somerset Council,10826817,LJ4,Contracts,P01,Transport,RADSTOCK TAXIS,10/11/2016,4552.00
Bath & North East Somerset Council,10822279,HA6,Planned Maintenance PCB,P10,Finance & Efficiency,BAILEY PARTNERSHIP,10/11/2016,4680.00
Bath & North East Somerset Council,10827114,LM2,Foster Carer Allowances,P12,Children's Services,ENHANCED FOSTER CARE LTD,10/11/2016,4830.00
Bath & North East Somerset Council,10827115,LM2,Foster Carer Allowances,P12,Children's Services,ENHANCED FOSTER CARE LTD,10/11/2016,4928.57
Bath & North East Somerset Council,10827074,LN4,Mobile Phones,P10,Finance & Efficiency,O2 (UK) LTD,10/11/2016,5089.92
Bath & North East Somerset Council,80641709,PG1,Rent Allowances,P10,Finance & Efficiency,REDACTED,10/11/2016,4466.68
Bath & North East Somerset Council,80641831,PG1,Rent Allowances,P10,Finance & Efficiency,THE BATH PROPERTY SHOP,10/11/2016,1052.32
Bath & North East Somerset Council,10826842,3C4,Building Works,P01,Transport,SAFE AND SOUND UK LIMITED,10/11/2016,5863.00
Bath & North East Somerset Council,80641810,PG1,Rent Allowances,P10,Finance & Efficiency,THE GUINNESS PARTNERSHIP,10/11/2016,3596.47
Bath & North East Somerset Council,80641811,PG1,Rent Allowances,P10,Finance & Efficiency,THE GUINNESS TRUST,10/11/2016,1991.20
Bath & North East Somerset Council,10826078,3F7,External Fees,P13,Economic Development,CAPITA SYMONDS,10/11/2016,7202.67
Bath & North East Somerset Council,10827096,LM1,Volunt Homes Placements Top/Up,P12,Children's Services,NEW FOREST CARE LTD,10/11/2016,8300.00
Bath & North East Somerset Council,10827118,3E6,IT Software,P04,Leader,CETUS SOLUTIONS LIMITED,10/11/2016,8798.00
Bath & North East Somerset Council,10826991,LJ4,Contracts,P01,Transport,MINIBUS TRAVEL,10/11/2016,9019.20
Bath & North East Somerset Council,80641674,PG1,Rent Allowances,P10,Finance & Efficiency,TRUSTEASE PROPERTY MANAGEMENT LT,10/11/2016,1912.64
Bath & North East Somerset Council,10827113,LM2,Foster Carer Allowances,P12,Children's Services,NEXT STEP CARE MANAGEMENT LTD,10/11/2016,14614.29
Bath & North East Somerset Council,10827131,LM2,Foster Carer Allowances,P12,Children's Services,PREMIER CARE MANAGEMENT LTD,10/11/2016,15005.00
Bath & North East Somerset Council,10827127,LM1,Volunt Homes Placements Top/Up,P12,Children's Services,PREMIER CARE MANAGEMENT LTD,10/11/2016,15084.00
Bath & North East Somerset Council,10827102,LM2,Foster Carer Allowances,P12,Children's Services,CROSSWAYS CARE LTD,10/11/2016,16731.14
Bath & North East Somerset Council,10827118,3E6,IT Software,P04,Leader,CETUS SOLUTIONS LIMITED,10/11/2016,40000.00
Bath & North East Somerset Council,10827128,DB1,Agency Staff,P10,Finance & Efficiency,COMENSURA LTD,10/11/2016,50144.15
Bath & North East Somerset Council,10827118,3E6,IT Software,P10,Finance & Efficiency,CETUS SOLUTIONS LIMITED,10/11/2016,50500.00
Bath & North East Somerset Council,10827098,LJ1,Consultants Fees,P10,Finance & Efficiency,NEPRO LTD,10/11/2016,59075.85
Bath & North East Somerset Council,10827030,LM1,Volunt Homes Placements Top/Up,P12,Children's Services,CLAY HILL SCHOOL PRIORY,10/11/2016,65962.66
Bath & North East Somerset Council,10827031,LM1,Volunt Homes Placements Top/Up,P12,Children's Services,TALOCHER SCHOOL PRIORY,10/11/2016,138672.00
Bath & North East Somerset Council,80642398,LM3,Residential Care,P11,Adult Social Care & Health,6 THE AVENUE -KEYNSHAM MENCAP,14/11/2016,1168.00
Bath & North East Somerset Council,80642398,LM3,Residential Care,P11,Adult Social Care & Health,6 THE AVENUE -KEYNSHAM MENCAP,14/11/2016,1180.00
Bath & North East Somerset Council,80642398,LM3,Residential Care,P11,Adult Social Care & Health,6 THE AVENUE -KEYNSHAM MENCAP,14/11/2016,1180.00
Bath & North East Somerset Council,80642398,LM3,Residential Care,P11,Adult Social Care & Health,6 THE AVENUE -KEYNSHAM MENCAP,14/11/2016,1180.00
Bath & North East Somerset Council,80642398,LM3,Residential Care,P11,Adult Social Care & Health,6 THE AVENUE -KEYNSHAM MENCAP,14/11/2016,1366.00
Bath & North East Somerset Council,80642398,LM3,Residential Care,P11,Adult Social Care & Health,6 THE AVENUE -KEYNSHAM MENCAP,14/11/2016,1984.00
Bath & North East Somerset Council,80641871,LM8,Home Care,P11,Adult Social Care & Health,AGINCARE LIVE IN CARE SERVICES LTD,14/11/2016,1400.00
Bath & North East Somerset Council,80641871,LM8,Home Care,P11,Adult Social Care & Health,AGINCARE LIVE IN CARE SERVICES LTD,14/11/2016,1530.06
Bath & North East Somerset Council,80642221,LL8,Individualised Budget,P11,Adult Social Care & Health,REDACTED,14/11/2016,2969.00
Bath & North East Somerset Council,80642448,LM3,Residential Care,P11,Adult Social Care & Health,ALEXANDRA HOMES (BRISTOL) LTD,14/11/2016,3674.00
Bath & North East Somerset Council,80642154,LL8,Individualised Budget,P11,Adult Social Care & Health,REDACTED,14/11/2016,1696.80
Bath & North East Somerset Council,80639185,LM3,Residential Care,P11,Adult Social Care & Health,ALMONDSBURY CARE LTD,14/11/2016,1300.00
Bath & North East Somerset Council,80642484,LM3,Residential Care,P11,Adult Social Care & Health,ALMONDSBURY CARE LTD,14/11/2016,1300.00
Bath & North East Somerset Council,80642484,XD3,Client Contributions,P11,Adult Social Care & Health,ALMONDSBURY CARE LTD,14/11/2016,2233.44
Bath & North East Somerset Council,80641862,LM9,Day Care,P11,Adult Social Care & Health,ALZHEIMER'S SOCIETY,14/11/2016,633.06
Bath & North East Somerset Council,80641864,LM8,Home Care,P11,Adult Social Care & Health,AMBER HOMECARE LTD,14/11/2016,909.77
Bath & North East Somerset Council,80641864,LM8,Home Care,P11,Adult Social Care & Health,AMBER HOMECARE LTD,14/11/2016,1172.21
Bath & North East Somerset Council,80642506,LM6,Nursing Care,P11,Adult Social Care & Health,AMBLESIDE NURSING HOME,14/11/2016,1590.00
Bath & North East Somerset Council,80642506,LM6,Nursing Care,P11,Adult Social Care & Health,AMBLESIDE NURSING HOME,14/11/2016,1618.00
Bath & North East Somerset Council,80642406,LM3,Residential Care,P11,Adult Social Care & Health,ANCHOR TRUST,14/11/2016,904.00
Bath & North East Somerset Council,80642406,LM3,Residential Care,P11,Adult Social Care & Health,ANCHOR TRUST,14/11/2016,904.00
Bath & North East Somerset Council,80642406,LM3,Residential Care,P11,Adult Social Care & Health,ANCHOR TRUST,14/11/2016,1052.00
Bath & North East Somerset Council,80642406,LM3,Residential Care,P11,Adult Social Care & Health,ANCHOR TRUST,14/11/2016,1124.00
Bath & North East Somerset Council,80642406,XD3,Client Contributions,P11,Adult Social Care & Health,ANCHOR TRUST,14/11/2016,1259.04
Bath & North East Somerset Council,80642406,LM3,Residential Care,P11,Adult Social Care & Health,ANCHOR TRUST,14/11/2016,1305.90
Bath & North East Somerset Council,80642406,LM3,Residential Care,P11,Adult Social Care & Health,ANCHOR TRUST,14/11/2016,1388.00
Bath & North East Somerset Council,80642406,LM3,Residential Care,P11,Adult Social Care & Health,ANCHOR TRUST,14/11/2016,1388.00
Bath & North East Somerset Council,80642406,LM3,Residential Care,P11,Adult Social Care & Health,ANCHOR TRUST,14/11/2016,1430.00
Bath & North East Somerset Council,80642406,LM3,Residential Care,P11,Adult Social Care & Health,ANCHOR TRUST,14/11/2016,1516.00
Bath & North East Somerset Council,80642406,LM3,Residential Care,P11,Adult Social Care & Health,ANCHOR TRUST,14/11/2016,1516.00
Bath & North East Somerset Council,80642406,LM3,Residential Care,P11,Adult Social Care & Health,ANCHOR TRUST,14/11/2016,1590.00
Bath & North East Somerset Council,80642406,LM6,Nursing Care,P11,Adult Social Care & Health,ANCHOR TRUST,14/11/2016,1700.00
Bath & North East Somerset Council,80642406,LM3,Residential Care,P11,Adult Social Care & Health,ANCHOR TRUST,14/11/2016,1700.00
Bath & North East Somerset Council,80642406,LM3,Residential Care,P11,Adult Social Care & Health,ANCHOR TRUST,14/11/2016,1750.00
Bath & North East Somerset Council,80642334,LL8,Individualised Budget,P11,Adult Social Care & Health,REDACTED,14/11/2016,699.94
Bath & North East Somerset Council,80642034,LL8,Individualised Budget,P11,Adult Social Care & Health,REDACTED,14/11/2016,4930.70
Bath & North East Somerset Council,80642444,LM8,Home Care,P11,Adult Social Care & Health,ARCH CARE SERVICES,14/11/2016,36.00
Bath & North East Somerset Council,80642444,LM8,Home Care,P11,Adult Social Care & Health,ARCH CARE SERVICES,14/11/2016,144.00
Bath & North East Somerset Council,80642444,LM8,Home Care,P11,Adult Social Care & Health,ARCH CARE SERVICES,14/11/2016,162.00
Bath & North East Somerset Council,80642444,LM8,Home Care,P11,Adult Social Care & Health,ARCH CARE SERVICES,14/11/2016,180.00
Bath & North East Somerset Council,80642444,LM8,Home Care,P11,Adult Social Care & Health,ARCH CARE SERVICES,14/11/2016,180.00
Bath & North East Somerset Council,80642444,LM8,Home Care,P11,Adult Social Care & Health,ARCH CARE SERVICES,14/11/2016,180.00
Bath & North East Somerset Council,80642444,LM8,Home Care,P11,Adult Social Care & Health,ARCH CARE SERVICES,14/11/2016,270.00
Bath & North East Somerset Council,80642444,LM8,Home Care,P11,Adult Social Care & Health,ARCH CARE SERVICES,14/11/2016,360.00
Bath & North East Somerset Council,80642444,LM8,Home Care,P11,Adult Social Care & Health,ARCH CARE SERVICES,14/11/2016,505.00
Bath & North East Somerset Council,80642444,LM8,Home Care,P11,Adult Social Care & Health,ARCH CARE SERVICES,14/11/2016,540.00
Bath & North East Somerset Council,80642444,LM8,Home Care,P11,Adult Social Care & Health,ARCH CARE SERVICES,14/11/2016,700.00
Bath & North East Somerset Council,80642444,LM8,Home Care,P11,Adult Social Care & Health,ARCH CARE SERVICES,14/11/2016,800.00
Bath & North East Somerset Council,80642072,LM6,Nursing Care,P11,Adult Social Care & Health,ARCH CARE SERVICES,14/11/2016,854.00
Bath & North East Somerset Council,80642444,LM8,Home Care,P11,Adult Social Care & Health,ARCH CARE SERVICES,14/11/2016,860.00
Bath & North East Somerset Council,80642444,LM8,Home Care,P11,Adult Social Care & Health,ARCH CARE SERVICES,14/11/2016,860.00
Bath & North East Somerset Council,80642444,LM8,Home Care,P11,Adult Social Care & Health,ARCH CARE SERVICES,14/11/2016,860.00
Bath & North East Somerset Council,80642444,LM8,Home Care,P11,Adult Social Care & Health,ARCH CARE SERVICES,14/11/2016,860.00
Bath & North East Somerset Council,80642444,LM8,Home Care,P11,Adult Social Care & Health,ARCH CARE SERVICES,14/11/2016,1030.00
Bath & North East Somerset Council,80642510,LM3,Residential Care,P11,Adult Social Care & Health,ARTI CARE HOMES (SOUTHWEST) LTD,14/11/2016,904.00
Bath & North East Somerset Council,80642510,LM3,Residential Care,P11,Adult Social Care & Health,ARTI CARE HOMES (SOUTHWEST) LTD,14/11/2016,904.00
Bath & North East Somerset Council,80642510,LM3,Residential Care,P11,Adult Social Care & Health,ARTI CARE HOMES (SOUTHWEST) LTD,14/11/2016,904.00
Bath & North East Somerset Council,80642510,LM3,Residential Care,P11,Adult Social Care & Health,ARTI CARE HOMES (SOUTHWEST) LTD,14/11/2016,904.00
Bath & North East Somerset Council,80642510,LM3,Residential Care,P11,Adult Social Care & Health,ARTI CARE HOMES (SOUTHWEST) LTD,14/11/2016,904.00
Bath & North East Somerset Council,80642510,LM3,Residential Care,P11,Adult Social Care & Health,ARTI CARE HOMES (SOUTHWEST) LTD,14/11/2016,904.00
Bath & North East Somerset Council,80642510,LM3,Residential Care,P11,Adult Social Care & Health,ARTI CARE HOMES (SOUTHWEST) LTD,14/11/2016,904.00
Bath & North East Somerset Council,80642510,LM3,Residential Care,P11,Adult Social Care & Health,ARTI CARE HOMES (SOUTHWEST) LTD,14/11/2016,992.00
Bath & North East Somerset Council,80642510,LM3,Residential Care,P11,Adult Social Care & Health,ARTI CARE HOMES (SOUTHWEST) LTD,14/11/2016,1052.00
Bath & North East Somerset Council,80642510,LM3,Residential Care,P11,Adult Social Care & Health,ARTI CARE HOMES (SOUTHWEST) LTD,14/11/2016,1066.00
Bath & North East Somerset Council,80642510,LM3,Residential Care,P11,Adult Social Care & Health,ARTI CARE HOMES (SOUTHWEST) LTD,14/11/2016,1310.00
Bath & North East Somerset Council,80642088,LM6,Nursing Care,P11,Adult Social Care & Health,ARTI CARE HOMES (SOUTHWEST) LTD,14/11/2016,14877.86
Bath & North East Somerset Council,80642443,LM3,Residential Care,P11,Adult Social Care & Health,ARTI SERVICES LTD T/A THE MANOR FARM HOUSE,14/11/2016,904.00
Bath & North East Somerset Council,80642443,LM3,Residential Care,P11,Adult Social Care & Health,ARTI SERVICES LTD T/A THE MANOR FARM HOUSE,14/11/2016,904.00
Bath & North East Somerset Council,80642443,LM3,Residential Care,P11,Adult Social Care & Health,ARTI SERVICES LTD T/A THE MANOR FARM HOUSE,14/11/2016,904.00
Bath & North East Somerset Council,80642443,LM3,Residential Care,P11,Adult Social Care & Health,ARTI SERVICES LTD T/A THE MANOR FARM HOUSE,14/11/2016,904.00
Bath & North East Somerset Council,80642443,LM3,Residential Care,P11,Adult Social Care & Health,ARTI SERVICES LTD T/A THE MANOR FARM HOUSE,14/11/2016,904.00
Bath & North East Somerset Council,80642443,LM3,Residential Care,P11,Adult Social Care & Health,ARTI SERVICES LTD T/A THE MANOR FARM HOUSE,14/11/2016,992.00
Bath & North East Somerset Council,80642443,LM3,Residential Care,P11,Adult Social Care & Health,ARTI SERVICES LTD T/A THE MANOR FARM HOUSE,14/11/2016,992.00
Bath & North East Somerset Council,80642443,LM3,Residential Care,P11,Adult Social Care & Health,ARTI SERVICES LTD T/A THE MANOR FARM HOUSE,14/11/2016,992.00
Bath & North East Somerset Council,80642443,LM3,Residential Care,P11,Adult Social Care & Health,ARTI SERVICES LTD T/A THE MANOR FARM HOUSE,14/11/2016,1138.00
Bath & North East Somerset Council,80642443,LM3,Residential Care,P11,Adult Social Care & Health,ARTI SERVICES LTD T/A THE MANOR FARM HOUSE,14/11/2016,1310.00
Bath & North East Somerset Council,80642407,LM3,Residential Care,P11,Adult Social Care & Health,ASPECTS & MILESTONES TRUST,14/11/2016,1722.00
Bath & North East Somerset Council,80642407,LM3,Residential Care,P11,Adult Social Care & Health,ASPECTS & MILESTONES TRUST,14/11/2016,1920.00
Bath & North East Somerset Council,80642407,LM3,Residential Care,P11,Adult Social Care & Health,ASPECTS & MILESTONES TRUST,14/11/2016,2042.00
Bath & North East Somerset Council,80642407,LM3,Residential Care,P11,Adult Social Care & Health,ASPECTS & MILESTONES TRUST,14/11/2016,4028.00
Bath & North East Somerset Council,80642407,LM3,Residential Care,P11,Adult Social Care & Health,ASPECTS & MILESTONES TRUST,14/11/2016,5120.00
Bath & North East Somerset Council,80642407,LM3,Residential Care,P11,Adult Social Care & Health,ASPECTS & MILESTONES TRUST,14/11/2016,86792.18
Bath & North East Somerset Council,80642425,LM3,Residential Care,P11,Adult Social Care & Health,AUTISM SPECIALISED CARE HOMES LTD,14/11/2016,2622.00
Bath & North East Somerset Council,80642461,LM3,Residential Care,P11,Adult Social Care & Health,BAMFIELD LODGE LIMITED,14/11/2016,992.00
Bath & North East Somerset Council,80642033,LM6,Nursing Care,P11,Adult Social Care & Health,BARCHESTER HEALTH CARE,14/11/2016,312.50
Bath & North East Somerset Council,80642033,LM6,Nursing Care,P11,Adult Social Care & Health,BARCHESTER HEALTH CARE,14/11/2016,312.50
Bath & North East Somerset Council,80642033,LM6,Nursing Care,P11,Adult Social Care & Health,BARCHESTER HEALTH CARE,14/11/2016,312.50
Bath & North East Somerset Council,80642033,LM6,Nursing Care,P11,Adult Social Care & Health,BARCHESTER HEALTH CARE,14/11/2016,312.50
Bath & North East Somerset Council,80642033,LM6,Nursing Care,P11,Adult Social Care & Health,BARCHESTER HEALTH CARE,14/11/2016,312.50
Bath & North East Somerset Council,80642033,LM6,Nursing Care,P11,Adult Social Care & Health,BARCHESTER HEALTH CARE,14/11/2016,312.50
Bath & North East Somerset Council,80642033,LM6,Nursing Care,P11,Adult Social Care & Health,BARCHESTER HEALTH CARE,14/11/2016,312.50
Bath & North East Somerset Council,80642033,LM6,Nursing Care,P11,Adult Social Care & Health,BARCHESTER HEALTH CARE,14/11/2016,312.50
Bath & North East Somerset Council,80642033,LM6,Nursing Care,P11,Adult Social Care & Health,BARCHESTER HEALTH CARE,14/11/2016,312.50
Bath & North East Somerset Council,80642033,LM6,Nursing Care,P11,Adult Social Care & Health,BARCHESTER HEALTH CARE,14/11/2016,312.50
Bath & North East Somerset Council,80642033,LM6,Nursing Care,P11,Adult Social Care & Health,BARCHESTER HEALTH CARE,14/11/2016,312.50
Bath & North East Somerset Council,80642033,LM6,Nursing Care,P11,Adult Social Care & Health,BARCHESTER HEALTH CARE,14/11/2016,312.50
Bath & North East Somerset Council,80642033,LM6,Nursing Care,P11,Adult Social Care & Health,BARCHESTER HEALTH CARE,14/11/2016,312.50
Bath & North East Somerset Council,80642033,LM6,Nursing Care,P11,Adult Social Care & Health,BARCHESTER HEALTH CARE,14/11/2016,312.50
Bath & North East Somerset Council,80642033,LM6,Nursing Care,P11,Adult Social Care & Health,BARCHESTER HEALTH CARE,14/11/2016,312.50
Bath & North East Somerset Council,80642033,LM6,Nursing Care,P11,Adult Social Care & Health,BARCHESTER HEALTH CARE,14/11/2016,312.50
Bath & North East Somerset Council,80642486,LM6,Nursing Care,P11,Adult Social Care & Health,BARCHESTER HEALTH CARE,14/11/2016,1477.60
Bath & North East Somerset Council,80642486,LM3,Residential Care,P11,Adult Social Care & Health,BARCHESTER HEALTH CARE,14/11/2016,1700.00
Bath & North East Somerset Council,80642486,LM6,Nursing Care,P11,Adult Social Care & Health,BARCHESTER HEALTH CARE,14/11/2016,1700.00
Bath & North East Somerset Council,80642486,LM6,Nursing Care,P11,Adult Social Care & Health,BARCHESTER HEALTH CARE,14/11/2016,1700.00
Bath & North East Somerset Council,80642486,LM6,Nursing Care,P11,Adult Social Care & Health,BARCHESTER HEALTH CARE,14/11/2016,1850.00
Bath & North East Somerset Council,80642486,LM6,Nursing Care,P11,Adult Social Care & Health,BARCHESTER HEALTH CARE,14/11/2016,1850.00
Bath & North East Somerset Council,80642486,LM6,Nursing Care,P11,Adult Social Care & Health,BARCHESTER HEALTH CARE,14/11/2016,1850.00
Bath & North East Somerset Council,80642486,LM6,Nursing Care,P11,Adult Social Care & Health,BARCHESTER HEALTH CARE,14/11/2016,1850.00
Bath & North East Somerset Council,80642486,LM6,Nursing Care,P11,Adult Social Care & Health,BARCHESTER HEALTH CARE,14/11/2016,1850.00
Bath & North East Somerset Council,80642081,LM6,Nursing Care,P11,Adult Social Care & Health,BARCHESTER HEALTH CARE,14/11/2016,1986.00
Bath & North East Somerset Council,80642081,LM6,Nursing Care,P11,Adult Social Care & Health,BARCHESTER HEALTH CARE,14/11/2016,2238.00
Bath & North East Somerset Council,80642081,LM6,Nursing Care,P11,Adult Social Care & Health,BARCHESTER HEALTH CARE,14/11/2016,2278.00
Bath & North East Somerset Council,80642486,LM6,Nursing Care,P11,Adult Social Care & Health,BARCHESTER HEALTH CARE,14/11/2016,2348.00
Bath & North East Somerset Council,80642486,LM6,Nursing Care,P11,Adult Social Care & Health,BARCHESTER HEALTH CARE,14/11/2016,2600.00
Bath & North East Somerset Council,80642427,LM6,Nursing Care,P11,Adult Social Care & Health,BARCHESTER HEALTHCARE,14/11/2016,1430.00
Bath & North East Somerset Council,80642427,LM6,Nursing Care,P11,Adult Social Care & Health,BARCHESTER HEALTHCARE,14/11/2016,1430.00
Bath & North East Somerset Council,80642427,LM6,Nursing Care,P11,Adult Social Care & Health,BARCHESTER HEALTHCARE,14/11/2016,1634.00
Bath & North East Somerset Council,80642427,LM6,Nursing Care,P11,Adult Social Care & Health,BARCHESTER HEALTHCARE,14/11/2016,1646.00
Bath & North East Somerset Council,80642427,LM6,Nursing Care,P11,Adult Social Care & Health,BARCHESTER HEALTHCARE,14/11/2016,1646.00
Bath & North East Somerset Council,80642427,LM6,Nursing Care,P11,Adult Social Care & Health,BARCHESTER HEALTHCARE,14/11/2016,1646.00
Bath & North East Somerset Council,80642390,XD3,Client Contributions,P11,Adult Social Care & Health,BARCHESTER HEALTHCARE HOMES LTD,14/11/2016,136.14
Bath & North East Somerset Council,80642020,LM6,Nursing Care,P11,Adult Social Care & Health,BARCHESTER HEALTHCARE HOMES LTD,14/11/2016,312.50
Bath & North East Somerset Council,80642020,LM6,Nursing Care,P11,Adult Social Care & Health,BARCHESTER HEALTHCARE HOMES LTD,14/11/2016,312.50
Bath & North East Somerset Council,80642020,LM6,Nursing Care,P11,Adult Social Care & Health,BARCHESTER HEALTHCARE HOMES LTD,14/11/2016,312.50
Bath & North East Somerset Council,80642020,LM6,Nursing Care,P11,Adult Social Care & Health,BARCHESTER HEALTHCARE HOMES LTD,14/11/2016,312.50
Bath & North East Somerset Council,80642020,LM6,Nursing Care,P11,Adult Social Care & Health,BARCHESTER HEALTHCARE HOMES LTD,14/11/2016,312.50
Bath & North East Somerset Council,80642020,LM6,Nursing Care,P11,Adult Social Care & Health,BARCHESTER HEALTHCARE HOMES LTD,14/11/2016,312.50
Bath & North East Somerset Council,80642020,LM6,Nursing Care,P11,Adult Social Care & Health,BARCHESTER HEALTHCARE HOMES LTD,14/11/2016,312.50
Bath & North East Somerset Council,80642020,LM6,Nursing Care,P11,Adult Social Care & Health,BARCHESTER HEALTHCARE HOMES LTD,14/11/2016,312.50
Bath & North East Somerset Council,80642020,LM6,Nursing Care,P11,Adult Social Care & Health,BARCHESTER HEALTHCARE HOMES LTD,14/11/2016,312.50
Bath & North East Somerset Council,80642020,LM6,Nursing Care,P11,Adult Social Care & Health,BARCHESTER HEALTHCARE HOMES LTD,14/11/2016,312.50
Bath & North East Somerset Council,80642020,LM6,Nursing Care,P11,Adult Social Care & Health,BARCHESTER HEALTHCARE HOMES LTD,14/11/2016,312.50
Bath & North East Somerset Council,80642020,LM6,Nursing Care,P11,Adult Social Care & Health,BARCHESTER HEALTHCARE HOMES LTD,14/11/2016,312.50
Bath & North East Somerset Council,80642020,LM6,Nursing Care,P11,Adult Social Care & Health,BARCHESTER HEALTHCARE HOMES LTD,14/11/2016,312.50
Bath & North East Somerset Council,80642020,LM6,Nursing Care,P11,Adult Social Care & Health,BARCHESTER HEALTHCARE HOMES LTD,14/11/2016,312.50
Bath & North East Somerset Council,80642020,LM6,Nursing Care,P11,Adult Social Care & Health,BARCHESTER HEALTHCARE HOMES LTD,14/11/2016,312.50
Bath & North East Somerset Council,80642020,LM6,Nursing Care,P11,Adult Social Care & Health,BARCHESTER HEALTHCARE HOMES LTD,14/11/2016,312.50
Bath & North East Somerset Council,80642020,LM6,Nursing Care,P11,Adult Social Care & Health,BARCHESTER HEALTHCARE HOMES LTD,14/11/2016,312.50
Bath & North East Somerset Council,80642020,LM6,Nursing Care,P11,Adult Social Care & Health,BARCHESTER HEALTHCARE HOMES LTD,14/11/2016,312.50
Bath & North East Somerset Council,80642020,LM6,Nursing Care,P11,Adult Social Care & Health,BARCHESTER HEALTHCARE HOMES LTD,14/11/2016,312.50
Bath & North East Somerset Council,80642020,LM6,Nursing Care,P11,Adult Social Care & Health,BARCHESTER HEALTHCARE HOMES LTD,14/11/2016,312.50
Bath & North East Somerset Council,80642020,LM6,Nursing Care,P11,Adult Social Care & Health,BARCHESTER HEALTHCARE HOMES LTD,14/11/2016,312.50
Bath & North East Somerset Council,80642020,LM6,Nursing Care,P11,Adult Social Care & Health,BARCHESTER HEALTHCARE HOMES LTD,14/11/2016,312.50
Bath & North East Somerset Council,80642020,LM6,Nursing Care,P11,Adult Social Care & Health,BARCHESTER HEALTHCARE HOMES LTD,14/11/2016,312.50
Bath & North East Somerset Council,80642020,LM6,Nursing Care,P11,Adult Social Care & Health,BARCHESTER HEALTHCARE HOMES LTD,14/11/2016,312.50
Bath & North East Somerset Council,80642020,LM6,Nursing Care,P11,Adult Social Care & Health,BARCHESTER HEALTHCARE HOMES LTD,14/11/2016,312.50
Bath & North East Somerset Council,80642020,LM6,Nursing Care,P11,Adult Social Care & Health,BARCHESTER HEALTHCARE HOMES LTD,14/11/2016,312.50
Bath & North East Somerset Council,80642020,LM6,Nursing Care,P11,Adult Social Care & Health,BARCHESTER HEALTHCARE HOMES LTD,14/11/2016,312.50
Bath & North East Somerset Council,80642020,LM6,Nursing Care,P11,Adult Social Care & Health,BARCHESTER HEALTHCARE HOMES LTD,14/11/2016,312.50
Bath & North East Somerset Council,80642020,LM6,Nursing Care,P11,Adult Social Care & Health,BARCHESTER HEALTHCARE HOMES LTD,14/11/2016,312.50
Bath & North East Somerset Council,80642020,LM6,Nursing Care,P11,Adult Social Care & Health,BARCHESTER HEALTHCARE HOMES LTD,14/11/2016,312.50
Bath & North East Somerset Council,80642020,LM6,Nursing Care,P11,Adult Social Care & Health,BARCHESTER HEALTHCARE HOMES LTD,14/11/2016,312.50
Bath & North East Somerset Council,80642020,LM6,Nursing Care,P11,Adult Social Care & Health,BARCHESTER HEALTHCARE HOMES LTD,14/11/2016,312.50
Bath & North East Somerset Council,80642390,LM3,Residential Care,P11,Adult Social Care & Health,BARCHESTER HEALTHCARE HOMES LTD,14/11/2016,1032.00
Bath & North East Somerset Council,80642390,LM6,Nursing Care,P11,Adult Social Care & Health,BARCHESTER HEALTHCARE HOMES LTD,14/11/2016,1152.00
Bath & North East Somerset Council,80642390,LM6,Nursing Care,P11,Adult Social Care & Health,BARCHESTER HEALTHCARE HOMES LTD,14/11/2016,1326.00
Bath & North East Somerset Council,80642390,LM3,Residential Care,P11,Adult Social Care & Health,BARCHESTER HEALTHCARE HOMES LTD,14/11/2016,1328.00
Bath & North East Somerset Council,80642390,LM6,Nursing Care,P11,Adult Social Care & Health,BARCHESTER HEALTHCARE HOMES LTD,14/11/2016,1350.00
Bath & North East Somerset Council,80642058,LM6,Nursing Care,P11,Adult Social Care & Health,BARCHESTER HEALTHCARE HOMES LTD,14/11/2016,1492.00
Bath & North East Somerset Council,80642058,LM6,Nursing Care,P11,Adult Social Care & Health,BARCHESTER HEALTHCARE HOMES LTD,14/11/2016,1500.00
Bath & North East Somerset Council,80642390,LM6,Nursing Care,P11,Adult Social Care & Health,BARCHESTER HEALTHCARE HOMES LTD,14/11/2016,1500.00
Bath & North East Somerset Council,80642390,LM6,Nursing Care,P11,Adult Social Care & Health,BARCHESTER HEALTHCARE HOMES LTD,14/11/2016,1516.00
Bath & North East Somerset Council,80642390,LM6,Nursing Care,P11,Adult Social Care & Health,BARCHESTER HEALTHCARE HOMES LTD,14/11/2016,1516.00
Bath & North East Somerset Council,80642390,LM6,Nursing Care,P11,Adult Social Care & Health,BARCHESTER HEALTHCARE HOMES LTD,14/11/2016,1516.00
Bath & North East Somerset Council,80642390,LM6,Nursing Care,P11,Adult Social Care & Health,BARCHESTER HEALTHCARE HOMES LTD,14/11/2016,1532.00
Bath & North East Somerset Council,80642390,LM6,Nursing Care,P11,Adult Social Care & Health,BARCHESTER HEALTHCARE HOMES LTD,14/11/2016,1718.00
Bath & North East Somerset Council,80642390,LM6,Nursing Care,P11,Adult Social Care & Health,BARCHESTER HEALTHCARE HOMES LTD,14/11/2016,1736.00
Bath & North East Somerset Council,80642390,LM6,Nursing Care,P11,Adult Social Care & Health,BARCHESTER HEALTHCARE HOMES LTD,14/11/2016,1736.00
Bath & North East Somerset Council,80642058,LM6,Nursing Care,P11,Adult Social Care & Health,BARCHESTER HEALTHCARE HOMES LTD,14/11/2016,1748.00
Bath & North East Somerset Council,80642390,LM6,Nursing Care,P11,Adult Social Care & Health,BARCHESTER HEALTHCARE HOMES LTD,14/11/2016,1768.00
Bath & North East Somerset Council,80642390,LM6,Nursing Care,P11,Adult Social Care & Health,BARCHESTER HEALTHCARE HOMES LTD,14/11/2016,1818.00
Bath & North East Somerset Council,80642390,LM6,Nursing Care,P11,Adult Social Care & Health,BARCHESTER HEALTHCARE HOMES LTD,14/11/2016,1838.00
Bath & North East Somerset Council,80642058,LM6,Nursing Care,P11,Adult Social Care & Health,BARCHESTER HEALTHCARE HOMES LTD,14/11/2016,1850.00
Bath & North East Somerset Council,80642058,LM6,Nursing Care,P11,Adult Social Care & Health,BARCHESTER HEALTHCARE HOMES LTD,14/11/2016,1850.00
Bath & North East Somerset Council,80642390,LM6,Nursing Care,P11,Adult Social Care & Health,BARCHESTER HEALTHCARE HOMES LTD,14/11/2016,1850.00
Bath & North East Somerset Council,80642390,LM6,Nursing Care,P11,Adult Social Care & Health,BARCHESTER HEALTHCARE HOMES LTD,14/11/2016,1850.00
Bath & North East Somerset Council,80642390,LM6,Nursing Care,P11,Adult Social Care & Health,BARCHESTER HEALTHCARE HOMES LTD,14/11/2016,1850.00
Bath & North East Somerset Council,80642390,LM6,Nursing Care,P11,Adult Social Care & Health,BARCHESTER HEALTHCARE HOMES LTD,14/11/2016,1850.00
Bath & North East Somerset Council,80642390,LM6,Nursing Care,P11,Adult Social Care & Health,BARCHESTER HEALTHCARE HOMES LTD,14/11/2016,1850.00
Bath & North East Somerset Council,80642390,LM6,Nursing Care,P11,Adult Social Care & Health,BARCHESTER HEALTHCARE HOMES LTD,14/11/2016,1850.00
Bath & North East Somerset Council,80642390,LM6,Nursing Care,P11,Adult Social Care & Health,BARCHESTER HEALTHCARE HOMES LTD,14/11/2016,1850.00
Bath & North East Somerset Council,80642390,LM6,Nursing Care,P11,Adult Social Care & Health,BARCHESTER HEALTHCARE HOMES LTD,14/11/2016,1850.00
Bath & North East Somerset Council,80642390,LM6,Nursing Care,P11,Adult Social Care & Health,BARCHESTER HEALTHCARE HOMES LTD,14/11/2016,1852.00
Bath & North East Somerset Council,80642390,LM6,Nursing Care,P11,Adult Social Care & Health,BARCHESTER HEALTHCARE HOMES LTD,14/11/2016,1880.00
Bath & North East Somerset Council,80642390,LM6,Nursing Care,P11,Adult Social Care & Health,BARCHESTER HEALTHCARE HOMES LTD,14/11/2016,1900.00
Bath & North East Somerset Council,80642390,LM6,Nursing Care,P11,Adult Social Care & Health,BARCHESTER HEALTHCARE HOMES LTD,14/11/2016,1920.00
Bath & North East Somerset Council,80642390,LM6,Nursing Care,P11,Adult Social Care & Health,BARCHESTER HEALTHCARE HOMES LTD,14/11/2016,1920.00
Bath & North East Somerset Council,80642390,LM6,Nursing Care,P11,Adult Social Care & Health,BARCHESTER HEALTHCARE HOMES LTD,14/11/2016,2020.00
Bath & North East Somerset Council,80642058,LM6,Nursing Care,P11,Adult Social Care & Health,BARCHESTER HEALTHCARE HOMES LTD,14/11/2016,2140.00
Bath & North East Somerset Council,80642530,LM6,Nursing Care,P11,Adult Social Care & Health,BARCHESTER HEALTHCARE HOMES LTD,14/11/2016,3653.57
Bath & North East Somerset Council,80642460,LM6,Nursing Care,P11,Adult Social Care & Health,BARCHESTER HEALTHCARE HOMES LTD,14/11/2016,6450.00
Bath & North East Somerset Council,80642029,LM6,Nursing Care,P11,Adult Social Care & Health,BARKER CHEMICALS LTD T/A ST TERESA'S NH,14/11/2016,312.50
Bath & North East Somerset Council,80642029,LM6,Nursing Care,P11,Adult Social Care & Health,BARKER CHEMICALS LTD T/A ST TERESA'S NH,14/11/2016,312.50
Bath & North East Somerset Council,80642029,LM6,Nursing Care,P11,Adult Social Care & Health,BARKER CHEMICALS LTD T/A ST TERESA'S NH,14/11/2016,312.50
Bath & North East Somerset Council,80642029,LM6,Nursing Care,P11,Adult Social Care & Health,BARKER CHEMICALS LTD T/A ST TERESA'S NH,14/11/2016,312.50
Bath & North East Somerset Council,80642029,LM6,Nursing Care,P11,Adult Social Care & Health,BARKER CHEMICALS LTD T/A ST TERESA'S NH,14/11/2016,312.50
Bath & North East Somerset Council,80642029,LM6,Nursing Care,P11,Adult Social Care & Health,BARKER CHEMICALS LTD T/A ST TERESA'S NH,14/11/2016,312.50
Bath & North East Somerset Council,80642029,LM6,Nursing Care,P11,Adult Social Care & Health,BARKER CHEMICALS LTD T/A ST TERESA'S NH,14/11/2016,312.50
Bath & North East Somerset Council,80642029,LM6,Nursing Care,P11,Adult Social Care & Health,BARKER CHEMICALS LTD T/A ST TERESA'S NH,14/11/2016,312.50
Bath & North East Somerset Council,80642029,LM6,Nursing Care,P11,Adult Social Care & Health,BARKER CHEMICALS LTD T/A ST TERESA'S NH,14/11/2016,312.50
Bath & North East Somerset Council,80642029,LM6,Nursing Care,P11,Adult Social Care & Health,BARKER CHEMICALS LTD T/A ST TERESA'S NH,14/11/2016,312.50
Bath & North East Somerset Council,80642029,LM6,Nursing Care,P11,Adult Social Care & Health,BARKER CHEMICALS LTD T/A ST TERESA'S NH,14/11/2016,312.50
Bath & North East Somerset Council,80642029,LM6,Nursing Care,P11,Adult Social Care & Health,BARKER CHEMICALS LTD T/A ST TERESA'S NH,14/11/2016,312.50
Bath & North East Somerset Council,80642029,LM6,Nursing Care,P11,Adult Social Care & Health,BARKER CHEMICALS LTD T/A ST TERESA'S NH,14/11/2016,312.50
Bath & North East Somerset Council,80642029,LM6,Nursing Care,P11,Adult Social Care & Health,BARKER CHEMICALS LTD T/A ST TERESA'S NH,14/11/2016,312.50
Bath & North East Somerset Council,80642029,LM6,Nursing Care,P11,Adult Social Care & Health,BARKER CHEMICALS LTD T/A ST TERESA'S NH,14/11/2016,312.50
Bath & North East Somerset Council,80642454,LM6,Nursing Care,P11,Adult Social Care & Health,BARKER CHEMICALS LTD T/A ST TERESA'S NH,14/11/2016,505.00
Bath & North East Somerset Council,80642075,LM6,Nursing Care,P11,Adult Social Care & Health,BARKER CHEMICALS LTD T/A ST TERESA'S NH,14/11/2016,1021.43
Bath & North East Somerset Council,80642454,LM6,Nursing Care,P11,Adult Social Care & Health,BARKER CHEMICALS LTD T/A ST TERESA'S NH,14/11/2016,1152.00
Bath & North East Somerset Council,80642454,LM6,Nursing Care,P11,Adult Social Care & Health,BARKER CHEMICALS LTD T/A ST TERESA'S NH,14/11/2016,1152.00
Bath & North East Somerset Council,80642454,LM6,Nursing Care,P11,Adult Social Care & Health,BARKER CHEMICALS LTD T/A ST TERESA'S NH,14/11/2016,1196.00
Bath & North East Somerset Council,80642454,LM6,Nursing Care,P11,Adult Social Care & Health,BARKER CHEMICALS LTD T/A ST TERESA'S NH,14/11/2016,1226.00
Bath & North East Somerset Council,80642454,LM6,Nursing Care,P11,Adult Social Care & Health,BARKER CHEMICALS LTD T/A ST TERESA'S NH,14/11/2016,1226.00
Bath & North East Somerset Council,80642454,LM6,Nursing Care,P11,Adult Social Care & Health,BARKER CHEMICALS LTD T/A ST TERESA'S NH,14/11/2016,1322.00
Bath & North East Somerset Council,80642454,LM6,Nursing Care,P11,Adult Social Care & Health,BARKER CHEMICALS LTD T/A ST TERESA'S NH,14/11/2016,1328.00
Bath & North East Somerset Council,80642454,LM6,Nursing Care,P11,Adult Social Care & Health,BARKER CHEMICALS LTD T/A ST TERESA'S NH,14/11/2016,1328.00
Bath & North East Somerset Council,80642454,LM6,Nursing Care,P11,Adult Social Care & Health,BARKER CHEMICALS LTD T/A ST TERESA'S NH,14/11/2016,1328.00
Bath & North East Somerset Council,80642454,LM6,Nursing Care,P11,Adult Social Care & Health,BARKER CHEMICALS LTD T/A ST TERESA'S NH,14/11/2016,1378.00
Bath & North East Somerset Council,80642454,LM6,Nursing Care,P11,Adult Social Care & Health,BARKER CHEMICALS LTD T/A ST TERESA'S NH,14/11/2016,1400.00
Bath & North East Somerset Council,80642454,LM6,Nursing Care,P11,Adult Social Care & Health,BARKER CHEMICALS LTD T/A ST TERESA'S NH,14/11/2016,1406.00
Bath & North East Somerset Council,80642454,LM6,Nursing Care,P11,Adult Social Care & Health,BARKER CHEMICALS LTD T/A ST TERESA'S NH,14/11/2016,1414.00
Bath & North East Somerset Council,80642454,LM6,Nursing Care,P11,Adult Social Care & Health,BARKER CHEMICALS LTD T/A ST TERESA'S NH,14/11/2016,1414.00
Bath & North East Somerset Council,80642454,LM6,Nursing Care,P11,Adult Social Care & Health,BARKER CHEMICALS LTD T/A ST TERESA'S NH,14/11/2016,1430.00
Bath & North East Somerset Council,80642454,LM6,Nursing Care,P11,Adult Social Care & Health,BARKER CHEMICALS LTD T/A ST TERESA'S NH,14/11/2016,1430.00
Bath & North East Somerset Council,80642454,LM6,Nursing Care,P11,Adult Social Care & Health,BARKER CHEMICALS LTD T/A ST TERESA'S NH,14/11/2016,1430.00
Bath & North East Somerset Council,80642454,LM6,Nursing Care,P11,Adult Social Care & Health,BARKER CHEMICALS LTD T/A ST TERESA'S NH,14/11/2016,1430.00
Bath & North East Somerset Council,80642454,LM6,Nursing Care,P11,Adult Social Care & Health,BARKER CHEMICALS LTD T/A ST TERESA'S NH,14/11/2016,1430.00
Bath & North East Somerset Council,80642454,LM6,Nursing Care,P11,Adult Social Care & Health,BARKER CHEMICALS LTD T/A ST TERESA'S NH,14/11/2016,1474.00
Bath & North East Somerset Council,80642454,LM6,Nursing Care,P11,Adult Social Care & Health,BARKER CHEMICALS LTD T/A ST TERESA'S NH,14/11/2016,1480.00
Bath & North East Somerset Council,80642075,LM6,Nursing Care,P11,Adult Social Care & Health,BARKER CHEMICALS LTD T/A ST TERESA'S NH,14/11/2016,1500.00
Bath & North East Somerset Council,80642029,LM6,Nursing Care,P11,Adult Social Care & Health,BARKER CHEMICALS LTD T/A ST TERESA'S NH,14/11/2016,1540.18
Bath & North East Somerset Council,80642454,LM6,Nursing Care,P11,Adult Social Care & Health,BARKER CHEMICALS LTD T/A ST TERESA'S NH,14/11/2016,1542.00
Bath & North East Somerset Council,80642454,LM6,Nursing Care,P11,Adult Social Care & Health,BARKER CHEMICALS LTD T/A ST TERESA'S NH,14/11/2016,1592.00
Bath & North East Somerset Council,80642075,LM6,Nursing Care,P11,Adult Social Care & Health,BARKER CHEMICALS LTD T/A ST TERESA'S NH,14/11/2016,1594.29
Bath & North East Somerset Council,80642454,LM6,Nursing Care,P11,Adult Social Care & Health,BARKER CHEMICALS LTD T/A ST TERESA'S NH,14/11/2016,1600.00
Bath & North East Somerset Council,80642454,LM6,Nursing Care,P11,Adult Social Care & Health,BARKER CHEMICALS LTD T/A ST TERESA'S NH,14/11/2016,1600.00
Bath & North East Somerset Council,80642454,LM6,Nursing Care,P11,Adult Social Care & Health,BARKER CHEMICALS LTD T/A ST TERESA'S NH,14/11/2016,1616.00
Bath & North East Somerset Council,80642454,LM6,Nursing Care,P11,Adult Social Care & Health,BARKER CHEMICALS LTD T/A ST TERESA'S NH,14/11/2016,1616.00
Bath & North East Somerset Council,80642454,LM6,Nursing Care,P11,Adult Social Care & Health,BARKER CHEMICALS LTD T/A ST TERESA'S NH,14/11/2016,1616.00
Bath & North East Somerset Council,80642454,LM6,Nursing Care,P11,Adult Social Care & Health,BARKER CHEMICALS LTD T/A ST TERESA'S NH,14/11/2016,1626.00
Bath & North East Somerset Council,80642454,LM6,Nursing Care,P11,Adult Social Care & Health,BARKER CHEMICALS LTD T/A ST TERESA'S NH,14/11/2016,1634.00
Bath & North East Somerset Council,80642454,LM6,Nursing Care,P11,Adult Social Care & Health,BARKER CHEMICALS LTD T/A ST TERESA'S NH,14/11/2016,1638.00
Bath & North East Somerset Council,80642454,LM6,Nursing Care,P11,Adult Social Care & Health,BARKER CHEMICALS LTD T/A ST TERESA'S NH,14/11/2016,1650.00
Bath & North East Somerset Council,80642454,LM6,Nursing Care,P11,Adult Social Care & Health,BARKER CHEMICALS LTD T/A ST TERESA'S NH,14/11/2016,1700.00
Bath & North East Somerset Council,80642454,LM6,Nursing Care,P11,Adult Social Care & Health,BARKER CHEMICALS LTD T/A ST TERESA'S NH,14/11/2016,1700.00
Bath & North East Somerset Council,80642075,LM6,Nursing Care,P11,Adult Social Care & Health,BARKER CHEMICALS LTD T/A ST TERESA'S NH,14/11/2016,1760.00
Bath & North East Somerset Council,80642454,LM6,Nursing Care,P11,Adult Social Care & Health,BARKER CHEMICALS LTD T/A ST TERESA'S NH,14/11/2016,1790.00
Bath & North East Somerset Council,80642075,LM6,Nursing Care,P11,Adult Social Care & Health,BARKER CHEMICALS LTD T/A ST TERESA'S NH,14/11/2016,1850.00
Bath & North East Somerset Council,80642075,LM6,Nursing Care,P11,Adult Social Care & Health,BARKER CHEMICALS LTD T/A ST TERESA'S NH,14/11/2016,1980.00
Bath & North East Somerset Council,80642075,LM6,Nursing Care,P11,Adult Social Care & Health,BARKER CHEMICALS LTD T/A ST TERESA'S NH,14/11/2016,6560.00
Bath & North East Somerset Council,80642454,LM6,Nursing Care,P11,Adult Social Care & Health,BARKER CHEMICALS LTD T/A ST TERESA'S NH,14/11/2016,21371.43
Bath & North East Somerset Council,80642454,LM6,Nursing Care,P11,Adult Social Care & Health,BARKER CHEMICALS LTD T/A ST TERESA'S NH,14/11/2016,21531.71
Bath & North East Somerset Council,80642167,LL8,Individualised Budget,P11,Adult Social Care & Health,REDACTED,14/11/2016,984.46
Bath & North East Somerset Council,80642409,LM3,Residential Care,P11,Adult Social Care & Health,BATH MIND,14/11/2016,1518.40
Bath & North East Somerset Council,80642409,LM3,Residential Care,P11,Adult Social Care & Health,BATH MIND,14/11/2016,1518.40
Bath & North East Somerset Council,80642409,LM3,Residential Care,P11,Adult Social Care & Health,BATH MIND,14/11/2016,1518.40
Bath & North East Somerset Council,80642409,LM3,Residential Care,P11,Adult Social Care & Health,BATH MIND,14/11/2016,1518.40
Bath & North East Somerset Council,80642409,LM3,Residential Care,P11,Adult Social Care & Health,BATH MIND,14/11/2016,1518.40
Bath & North East Somerset Council,80642409,LM3,Residential Care,P11,Adult Social Care & Health,BATH MIND,14/11/2016,1518.46
Bath & North East Somerset Council,80642403,LM3,Residential Care,P11,Adult Social Care & Health,BCVS HOMES,14/11/2016,904.00
Bath & North East Somerset Council,80642403,LM3,Residential Care,P11,Adult Social Care & Health,BCVS HOMES,14/11/2016,904.00
Bath & North East Somerset Council,80642403,LM3,Residential Care,P11,Adult Social Care & Health,BCVS HOMES,14/11/2016,904.00
Bath & North East Somerset Council,80642403,LM3,Residential Care,P11,Adult Social Care & Health,BCVS HOMES,14/11/2016,1022.00
Bath & North East Somerset Council,80642403,LM3,Residential Care,P11,Adult Social Care & Health,BCVS HOMES,14/11/2016,1120.00
Bath & North East Somerset Council,80642403,LM3,Residential Care,P11,Adult Social Care & Health,BCVS HOMES,14/11/2016,1154.00
Bath & North East Somerset Council,80642403,LM3,Residential Care,P11,Adult Social Care & Health,BCVS HOMES,14/11/2016,1164.00
Bath & North East Somerset Council,80642403,LM3,Residential Care,P11,Adult Social Care & Health,BCVS HOMES,14/11/2016,1180.00
Bath & North East Somerset Council,80642403,LM3,Residential Care,P11,Adult Social Care & Health,BCVS HOMES,14/11/2016,1212.00
Bath & North East Somerset Council,80642403,LM3,Residential Care,P11,Adult Social Care & Health,BCVS HOMES,14/11/2016,1228.00
Bath & North East Somerset Council,80642403,LM3,Residential Care,P11,Adult Social Care & Health,BCVS HOMES,14/11/2016,1300.00
Bath & North East Somerset Council,80642426,LM3,Residential Care,P11,Adult Social Care & Health,BEDROCK LODGE,14/11/2016,1612.00
Bath & North East Somerset Council,80642449,LM3,Residential Care,P11,Adult Social Care & Health,BELMONT VILLA RESIDENTIAL NURSING HOME LTD,14/11/2016,1124.00
Bath & North East Somerset Council,80642449,LM6,Nursing Care,P11,Adult Social Care & Health,BELMONT VILLA RESIDENTIAL NURSING HOME LTD,14/11/2016,2042.00
Bath & North East Somerset Council,80641872,LM8,Home Care,P11,Adult Social Care & Health,BLUEBIRD CARE (BATH),14/11/2016,150.00
Bath & North East Somerset Council,80641872,LM8,Home Care,P11,Adult Social Care & Health,BLUEBIRD CARE (BATH),14/11/2016,191.50
Bath & North East Somerset Council,80641872,LM8,Home Care,P11,Adult Social Care & Health,BLUEBIRD CARE (BATH),14/11/2016,456.20
Bath & North East Somerset Council,80641872,LM8,Home Care,P11,Adult Social Care & Health,BLUEBIRD CARE (BATH),14/11/2016,593.00
Bath & North East Somerset Council,80641872,LM8,Home Care,P11,Adult Social Care & Health,BLUEBIRD CARE (BATH),14/11/2016,645.80
Bath & North East Somerset Council,80641872,LM8,Home Care,P11,Adult Social Care & Health,BLUEBIRD CARE (BATH),14/11/2016,1051.24
Bath & North East Somerset Council,80641872,LM8,Home Care,P11,Adult Social Care & Health,BLUEBIRD CARE (BATH),14/11/2016,1720.04
Bath & North East Somerset Council,80641872,LM8,Home Care,P11,Adult Social Care & Health,BLUEBIRD CARE (BATH),14/11/2016,3110.05
Bath & North East Somerset Council,80642445,LM3,Residential Care,P11,Adult Social Care & Health,BOLE ALLER HOUSE LTD,14/11/2016,1488.00
Bath & North East Somerset Council,80642471,LM3,Residential Care,P11,Adult Social Care & Health,BOROUGH CARE LIMITED,14/11/2016,902.00
Bath & North East Somerset Council,80642496,LM3,Residential Care,P11,Adult Social Care & Health,BRADBURY HOUSE,14/11/2016,4728.12
Bath & North East Somerset Council,80641881,LM8,Home Care,P11,Adult Social Care & Health,BRADBURY OUTREACH SERVICES,14/11/2016,1012.00
Bath & North East Somerset Council,80641881,LM8,Home Care,P11,Adult Social Care & Health,BRADBURY OUTREACH SERVICES,14/11/2016,1320.00
Bath & North East Somerset Council,80642375,XD3,Client Contributions,P11,Adult Social Care & Health,BRIDGE CARE LTD,14/11/2016,309.60
Bath & North East Somerset Council,80642013,LM6,Nursing Care,P11,Adult Social Care & Health,BRIDGE CARE LTD,14/11/2016,312.50
Bath & North East Somerset Council,80642013,LM6,Nursing Care,P11,Adult Social Care & Health,BRIDGE CARE LTD,14/11/2016,312.50
Bath & North East Somerset Council,80642013,LM6,Nursing Care,P11,Adult Social Care & Health,BRIDGE CARE LTD,14/11/2016,312.50
Bath & North East Somerset Council,80642013,LM6,Nursing Care,P11,Adult Social Care & Health,BRIDGE CARE LTD,14/11/2016,312.50
Bath & North East Somerset Council,80642013,LM6,Nursing Care,P11,Adult Social Care & Health,BRIDGE CARE LTD,14/11/2016,312.50
Bath & North East Somerset Council,80642013,LM6,Nursing Care,P11,Adult Social Care & Health,BRIDGE CARE LTD,14/11/2016,312.50
Bath & North East Somerset Council,80642013,LM6,Nursing Care,P11,Adult Social Care & Health,BRIDGE CARE LTD,14/11/2016,312.50
Bath & North East Somerset Council,80642013,LM6,Nursing Care,P11,Adult Social Care & Health,BRIDGE CARE LTD,14/11/2016,312.50
Bath & North East Somerset Council,80642013,LM6,Nursing Care,P11,Adult Social Care & Health,BRIDGE CARE LTD,14/11/2016,312.50
Bath & North East Somerset Council,80642013,LM6,Nursing Care,P11,Adult Social Care & Health,BRIDGE CARE LTD,14/11/2016,312.50
Bath & North East Somerset Council,80642013,LM6,Nursing Care,P11,Adult Social Care & Health,BRIDGE CARE LTD,14/11/2016,312.50
Bath & North East Somerset Council,80642013,LM6,Nursing Care,P11,Adult Social Care & Health,BRIDGE CARE LTD,14/11/2016,312.50
Bath & North East Somerset Council,80642375,XD3,Client Contributions,P11,Adult Social Care & Health,BRIDGE CARE LTD,14/11/2016,527.00
Bath & North East Somerset Council,80642375,LM6,Nursing Care,P11,Adult Social Care & Health,BRIDGE CARE LTD,14/11/2016,817.14
Bath & North East Somerset Council,80642375,LM3,Residential Care,P11,Adult Social Care & Health,BRIDGE CARE LTD,14/11/2016,904.00
Bath & North East Somerset Council,80642375,LM3,Residential Care,P11,Adult Social Care & Health,BRIDGE CARE LTD,14/11/2016,904.00
Bath & North East Somerset Council,80642375,LM3,Residential Care,P11,Adult Social Care & Health,BRIDGE CARE LTD,14/11/2016,904.00
Bath & North East Somerset Council,80642375,LM6,Nursing Care,P11,Adult Social Care & Health,BRIDGE CARE LTD,14/11/2016,1152.00
Bath & North East Somerset Council,80642375,LM6,Nursing Care,P11,Adult Social Care & Health,BRIDGE CARE LTD,14/11/2016,1152.00
Bath & North East Somerset Council,80642375,LM6,Nursing Care,P11,Adult Social Care & Health,BRIDGE CARE LTD,14/11/2016,1152.00
Bath & North East Somerset Council,80642375,LM3,Residential Care,P11,Adult Social Care & Health,BRIDGE CARE LTD,14/11/2016,1212.00
Bath & North East Somerset Council,80642375,LM6,Nursing Care,P11,Adult Social Care & Health,BRIDGE CARE LTD,14/11/2016,1314.00
Bath & North East Somerset Council,80642375,LM6,Nursing Care,P11,Adult Social Care & Health,BRIDGE CARE LTD,14/11/2016,1634.00
Bath & North East Somerset Council,80642051,LM6,Nursing Care,P11,Adult Social Care & Health,BRIDGE CARE LTD,14/11/2016,1750.00
Bath & North East Somerset Council,80642051,LM6,Nursing Care,P11,Adult Social Care & Health,BRIDGE CARE LTD,14/11/2016,1750.00
Bath & North East Somerset Council,80642376,LM3,Residential Care,P11,Adult Social Care & Health,BRIGHTBOW LODGE,14/11/2016,1280.00
Bath & North East Somerset Council,80642376,LM3,Residential Care,P11,Adult Social Care & Health,BRIGHTBOW LODGE,14/11/2016,1292.00
Bath & North East Somerset Council,80642376,LM6,Nursing Care,P11,Adult Social Care & Health,BRIGHTBOW LODGE,14/11/2016,1374.00
Bath & North East Somerset Council,80642376,LM6,Nursing Care,P11,Adult Social Care & Health,BRIGHTBOW LODGE,14/11/2016,1374.00
Bath & North East Somerset Council,80642376,LM3,Residential Care,P11,Adult Social Care & Health,BRIGHTBOW LODGE,14/11/2016,1482.00
Bath & North East Somerset Council,80642376,LM8,Home Care,P11,Adult Social Care & Health,BRIGHTBOW LODGE,14/11/2016,1872.00
Bath & North East Somerset Council,80642063,LM6,Nursing Care,P11,Adult Social Care & Health,BROOKDALE HEALTHCARE LTD,14/11/2016,6468.00
Bath & North East Somerset Council,80642063,LM6,Nursing Care,P11,Adult Social Care & Health,BROOKDALE HEALTHCARE LTD,14/11/2016,6622.00
Bath & North East Somerset Council,80642463,LM3,Residential Care,P11,Adult Social Care & Health,BROUGHTON LODGE CARE HOME,14/11/2016,904.00
Bath & North East Somerset Council,80642500,LM3,Residential Care,P11,Adult Social Care & Health,BRUNEL CARE HOME,14/11/2016,1800.00
Bath & North East Somerset Council,80642500,LM6,Nursing Care,P11,Adult Social Care & Health,BRUNEL CARE HOME,14/11/2016,1800.00
Bath & North East Somerset Council,80642500,LM6,Nursing Care,P11,Adult Social Care & Health,BRUNEL CARE HOME,14/11/2016,1828.00
Bath & North East Somerset Council,80642500,LM6,Nursing Care,P11,Adult Social Care & Health,BRUNEL CARE HOME,14/11/2016,1828.00
Bath & North East Somerset Council,80642500,LM6,Nursing Care,P11,Adult Social Care & Health,BRUNEL CARE HOME,14/11/2016,1838.00
Bath & North East Somerset Council,80642086,LM6,Nursing Care,P11,Adult Social Care & Health,BRUNEL CARE HOME,14/11/2016,1986.00
Bath & North East Somerset Council,80642086,LM6,Nursing Care,P11,Adult Social Care & Health,BRUNEL CARE HOME,14/11/2016,1986.00
Bath & North East Somerset Council,80642500,LM6,Nursing Care,P11,Adult Social Care & Health,BRUNEL CARE HOME,14/11/2016,2100.00
Bath & North East Somerset Council,80642419,LM6,Nursing Care,P11,Adult Social Care & Health,BUPA CARE SERVICES,14/11/2016,1152.00
Bath & North East Somerset Council,80642429,LM6,Nursing Care,P11,Adult Social Care & Health,BUPA CARE SERVICES BACS RECEIPTS,14/11/2016,1196.00
Bath & North East Somerset Council,80642017,LM6,Nursing Care,P11,Adult Social Care & Health,BYBROOK HOUSE,14/11/2016,312.50
Bath & North East Somerset Council,80642017,LM6,Nursing Care,P11,Adult Social Care & Health,BYBROOK HOUSE,14/11/2016,312.50
Bath & North East Somerset Council,80642017,LM6,Nursing Care,P11,Adult Social Care & Health,BYBROOK HOUSE,14/11/2016,312.50
Bath & North East Somerset Council,80642017,LM6,Nursing Care,P11,Adult Social Care & Health,BYBROOK HOUSE,14/11/2016,312.50
Bath & North East Somerset Council,80642017,LM6,Nursing Care,P11,Adult Social Care & Health,BYBROOK HOUSE,14/11/2016,312.50
Bath & North East Somerset Council,80642017,LM6,Nursing Care,P11,Adult Social Care & Health,BYBROOK HOUSE,14/11/2016,312.50
Bath & North East Somerset Council,80642055,LM6,Nursing Care,P11,Adult Social Care & Health,BYBROOK HOUSE,14/11/2016,1971.88
Bath & North East Somerset Council,80642423,LM3,Residential Care,P11,Adult Social Care & Health,C.H.O.I.C.E LTD,14/11/2016,4292.00
Bath & North East Somerset Council,80642423,LM3,Residential Care,P11,Adult Social Care & Health,C.H.O.I.C.E LTD,14/11/2016,4494.00
Bath & North East Somerset Council,80642089,LM6,Nursing Care,P11,Adult Social Care & Health,CAMBIAN HEALTHCARE LTD,14/11/2016,4640.10
Bath & North East Somerset Council,80642089,LM6,Nursing Care,P11,Adult Social Care & Health,CAMBIAN HEALTHCARE LTD,14/11/2016,4739.00
Bath & North East Somerset Council,80642089,LM6,Nursing Care,P11,Adult Social Care & Health,CAMBIAN HEALTHCARE LTD,14/11/2016,5300.04
Bath & North East Somerset Council,80642089,LM6,Nursing Care,P11,Adult Social Care & Health,CAMBIAN HEALTHCARE LTD,14/11/2016,6300.00
Bath & North East Somerset Council,80642089,LM6,Nursing Care,P11,Adult Social Care & Health,CAMBIAN HEALTHCARE LTD,14/11/2016,6674.80
Bath & North East Somerset Council,80642465,LM3,Residential Care,P11,Adult Social Care & Health,CAMPHILL DEVON COMMUNITY LTD,14/11/2016,1718.00
Bath & North East Somerset Council,80642516,LM6,Nursing Care,P11,Adult Social Care & Health,CARE AT ROBERTSBRIDGE LTD,14/11/2016,4904.00
Bath & North East Somerset Council,80642030,LM6,Nursing Care,P11,Adult Social Care & Health,CARE FIRST CARE HOMES LTD,14/11/2016,312.50
Bath & North East Somerset Council,80642030,LM6,Nursing Care,P11,Adult Social Care & Health,CARE FIRST CARE HOMES LTD,14/11/2016,312.50
Bath & North East Somerset Council,80642030,LM6,Nursing Care,P11,Adult Social Care & Health,CARE FIRST CARE HOMES LTD,14/11/2016,312.50
Bath & North East Somerset Council,80642030,LM6,Nursing Care,P11,Adult Social Care & Health,CARE FIRST CARE HOMES LTD,14/11/2016,312.50
Bath & North East Somerset Council,80642030,LM6,Nursing Care,P11,Adult Social Care & Health,CARE FIRST CARE HOMES LTD,14/11/2016,312.50
Bath & North East Somerset Council,80642030,LM6,Nursing Care,P11,Adult Social Care & Health,CARE FIRST CARE HOMES LTD,14/11/2016,312.50
Bath & North East Somerset Council,80642030,LM6,Nursing Care,P11,Adult Social Care & Health,CARE FIRST CARE HOMES LTD,14/11/2016,312.50
Bath & North East Somerset Council,80642030,LM6,Nursing Care,P11,Adult Social Care & Health,CARE FIRST CARE HOMES LTD,14/11/2016,312.50
Bath & North East Somerset Council,80642030,LM6,Nursing Care,P11,Adult Social Care & Health,CARE FIRST CARE HOMES LTD,14/11/2016,758.93
Bath & North East Somerset Council,80642464,LM6,Nursing Care,P11,Adult Social Care & Health,CARE FIRST CARE HOMES LTD,14/11/2016,1152.00
Bath & North East Somerset Council,80642464,LM6,Nursing Care,P11,Adult Social Care & Health,CARE FIRST CARE HOMES LTD,14/11/2016,1152.00
Bath & North East Somerset Council,80642464,LM3,Residential Care,P11,Adult Social Care & Health,CARE FIRST CARE HOMES LTD,14/11/2016,1328.00
Bath & North East Somerset Council,80642464,LM3,Residential Care,P11,Adult Social Care & Health,CARE FIRST CARE HOMES LTD,14/11/2016,1422.00
Bath & North East Somerset Council,80642464,LM6,Nursing Care,P11,Adult Social Care & Health,CARE FIRST CARE HOMES LTD,14/11/2016,1892.00
Bath & North East Somerset Council,80642464,LM6,Nursing Care,P11,Adult Social Care & Health,CARE FIRST CARE HOMES LTD,14/11/2016,1940.00
Bath & North East Somerset Council,80642087,LM6,Nursing Care,P11,Adult Social Care & Health,CARE UK COMMUNITY PARTNERSHIP LTD,14/11/2016,1839.72
Bath & North East Somerset Council,80642501,LM3,Residential Care,P11,Adult Social Care & Health,CARE UK COMMUNITY PARTNERSHIPS LTD,14/11/2016,1960.00
Bath & North East Somerset Council,80641877,LM8,Home Care,P11,Adult Social Care & Health,CARERS TRUST PHOENIX LTD,14/11/2016,81.00
Bath & North East Somerset Council,80641877,LM9,Day Care,P11,Adult Social Care & Health,CARERS TRUST PHOENIX LTD,14/11/2016,97.20
Bath & North East Somerset Council,80641877,LM8,Home Care,P11,Adult Social Care & Health,CARERS TRUST PHOENIX LTD,14/11/2016,97.20
Bath & North East Somerset Council,80641877,LM8,Home Care,P11,Adult Social Care & Health,CARERS TRUST PHOENIX LTD,14/11/2016,157.95
Bath & North East Somerset Council,80641877,LM8,Home Care,P11,Adult Social Care & Health,CARERS TRUST PHOENIX LTD,14/11/2016,356.40
Bath & North East Somerset Council,80641877,LM8,Home Care,P11,Adult Social Care & Health,CARERS TRUST PHOENIX LTD,14/11/2016,761.40
Bath & North East Somerset Council,80642027,LM6,Nursing Care,P11,Adult Social Care & Health,CEDAR CARE HOMES LTD,14/11/2016,312.50
Bath & North East Somerset Council,80642027,LM6,Nursing Care,P11,Adult Social Care & Health,CEDAR CARE HOMES LTD,14/11/2016,312.50
Bath & North East Somerset Council,80642027,LM6,Nursing Care,P11,Adult Social Care & Health,CEDAR CARE HOMES LTD,14/11/2016,312.50
Bath & North East Somerset Council,80642027,LM6,Nursing Care,P11,Adult Social Care & Health,CEDAR CARE HOMES LTD,14/11/2016,312.50
Bath & North East Somerset Council,80642027,LM6,Nursing Care,P11,Adult Social Care & Health,CEDAR CARE HOMES LTD,14/11/2016,312.50
Bath & North East Somerset Council,80642027,LM6,Nursing Care,P11,Adult Social Care & Health,CEDAR CARE HOMES LTD,14/11/2016,312.50
Bath & North East Somerset Council,80642027,LM6,Nursing Care,P11,Adult Social Care & Health,CEDAR CARE HOMES LTD,14/11/2016,312.50
Bath & North East Somerset Council,80642027,LM6,Nursing Care,P11,Adult Social Care & Health,CEDAR CARE HOMES LTD,14/11/2016,312.50
Bath & North East Somerset Council,80642027,LM6,Nursing Care,P11,Adult Social Care & Health,CEDAR CARE HOMES LTD,14/11/2016,312.50
Bath & North East Somerset Council,80642027,LM6,Nursing Care,P11,Adult Social Care & Health,CEDAR CARE HOMES LTD,14/11/2016,312.50
Bath & North East Somerset Council,80642027,LM6,Nursing Care,P11,Adult Social Care & Health,CEDAR CARE HOMES LTD,14/11/2016,312.50
Bath & North East Somerset Council,80642027,LM6,Nursing Care,P11,Adult Social Care & Health,CEDAR CARE HOMES LTD,14/11/2016,312.50
Bath & North East Somerset Council,80642027,LM6,Nursing Care,P11,Adult Social Care & Health,CEDAR CARE HOMES LTD,14/11/2016,312.50
Bath & North East Somerset Council,80642027,LM6,Nursing Care,P11,Adult Social Care & Health,CEDAR CARE HOMES LTD,14/11/2016,312.50
Bath & North East Somerset Council,80642027,LM6,Nursing Care,P11,Adult Social Care & Health,CEDAR CARE HOMES LTD,14/11/2016,312.50
Bath & North East Somerset Council,80642031,LM6,Nursing Care,P11,Adult Social Care & Health,CEDAR CARE HOMES LTD,14/11/2016,312.50
Bath & North East Somerset Council,80642031,LM6,Nursing Care,P11,Adult Social Care & Health,CEDAR CARE HOMES LTD,14/11/2016,312.50
Bath & North East Somerset Council,80642031,LM6,Nursing Care,P11,Adult Social Care & Health,CEDAR CARE HOMES LTD,14/11/2016,312.50
Bath & North East Somerset Council,80642031,LM6,Nursing Care,P11,Adult Social Care & Health,CEDAR CARE HOMES LTD,14/11/2016,312.50
Bath & North East Somerset Council,80642031,LM6,Nursing Care,P11,Adult Social Care & Health,CEDAR CARE HOMES LTD,14/11/2016,312.50
Bath & North East Somerset Council,80642031,LM6,Nursing Care,P11,Adult Social Care & Health,CEDAR CARE HOMES LTD,14/11/2016,312.50
Bath & North East Somerset Council,80642031,LM6,Nursing Care,P11,Adult Social Care & Health,CEDAR CARE HOMES LTD,14/11/2016,312.50
Bath & North East Somerset Council,80642031,LM6,Nursing Care,P11,Adult Social Care & Health,CEDAR CARE HOMES LTD,14/11/2016,312.50
Bath & North East Somerset Council,80642031,LM6,Nursing Care,P11,Adult Social Care & Health,CEDAR CARE HOMES LTD,14/11/2016,312.50
Bath & North East Somerset Council,80642031,LM6,Nursing Care,P11,Adult Social Care & Health,CEDAR CARE HOMES LTD,14/11/2016,312.50
Bath & North East Somerset Council,80642031,LM6,Nursing Care,P11,Adult Social Care & Health,CEDAR CARE HOMES LTD,14/11/2016,312.50
Bath & North East Somerset Council,80642031,LM6,Nursing Care,P11,Adult Social Care & Health,CEDAR CARE HOMES LTD,14/11/2016,312.50
Bath & North East Somerset Council,80642031,LM6,Nursing Care,P11,Adult Social Care & Health,CEDAR CARE HOMES LTD,14/11/2016,312.50
Bath & North East Somerset Council,80642031,LM6,Nursing Care,P11,Adult Social Care & Health,CEDAR CARE HOMES LTD,14/11/2016,312.50
Bath & North East Somerset Council,80642031,LM6,Nursing Care,P11,Adult Social Care & Health,CEDAR CARE HOMES LTD,14/11/2016,312.50
Bath & North East Somerset Council,80642031,LM6,Nursing Care,P11,Adult Social Care & Health,CEDAR CARE HOMES LTD,14/11/2016,312.50
Bath & North East Somerset Council,80642031,LM6,Nursing Care,P11,Adult Social Care & Health,CEDAR CARE HOMES LTD,14/11/2016,312.50
Bath & North East Somerset Council,80642031,LM6,Nursing Care,P11,Adult Social Care & Health,CEDAR CARE HOMES LTD,14/11/2016,312.50
Bath & North East Somerset Council,80642031,LM6,Nursing Care,P11,Adult Social Care & Health,CEDAR CARE HOMES LTD,14/11/2016,312.50
Bath & North East Somerset Council,80642031,LM6,Nursing Care,P11,Adult Social Care & Health,CEDAR CARE HOMES LTD,14/11/2016,312.50
Bath & North East Somerset Council,80642031,LM6,Nursing Care,P11,Adult Social Care & Health,CEDAR CARE HOMES LTD,14/11/2016,312.50
Bath & North East Somerset Council,80642031,LM6,Nursing Care,P11,Adult Social Care & Health,CEDAR CARE HOMES LTD,14/11/2016,312.50
Bath & North East Somerset Council,80642031,LM6,Nursing Care,P11,Adult Social Care & Health,CEDAR CARE HOMES LTD,14/11/2016,312.50
Bath & North East Somerset Council,80642031,LM6,Nursing Care,P11,Adult Social Care & Health,CEDAR CARE HOMES LTD,14/11/2016,312.50
Bath & North East Somerset Council,80642031,LM6,Nursing Care,P11,Adult Social Care & Health,CEDAR CARE HOMES LTD,14/11/2016,312.50
Bath & North East Somerset Council,80642031,LM6,Nursing Care,P11,Adult Social Care & Health,CEDAR CARE HOMES LTD,14/11/2016,312.50
Bath & North East Somerset Council,80642031,LM6,Nursing Care,P11,Adult Social Care & Health,CEDAR CARE HOMES LTD,14/11/2016,312.50
Bath & North East Somerset Council,80642027,LM6,Nursing Care,P11,Adult Social Care & Health,CEDAR CARE HOMES LTD,14/11/2016,625.00
Bath & North East Somerset Council,80642430,LM3,Residential Care,P11,Adult Social Care & Health,CEDAR CARE HOMES LTD,14/11/2016,972.00
Bath & North East Somerset Council,80642430,LM3,Residential Care,P11,Adult Social Care & Health,CEDAR CARE HOMES LTD,14/11/2016,992.00
Bath & North East Somerset Council,80642430,LM3,Residential Care,P11,Adult Social Care & Health,CEDAR CARE HOMES LTD,14/11/2016,1022.00
Bath & North East Somerset Council,80642430,LM3,Residential Care,P11,Adult Social Care & Health,CEDAR CARE HOMES LTD,14/11/2016,1042.00
Bath & North East Somerset Council,80642430,LM3,Residential Care,P11,Adult Social Care & Health,CEDAR CARE HOMES LTD,14/11/2016,1042.00
Bath & North East Somerset Council,80642430,LM3,Residential Care,P11,Adult Social Care & Health,CEDAR CARE HOMES LTD,14/11/2016,1042.00
Bath & North East Somerset Council,80642430,LM3,Residential Care,P11,Adult Social Care & Health,CEDAR CARE HOMES LTD,14/11/2016,1124.00
Bath & North East Somerset Council,80642437,LM3,Residential Care,P11,Adult Social Care & Health,CEDAR CARE HOMES LTD,14/11/2016,1162.00
Bath & North East Somerset Council,80642437,LM6,Nursing Care,P11,Adult Social Care & Health,CEDAR CARE HOMES LTD,14/11/2016,1196.00
Bath & North East Somerset Council,80642437,LM6,Nursing Care,P11,Adult Social Care & Health,CEDAR CARE HOMES LTD,14/11/2016,1226.00
Bath & North East Somerset Council,80642437,LM6,Nursing Care,P11,Adult Social Care & Health,CEDAR CARE HOMES LTD,14/11/2016,1328.00
Bath & North East Somerset Council,80642466,LM6,Nursing Care,P11,Adult Social Care & Health,CEDAR CARE HOMES LTD,14/11/2016,1430.00
Bath & North East Somerset Council,80642437,LM6,Nursing Care,P11,Adult Social Care & Health,CEDAR CARE HOMES LTD,14/11/2016,1532.00
Bath & North East Somerset Council,80642466,LM6,Nursing Care,P11,Adult Social Care & Health,CEDAR CARE HOMES LTD,14/11/2016,1532.00
Bath & North East Somerset Council,80642027,LM6,Nursing Care,P11,Adult Social Care & Health,CEDAR CARE HOMES LTD,14/11/2016,1584.82
Bath & North East Somerset Council,80642078,LM6,Nursing Care,P11,Adult Social Care & Health,CEDAR CARE HOMES LTD,14/11/2016,1600.00
Bath & North East Somerset Council,80642466,LM6,Nursing Care,P11,Adult Social Care & Health,CEDAR CARE HOMES LTD,14/11/2016,1616.00
Bath & North East Somerset Council,80642466,LM6,Nursing Care,P11,Adult Social Care & Health,CEDAR CARE HOMES LTD,14/11/2016,1616.00
Bath & North East Somerset Council,80642466,LM6,Nursing Care,P11,Adult Social Care & Health,CEDAR CARE HOMES LTD,14/11/2016,1634.00
Bath & North East Somerset Council,80642437,LM6,Nursing Care,P11,Adult Social Care & Health,CEDAR CARE HOMES LTD,14/11/2016,1638.00
Bath & North East Somerset Council,80642437,LM6,Nursing Care,P11,Adult Social Care & Health,CEDAR CARE HOMES LTD,14/11/2016,1654.00
Bath & North East Somerset Council,80642437,LM6,Nursing Care,P11,Adult Social Care & Health,CEDAR CARE HOMES LTD,14/11/2016,1654.00
Bath & North East Somerset Council,80642437,LM6,Nursing Care,P11,Adult Social Care & Health,CEDAR CARE HOMES LTD,14/11/2016,1654.00
Bath & North East Somerset Council,80642466,LM6,Nursing Care,P11,Adult Social Care & Health,CEDAR CARE HOMES LTD,14/11/2016,1693.34
Bath & North East Somerset Council,80642437,LM6,Nursing Care,P11,Adult Social Care & Health,CEDAR CARE HOMES LTD,14/11/2016,1700.00
Bath & North East Somerset Council,80642437,LM6,Nursing Care,P11,Adult Social Care & Health,CEDAR CARE HOMES LTD,14/11/2016,1700.00
Bath & North East Somerset Council,80642078,LM6,Nursing Care,P11,Adult Social Care & Health,CEDAR CARE HOMES LTD,14/11/2016,1700.00
Bath & North East Somerset Council,80642437,LM6,Nursing Care,P11,Adult Social Care & Health,CEDAR CARE HOMES LTD,14/11/2016,1718.00
Bath & North East Somerset Council,80642437,LM6,Nursing Care,P11,Adult Social Care & Health,CEDAR CARE HOMES LTD,14/11/2016,1718.00
Bath & North East Somerset Council,80642437,LM6,Nursing Care,P11,Adult Social Care & Health,CEDAR CARE HOMES LTD,14/11/2016,1718.00
Bath & North East Somerset Council,80642466,LM6,Nursing Care,P11,Adult Social Care & Health,CEDAR CARE HOMES LTD,14/11/2016,1718.00
Bath & North East Somerset Council,80642466,LM6,Nursing Care,P11,Adult Social Care & Health,CEDAR CARE HOMES LTD,14/11/2016,1718.00
Bath & North East Somerset Council,80642466,LM6,Nursing Care,P11,Adult Social Care & Health,CEDAR CARE HOMES LTD,14/11/2016,1718.00
Bath & North East Somerset Council,80642466,LM6,Nursing Care,P11,Adult Social Care & Health,CEDAR CARE HOMES LTD,14/11/2016,1850.00
Bath & North East Somerset Council,80642437,LM6,Nursing Care,P11,Adult Social Care & Health,CEDAR CARE HOMES LTD,14/11/2016,1878.00
Bath & North East Somerset Council,80642437,LM6,Nursing Care,P11,Adult Social Care & Health,CEDAR CARE HOMES LTD,14/11/2016,2914.00
Bath & North East Somerset Council,80642078,LM6,Nursing Care,P11,Adult Social Care & Health,CEDAR CARE HOMES LTD,14/11/2016,3417.86
Bath & North East Somerset Council,80642078,LM6,Nursing Care,P11,Adult Social Care & Health,CEDAR CARE HOMES LTD,14/11/2016,6510.00
Bath & North East Somerset Council,80642437,LM6,Nursing Care,P11,Adult Social Care & Health,CEDAR CARE HOMES LTD,14/11/2016,23560.14
Bath & North East Somerset Council,80642380,LM6,Nursing Care,P11,Adult Social Care & Health,CEDAR PARK NURSING HOME,14/11/2016,164.57
Bath & North East Somerset Council,80642016,LM6,Nursing Care,P11,Adult Social Care & Health,CEDAR PARK NURSING HOME,14/11/2016,200.89
Bath & North East Somerset Council,80642016,LM6,Nursing Care,P11,Adult Social Care & Health,CEDAR PARK NURSING HOME,14/11/2016,312.50
Bath & North East Somerset Council,80642016,LM6,Nursing Care,P11,Adult Social Care & Health,CEDAR PARK NURSING HOME,14/11/2016,312.50
Bath & North East Somerset Council,80642016,LM6,Nursing Care,P11,Adult Social Care & Health,CEDAR PARK NURSING HOME,14/11/2016,312.50
Bath & North East Somerset Council,80642016,LM6,Nursing Care,P11,Adult Social Care & Health,CEDAR PARK NURSING HOME,14/11/2016,312.50
Bath & North East Somerset Council,80642016,LM6,Nursing Care,P11,Adult Social Care & Health,CEDAR PARK NURSING HOME,14/11/2016,312.50
Bath & North East Somerset Council,80642016,LM6,Nursing Care,P11,Adult Social Care & Health,CEDAR PARK NURSING HOME,14/11/2016,312.50
Bath & North East Somerset Council,80642016,LM6,Nursing Care,P11,Adult Social Care & Health,CEDAR PARK NURSING HOME,14/11/2016,312.50
Bath & North East Somerset Council,80642016,LM6,Nursing Care,P11,Adult Social Care & Health,CEDAR PARK NURSING HOME,14/11/2016,312.50
Bath & North East Somerset Council,80642016,LM6,Nursing Care,P11,Adult Social Care & Health,CEDAR PARK NURSING HOME,14/11/2016,312.50
Bath & North East Somerset Council,80642016,LM6,Nursing Care,P11,Adult Social Care & Health,CEDAR PARK NURSING HOME,14/11/2016,312.50
Bath & North East Somerset Council,80642380,LM3,Residential Care,P11,Adult Social Care & Health,CEDAR PARK NURSING HOME,14/11/2016,992.00
Bath & North East Somerset Council,80642380,XD3,Client Contributions,P11,Adult Social Care & Health,CEDAR PARK NURSING HOME,14/11/2016,1030.90
Bath & North East Somerset Council,80642380,LM6,Nursing Care,P11,Adult Social Care & Health,CEDAR PARK NURSING HOME,14/11/2016,1152.00
Bath & North East Somerset Council,80642380,LM6,Nursing Care,P11,Adult Social Care & Health,CEDAR PARK NURSING HOME,14/11/2016,1152.00
Bath & North East Somerset Council,80642380,LM6,Nursing Care,P11,Adult Social Care & Health,CEDAR PARK NURSING HOME,14/11/2016,1152.00
Bath & North East Somerset Council,80642380,LM6,Nursing Care,P11,Adult Social Care & Health,CEDAR PARK NURSING HOME,14/11/2016,1152.00
Bath & North East Somerset Council,80642380,LM6,Nursing Care,P11,Adult Social Care & Health,CEDAR PARK NURSING HOME,14/11/2016,1152.00
Bath & North East Somerset Council,80642380,LM6,Nursing Care,P11,Adult Social Care & Health,CEDAR PARK NURSING HOME,14/11/2016,1152.00
Bath & North East Somerset Council,80642380,LM6,Nursing Care,P11,Adult Social Care & Health,CEDAR PARK NURSING HOME,14/11/2016,1152.00
Bath & North East Somerset Council,80642380,LM6,Nursing Care,P11,Adult Social Care & Health,CEDAR PARK NURSING HOME,14/11/2016,1152.00
Bath & North East Somerset Council,80642380,LM6,Nursing Care,P11,Adult Social Care & Health,CEDAR PARK NURSING HOME,14/11/2016,1152.00
Bath & North East Somerset Council,80642380,LM6,Nursing Care,P11,Adult Social Care & Health,CEDAR PARK NURSING HOME,14/11/2016,1152.00
Bath & North East Somerset Council,80642380,LM6,Nursing Care,P11,Adult Social Care & Health,CEDAR PARK NURSING HOME,14/11/2016,1152.00
Bath & North East Somerset Council,80642380,LM6,Nursing Care,P11,Adult Social Care & Health,CEDAR PARK NURSING HOME,14/11/2016,1212.00
Bath & North East Somerset Council,80642380,LM6,Nursing Care,P11,Adult Social Care & Health,CEDAR PARK NURSING HOME,14/11/2016,1212.00
Bath & North East Somerset Council,80642380,LM6,Nursing Care,P11,Adult Social Care & Health,CEDAR PARK NURSING HOME,14/11/2016,1230.00
Bath & North East Somerset Council,80642380,LM6,Nursing Care,P11,Adult Social Care & Health,CEDAR PARK NURSING HOME,14/11/2016,1328.00
Bath & North East Somerset Council,80642380,LM6,Nursing Care,P11,Adult Social Care & Health,CEDAR PARK NURSING HOME,14/11/2016,1328.00
Bath & North East Somerset Council,80642380,LM6,Nursing Care,P11,Adult Social Care & Health,CEDAR PARK NURSING HOME,14/11/2016,1328.00
Bath & North East Somerset Council,80642380,LM6,Nursing Care,P11,Adult Social Care & Health,CEDAR PARK NURSING HOME,14/11/2016,1378.00
Bath & North East Somerset Council,80642380,LM6,Nursing Care,P11,Adult Social Care & Health,CEDAR PARK NURSING HOME,14/11/2016,1414.00
Bath & North East Somerset Council,80642054,LM6,Nursing Care,P11,Adult Social Care & Health,CEDAR PARK NURSING HOME,14/11/2016,1417.43
Bath & North East Somerset Council,80642380,LM6,Nursing Care,P11,Adult Social Care & Health,CEDAR PARK NURSING HOME,14/11/2016,1430.00
Bath & North East Somerset Council,80642380,LM6,Nursing Care,P11,Adult Social Care & Health,CEDAR PARK NURSING HOME,14/11/2016,1500.00
Bath & North East Somerset Council,80642054,LM6,Nursing Care,P11,Adult Social Care & Health,CEDAR PARK NURSING HOME,14/11/2016,1550.00
Bath & North East Somerset Council,80642380,LM6,Nursing Care,P11,Adult Social Care & Health,CEDAR PARK NURSING HOME,14/11/2016,1566.00
Bath & North East Somerset Council,80642380,LM6,Nursing Care,P11,Adult Social Care & Health,CEDAR PARK NURSING HOME,14/11/2016,1566.00
Bath & North East Somerset Council,80642380,LM6,Nursing Care,P11,Adult Social Care & Health,CEDAR PARK NURSING HOME,14/11/2016,1566.00
Bath & North East Somerset Council,80642380,LM6,Nursing Care,P11,Adult Social Care & Health,CEDAR PARK NURSING HOME,14/11/2016,1600.00
Bath & North East Somerset Council,80642380,LM6,Nursing Care,P11,Adult Social Care & Health,CEDAR PARK NURSING HOME,14/11/2016,1616.00
Bath & North East Somerset Council,80642380,LM6,Nursing Care,P11,Adult Social Care & Health,CEDAR PARK NURSING HOME,14/11/2016,1668.00
Bath & North East Somerset Council,80642380,LM6,Nursing Care,P11,Adult Social Care & Health,CEDAR PARK NURSING HOME,14/11/2016,1690.00
Bath & North East Somerset Council,80642380,LM6,Nursing Care,P11,Adult Social Care & Health,CEDAR PARK NURSING HOME,14/11/2016,1742.00
Bath & North East Somerset Council,80642054,LM6,Nursing Care,P11,Adult Social Care & Health,CEDAR PARK NURSING HOME,14/11/2016,2100.00
Bath & North East Somerset Council,80642380,LM6,Nursing Care,P11,Adult Social Care & Health,CEDAR PARK NURSING HOME,14/11/2016,2100.00
Bath & North East Somerset Council,80642016,LM6,Nursing Care,P11,Adult Social Care & Health,CEDAR PARK NURSING HOME,14/11/2016,6567.21
Bath & North East Somerset Council,80642470,LM6,Nursing Care,P11,Adult Social Care & Health,CEDARS CARE (WINSCOMBE HALL) LTD,14/11/2016,1218.00
Bath & North East Somerset Council,80642476,LM3,Residential Care,P11,Adult Social Care & Health,CEPEN LODGE CARE HOME,14/11/2016,1328.00
Bath & North East Somerset Council,80642518,LM3,Residential Care,P11,Adult Social Care & Health,CHASE LODGE CARE HOME,14/11/2016,1446.00
Bath & North East Somerset Council,80642032,LM6,Nursing Care,P11,Adult Social Care & Health,CHERRY GARDEN PROPERTIES LTD,14/11/2016,312.50
Bath & North East Somerset Council,80642032,LM6,Nursing Care,P11,Adult Social Care & Health,CHERRY GARDEN PROPERTIES LTD,14/11/2016,312.50
Bath & North East Somerset Council,80642032,LM6,Nursing Care,P11,Adult Social Care & Health,CHERRY GARDEN PROPERTIES LTD,14/11/2016,312.50
Bath & North East Somerset Council,80642032,LM6,Nursing Care,P11,Adult Social Care & Health,CHERRY GARDEN PROPERTIES LTD,14/11/2016,312.50
Bath & North East Somerset Council,80642032,LM6,Nursing Care,P11,Adult Social Care & Health,CHERRY GARDEN PROPERTIES LTD,14/11/2016,312.50
Bath & North East Somerset Council,80642032,LM6,Nursing Care,P11,Adult Social Care & Health,CHERRY GARDEN PROPERTIES LTD,14/11/2016,312.50
Bath & North East Somerset Council,80642032,LM6,Nursing Care,P11,Adult Social Care & Health,CHERRY GARDEN PROPERTIES LTD,14/11/2016,312.50
Bath & North East Somerset Council,80642032,LM6,Nursing Care,P11,Adult Social Care & Health,CHERRY GARDEN PROPERTIES LTD,14/11/2016,312.50
Bath & North East Somerset Council,80642032,LM6,Nursing Care,P11,Adult Social Care & Health,CHERRY GARDEN PROPERTIES LTD,14/11/2016,312.50
Bath & North East Somerset Council,80642032,LM6,Nursing Care,P11,Adult Social Care & Health,CHERRY GARDEN PROPERTIES LTD,14/11/2016,312.50
Bath & North East Somerset Council,80642032,LM6,Nursing Care,P11,Adult Social Care & Health,CHERRY GARDEN PROPERTIES LTD,14/11/2016,312.50
Bath & North East Somerset Council,80642032,LM6,Nursing Care,P11,Adult Social Care & Health,CHERRY GARDEN PROPERTIES LTD,14/11/2016,312.50
Bath & North East Somerset Council,80642032,LM6,Nursing Care,P11,Adult Social Care & Health,CHERRY GARDEN PROPERTIES LTD,14/11/2016,312.50
Bath & North East Somerset Council,80642032,LM6,Nursing Care,P11,Adult Social Care & Health,CHERRY GARDEN PROPERTIES LTD,14/11/2016,312.50
Bath & North East Somerset Council,80642032,LM6,Nursing Care,P11,Adult Social Care & Health,CHERRY GARDEN PROPERTIES LTD,14/11/2016,312.50
Bath & North East Somerset Council,80642032,LM6,Nursing Care,P11,Adult Social Care & Health,CHERRY GARDEN PROPERTIES LTD,14/11/2016,312.50
Bath & North East Somerset Council,80642485,LM6,Nursing Care,P11,Adult Social Care & Health,CHERRY GARDEN PROPERTIES LTD,14/11/2016,1152.00
Bath & North East Somerset Council,80642485,LM6,Nursing Care,P11,Adult Social Care & Health,CHERRY GARDEN PROPERTIES LTD,14/11/2016,1152.00
Bath & North East Somerset Council,80642485,LM6,Nursing Care,P11,Adult Social Care & Health,CHERRY GARDEN PROPERTIES LTD,14/11/2016,1152.00
Bath & North East Somerset Council,80642485,LM6,Nursing Care,P11,Adult Social Care & Health,CHERRY GARDEN PROPERTIES LTD,14/11/2016,1152.00
Bath & North East Somerset Council,80642485,LM6,Nursing Care,P11,Adult Social Care & Health,CHERRY GARDEN PROPERTIES LTD,14/11/2016,1152.00
Bath & North East Somerset Council,80642485,LM6,Nursing Care,P11,Adult Social Care & Health,CHERRY GARDEN PROPERTIES LTD,14/11/2016,1152.00
Bath & North East Somerset Council,80642485,LM6,Nursing Care,P11,Adult Social Care & Health,CHERRY GARDEN PROPERTIES LTD,14/11/2016,1152.00
Bath & North East Somerset Council,80642485,LM6,Nursing Care,P11,Adult Social Care & Health,CHERRY GARDEN PROPERTIES LTD,14/11/2016,1152.00
Bath & North East Somerset Council,80642485,LM3,Residential Care,P11,Adult Social Care & Health,CHERRY GARDEN PROPERTIES LTD,14/11/2016,1550.00
Bath & North East Somerset Council,80642485,LM6,Nursing Care,P11,Adult Social Care & Health,CHERRY GARDEN PROPERTIES LTD,14/11/2016,1718.00
Bath & North East Somerset Council,80642485,LM6,Nursing Care,P11,Adult Social Care & Health,CHERRY GARDEN PROPERTIES LTD,14/11/2016,1770.00
Bath & North East Somerset Council,80642485,LM6,Nursing Care,P11,Adult Social Care & Health,CHERRY GARDEN PROPERTIES LTD,14/11/2016,1770.00
Bath & North East Somerset Council,80642384,LM3,Residential Care,P11,Adult Social Care & Health,CHESCOMBE TRUST,14/11/2016,2701.94
Bath & North East Somerset Council,80642070,LM3,Residential Care,P11,Adult Social Care & Health,CHOICE LTD,14/11/2016,16936.00
Bath & North East Somerset Council,80642497,LM6,Nursing Care,P11,Adult Social Care & Health,CHOLWELL CARE (NAILSEA) LTD,14/11/2016,1634.00
Bath & North East Somerset Council,80642012,LM6,Nursing Care,P11,Adult Social Care & Health,CHOLWELL HOUSE NURSING HOME,14/11/2016,245.54
Bath & North East Somerset Council,80642012,LM6,Nursing Care,P11,Adult Social Care & Health,CHOLWELL HOUSE NURSING HOME,14/11/2016,312.50
Bath & North East Somerset Council,80642012,LM6,Nursing Care,P11,Adult Social Care & Health,CHOLWELL HOUSE NURSING HOME,14/11/2016,312.50
Bath & North East Somerset Council,80642012,LM6,Nursing Care,P11,Adult Social Care & Health,CHOLWELL HOUSE NURSING HOME,14/11/2016,312.50
Bath & North East Somerset Council,80642012,LM6,Nursing Care,P11,Adult Social Care & Health,CHOLWELL HOUSE NURSING HOME,14/11/2016,312.50
Bath & North East Somerset Council,80642012,LM6,Nursing Care,P11,Adult Social Care & Health,CHOLWELL HOUSE NURSING HOME,14/11/2016,312.50
Bath & North East Somerset Council,80642012,LM6,Nursing Care,P11,Adult Social Care & Health,CHOLWELL HOUSE NURSING HOME,14/11/2016,312.50
Bath & North East Somerset Council,80642012,LM6,Nursing Care,P11,Adult Social Care & Health,CHOLWELL HOUSE NURSING HOME,14/11/2016,312.50
Bath & North East Somerset Council,80642012,LM6,Nursing Care,P11,Adult Social Care & Health,CHOLWELL HOUSE NURSING HOME,14/11/2016,312.50
Bath & North East Somerset Council,80642012,LM6,Nursing Care,P11,Adult Social Care & Health,CHOLWELL HOUSE NURSING HOME,14/11/2016,312.50
Bath & North East Somerset Council,80642012,LM6,Nursing Care,P11,Adult Social Care & Health,CHOLWELL HOUSE NURSING HOME,14/11/2016,312.50
Bath & North East Somerset Council,80642012,LM6,Nursing Care,P11,Adult Social Care & Health,CHOLWELL HOUSE NURSING HOME,14/11/2016,312.50
Bath & North East Somerset Council,80642012,LM6,Nursing Care,P11,Adult Social Care & Health,CHOLWELL HOUSE NURSING HOME,14/11/2016,312.50
Bath & North East Somerset Council,80642012,LM6,Nursing Care,P11,Adult Social Care & Health,CHOLWELL HOUSE NURSING HOME,14/11/2016,312.50
Bath & North East Somerset Council,80642012,LM6,Nursing Care,P11,Adult Social Care & Health,CHOLWELL HOUSE NURSING HOME,14/11/2016,312.50
Bath & North East Somerset Council,80642012,LM6,Nursing Care,P11,Adult Social Care & Health,CHOLWELL HOUSE NURSING HOME,14/11/2016,312.50
Bath & North East Somerset Council,80642373,LM6,Nursing Care,P11,Adult Social Care & Health,CHOLWELL HOUSE NURSING HOME,14/11/2016,364.28
Bath & North East Somerset Council,80642373,LM6,Nursing Care,P11,Adult Social Care & Health,CHOLWELL HOUSE NURSING HOME,14/11/2016,1364.00
Bath & North East Somerset Council,80642373,LM6,Nursing Care,P11,Adult Social Care & Health,CHOLWELL HOUSE NURSING HOME,14/11/2016,1664.00
Bath & North East Somerset Council,80642049,LM6,Nursing Care,P11,Adult Social Care & Health,CHOLWELL HOUSE NURSING HOME,14/11/2016,1700.00
Bath & North East Somerset Council,80642373,LM6,Nursing Care,P11,Adult Social Care & Health,CHOLWELL HOUSE NURSING HOME,14/11/2016,1700.00
Bath & North East Somerset Council,80642373,LM6,Nursing Care,P11,Adult Social Care & Health,CHOLWELL HOUSE NURSING HOME,14/11/2016,1700.00
Bath & North East Somerset Council,80642373,LM6,Nursing Care,P11,Adult Social Care & Health,CHOLWELL HOUSE NURSING HOME,14/11/2016,1718.00
Bath & North East Somerset Council,80642049,LM6,Nursing Care,P11,Adult Social Care & Health,CHOLWELL HOUSE NURSING HOME,14/11/2016,4052.00
Bath & North East Somerset Council,80642049,LM6,Nursing Care,P11,Adult Social Care & Health,CHOLWELL HOUSE NURSING HOME,14/11/2016,5436.00
Bath & North East Somerset Council,80642373,LM6,Nursing Care,P11,Adult Social Care & Health,CHOLWELL HOUSE NURSING HOME,14/11/2016,5920.00
Bath & North East Somerset Council,80642049,LM6,Nursing Care,P11,Adult Social Care & Health,CHOLWELL HOUSE NURSING HOME,14/11/2016,6800.00
Bath & North East Somerset Council,80642373,LM6,Nursing Care,P11,Adult Social Care & Health,CHOLWELL HOUSE NURSING HOME,14/11/2016,8183.42
Bath & North East Somerset Council,80642383,LM3,Residential Care,P11,Adult Social Care & Health,CLAREMONT RESIDENTIAL HOME,14/11/2016,1100.00
Bath & North East Somerset Council,80642383,LM3,Residential Care,P11,Adult Social Care & Health,CLAREMONT RESIDENTIAL HOME,14/11/2016,1384.60
Bath & North East Somerset Council,80642168,LL8,Individualised Budget,P11,Adult Social Care & Health,REDACTED,14/11/2016,595.90
Bath & North East Somerset Council,80642168,LL8,Individualised Budget,P11,Adult Social Care & Health,REDACTED,14/11/2016,6004.51
Bath & North East Somerset Council,80642399,LM3,Residential Care,P11,Adult Social Care & Health,COCKLEBURY FARMHOUSE,14/11/2016,2012.00
Bath & North East Somerset Council,80642071,LM6,Nursing Care,P11,Adult Social Care & Health,COMMUNITY OF ST ANTONY & ST ELIAS & REV,14/11/2016,3330.00
Bath & North East Somerset Council,80642442,LL3,Supported Living,P11,Adult Social Care & Health,COMMUNITY OF ST ANTONY & ST ELIAS & REV,14/11/2016,3560.00
Bath & North East Somerset Council,80642462,LM3,Residential Care,P11,Adult Social Care & Health,CONSENSUS SUPPORT SERVICES LTD,14/11/2016,3914.00
Bath & North East Somerset Council,80642462,LM3,Residential Care,P11,Adult Social Care & Health,CONSENSUS SUPPORT SERVICES LTD,14/11/2016,3994.00
Bath & North East Somerset Council,80642462,LM3,Residential Care,P11,Adult Social Care & Health,CONSENSUS SUPPORT SERVICES LTD,14/11/2016,4074.00
Bath & North East Somerset Council,80642462,LM3,Residential Care,P11,Adult Social Care & Health,CONSENSUS SUPPORT SERVICES LTD,14/11/2016,4074.00
Bath & North East Somerset Council,80642462,LM3,Residential Care,P11,Adult Social Care & Health,CONSENSUS SUPPORT SERVICES LTD,14/11/2016,8002.00
Bath & North East Somerset Council,80641867,LM8,Home Care,P11,Adult Social Care & Health,CORINIUM CARE LIMITED,14/11/2016,360.00
Bath & North East Somerset Council,80641867,LM8,Home Care,P11,Adult Social Care & Health,CORINIUM CARE LIMITED,14/11/2016,3677.40
Bath & North East Somerset Council,80642133,LL8,Individualised Budget,P11,Adult Social Care & Health,REDACTED,14/11/2016,734.48
Bath & North East Somerset Council,80642401,LM3,Residential Care,P11,Adult Social Care & Health,CORNERSTONES UK LTD,14/11/2016,1504.00
Bath & North East Somerset Council,80642433,LM3,Residential Care,P11,Adult Social Care & Health,CRAEGMOOR FACILITIES - ALEXANDRA HOUSE,14/11/2016,3402.00
Bath & North East Somerset Council,80642458,LM3,Residential Care,P11,Adult Social Care & Health,CRAEGMOOR FACILITIES - CHERRYWOOD HOU,14/11/2016,1600.00
Bath & North East Somerset Council,80642372,LM3,Residential Care,P11,Adult Social Care & Health,CRAEGMOOR FACILITIES - ELM TREE HOUSE,14/11/2016,2004.00
Bath & North East Somerset Council,80642372,LM3,Residential Care,P11,Adult Social Care & Health,CRAEGMOOR FACILITIES - ELM TREE HOUSE,14/11/2016,2288.00
Bath & North East Somerset Council,80642372,LM3,Residential Care,P11,Adult Social Care & Health,CRAEGMOOR FACILITIES - ELM TREE HOUSE,14/11/2016,2678.18
Bath & North East Somerset Council,80642400,LM3,Residential Care,P11,Adult Social Care & Health,CRAEGMOOR FACILITIES - OLD VICARAGE,14/11/2016,2484.00
Bath & North East Somerset Council,80642512,LM3,Residential Care,P11,Adult Social Care & Health,CRAEGMOOR FACILITIES CO LTD,14/11/2016,3170.00
Bath & North East Somerset Council,80642015,LM6,Nursing Care,P11,Adult Social Care & Health,CRANHILL NURSING HOME LTD,14/11/2016,223.21
Bath & North East Somerset Council,80642015,LM6,Nursing Care,P11,Adult Social Care & Health,CRANHILL NURSING HOME LTD,14/11/2016,312.50
Bath & North East Somerset Council,80642015,LM6,Nursing Care,P11,Adult Social Care & Health,CRANHILL NURSING HOME LTD,14/11/2016,312.50
Bath & North East Somerset Council,80642015,LM6,Nursing Care,P11,Adult Social Care & Health,CRANHILL NURSING HOME LTD,14/11/2016,312.50
Bath & North East Somerset Council,80642015,LM6,Nursing Care,P11,Adult Social Care & Health,CRANHILL NURSING HOME LTD,14/11/2016,312.50
Bath & North East Somerset Council,80642015,LM6,Nursing Care,P11,Adult Social Care & Health,CRANHILL NURSING HOME LTD,14/11/2016,312.50
Bath & North East Somerset Council,80642015,LM6,Nursing Care,P11,Adult Social Care & Health,CRANHILL NURSING HOME LTD,14/11/2016,312.50
Bath & North East Somerset Council,80642015,LM6,Nursing Care,P11,Adult Social Care & Health,CRANHILL NURSING HOME LTD,14/11/2016,312.50
Bath & North East Somerset Council,80642015,LM6,Nursing Care,P11,Adult Social Care & Health,CRANHILL NURSING HOME LTD,14/11/2016,312.50
